Workbook

Sheet Introduction & Revisions
A1: Span Wire Analysis
A3: Introduction:
B4: The purpose of this worksheet/workbook is to evaluate the various design arrangements of traffic components installed on each span wire between strain poles in order to develop the minimum required tension a strain pole must resist at any given corner of an intersection. The procedure will follow the Pennsylvania Department of -Transportation "Criteria for the Design of Traffic Related Structures". {Per Publication 408, Section 1104.02 (a) }
A6: Assumptions:
A7: 1.) | B7: Design is in accordance with PennDOT Publications 148 and 149 and AASHTO Standard Specifications for Structural Supports for Highway Signs, Luminaries and Traffic Signals, 4th Edition with 2002 and 2003 Interims
A8: 2.) | B8: Signal Configuration & Signal Sections in Each Direction are as described in PennDOT Publication 149, Table 20-4
A9: 3.) | B9: Assume all overhead signals have 12" lenses with backplate, 5 inch border
A10: 4.) | B10: Signal weights are in accordance with PennDOT Publication 149, Table 20-2
A11: 5.) | B11: Loading identification as shown on TC-8801, Sheet 2 of 7
A12: 6.) | B12: For calculating reactions on strain poles due to the span wires, the wind is assumed to act at 0˚, 45˚ and 90˚. When wind acts parallel to a span wire a force of 0.2 times the wind force on that span wire is assumed to act in the direction of the wind. The effect of the wind acting at different angles is conservatively neglected in calculating the Fx value for each span wire.
A13: 7.) | B13: For calculating reactions on strain poles due wind acting at different angles, the program assumes that the angles between cables in a box arrangement are 90 degrees. Intersections in which the cable angles at the corners are within 15 degrees, plus or minus, of 90 degrees (angles of 75 to 105 degrees) should produce acceptable results.
A14: 8.) | B14: Effects due to strain pole deflection are not considered when calculating span wire tension.
A16: Instructions:
A17: 1.) | B17: The workbook is setup for a typical 4 span configuration. One, two or three span configurations can also be analyzed by indicating the span wire presence and setting values to "None" or zero as noted in the instructions.
A18: 2.) | B18: Geometry Input: On the "Input" tab, input the span wire length, angle between wires and if the span wire is present in the signal configuration. Input values cells have tan fill with blue, bold and italicized font.
A19: 3.) | B19: Loading Input: On the "Input" tab, input the span wire load configurations from the pick lists, load locations, span wire diameter, and span wire material as indicated (Refer to Page 2 and 3 for diagrams). If a span wire is not present in the configuration or if a given load is not present, select "None" from the pick list and enter "0" (zero) for the distance. Any value can be entered for a span wire diameter and material if the span wire is not present.
A20: 4.) | B20: Run Analysis: To run the analysis, press the "Run Analysis" button at the bottom of the "Input" tab. The analysis will run and the "Output" tab will appear.
A21: 5.) | B21: Print Output: The "Print Output" button will print the "Input" and "Output" tabs. Worksheets can also be printed using normal Excel printing procedures. To view more detailed output and analysis results click on the "SW" or "P" tabs for the span wire or pole you wish to view. More detailed output can be printed from these tabs using normal Excel printing procedures.
A23: VERSION # | B23: REVISION DATE | C23: REVISION | D23: REASON FOR REVISION
A24: Beta | B24: 2011-10-08 | C24: Spreadsheet Originated | D24: N/A
C209: 5200
H226: =SUM(H212:H225) -> 0
E227: =E157 -> 0

Sheet Input
A1: Span Wire Analysis - Input
A3: Project: | B3: Sample Input/Output
A4: Intersection: | B4: SR XX & SR XX
A5: Input By: | B5: MEC | C5: Date: | D5: 2011-07-20
A6: Checked By: | B6: XXX | C6: Date: | D6: XXX
A8: Spreadsheet Assumptions and References:
A9: - Design is in accordance with PennDOT Publications 148 and 149 and AASHTO Standard Specifications for Structural Supports for Highway Signs, Luminaries and Traffic Signals, 4th Edition with 2002 and 2003 Interims
A10: - Signal Configuration & Signal Sections in Each Direction are as described in PennDOT Publication 149, Table 20-4
A11: - Assume all overhead signals have 12" lenses with backplate, 5 inch border
A12: - Signal weights are in accordance with PennDOT Publication 149, Table 20-2
A13: - Loading identification as shown on TC-8801, Sheet 2 of 7
A14: - For calculating reactions on strain poles due to the span wires, the wind is assumed to act at 0˚, 45˚ and 90˚. When wind acts parallel to a span wire a force of 0.2 times the wind force on that span wire is assumed to act in the direction of the wind. The effect of the wind acting at different angles is conservatively neglected in calculating the Fx value for each span wire.
A15: - For calculating reactions on strain poles due wind acting at different angles, the program assumes that the angles between cables in a box arrangement are 90 degrees. Intersections in which the cable angles at the corners are within 15 degrees, plus or minus, of 90 degrees (angles of 75 to 105 degrees) should produce acceptable results.
A16: - Effects due to strain pole deflection are not considered when calculating span wire tension.
A18: Geometry Input:
L20: Cable Length Check: | P20: Closing Side Length | Q20: Angle 1 | R20: Angle 2 | S20: Sum | T20: Check
L21: Leg | M21: Length
L22: L1 | M22: =ROUND(C49,2) -> 173 | N22: FT | O22: P1 | P22: =SQRT(M25^2+M22^2-2*M22*M25*COS(RADIANS(M29))) -> 109.1087745 | Q22: =ROUND(DEGREES(ASIN(M23/P23*SIN(RADIANS(M30)))),2) -> 15.46 | R22: =ROUND(DEGREES(ASIN(M24/P25*SIN(RADIANS(M32)))),2) -> 22.18 | S22: =ROUND(SUM(Q22:R22),2) -> 37.64 | T22: =IF(AND(S22-1<M29,S22+1>M29),"OK","ERROR") -> OK | U22: =IF(T22="OK",1,0) -> 1
L23: L2 | M23: =ROUND(C50,2) -> 145 | N23: FT | O23: P2 | P23: =SQRT(M22^2+M23^2-2*M22*M23*COS(RADIANS(M30))) -> 304.2150802 | Q23: =ROUND(DEGREES(ASIN(M25/P22*SIN(RADIANS(M29)))),2) -> 64.53 | R23: =ROUND(DEGREES(ASIN(M24/P24*SIN(RADIANS(M31)))),2) -> 83.13 | S23: =ROUND(SUM(Q23:R23),2) -> 147.66 | T23: =IF(AND(S23-1<M30,S23+1>M30),"OK","ERROR") -> ERROR | U23: =IF(T23="OK",1,0) -> 0
L24: L3 | M24: =ROUND(C51,2) -> 170 | N24: FT | O24: P3 | P24: =SQRT(M23^2+M24^2-2*M23*M24*COS(RADIANS(M31))) -> 107.7576174 | Q24: =ROUND(DEGREES(ASIN(M22/P23*SIN(RADIANS(M30)))),2) -> 18.54 | R24: =ROUND(DEGREES(ASIN(M25/P25*SIN(RADIANS(M32)))),2) -> 20.82 | S24: =ROUND(SUM(Q24:R24),2) -> 39.36 | T24: =IF(AND(S24-1<M31,S24+1>M31),"OK","ERROR") -> OK | U24: =IF(T24="OK",1,0) -> 1
L25: L4 | M25: =ROUND(C52,2) -> 160 | N25: FT | O25: P4 | P25: =SQRT(M24^2+M25^2-2*M24*M25*COS(RADIANS(M32))) -> 307.0596707 | Q25: =ROUND(DEGREES(ASIN(M22/P22*SIN(RADIANS(M29)))),2) -> 77.47 | R25: =ROUND(DEGREES(ASIN(M23/P24*SIN(RADIANS(M31)))),2) -> 57.87 | S25: =ROUND(SUM(Q25:R25),2) -> 135.34 | T25: =IF(AND(S25-1<M32,S25+1>M32),"OK","ERROR") -> ERROR | U25: =IF(T25="OK",1,0) -> 0
T26: Total = | U26: =SUM(U22:U25) -> 2
O27: Error: Geometry is incorrect, shape is not closed.
L28: Angle Check:
L29: A1 | M29: =ROUND(F49,2) -> 38 | N29: DEG
L30: A2 | M30: =ROUND(F50,2) -> 146 | N30: DEG
L31: A3 | M31: =ROUND(F51,2) -> 39 | N31: DEG
L32: A4 | M32: =ROUND(F52,2) -> 137 | N32: DEG
L33: Total = | M33: =SUM(M29:M32) -> 360 | N33: DEG
O34: Error: Sum of angles does not equal 360˚
E45: Intersection Plan View
B47: Input values to the nearest two decimal places and YES or NO if the span wire is present in the signal layout.
B48: Leg Length Input: | E48: Angle Input: | H48: Span Wire Present:
B49: L1 = | C49: 173 | D49: ft | E49: A1 = | F49: 38 | G49: degrees | H49: SW1: | I49: YES
B50: L2 = | C50: 145 | D50: ft | E50: A2 = | F50: 146 | G50: degrees | H50: SW2: | I50: YES
B51: L3 = | C51: 170 | D51: ft | E51: A3 = | F51: 39 | G51: degrees | H51: SW3: | I51: YES
B52: L4 = | C52: 160 | D52: ft | E52: A4 = | F52: 137 | G52: degrees | H52: SW4: | I52: YES
E53: =IF(AND(I49='Pick Lists & Data'!A57,I50='Pick Lists & Data'!A57,I51='Pick Lists & Data'!A57,I52='Pick Lists & Data'!A57),IF(M33=360,O33,O34)," ") -> 
E54: =IF(AND(I49='Pick Lists & Data'!A57,I50='Pick Lists & Data'!A57,I51='Pick Lists & Data'!A57,I52='Pick Lists & Data'!A57),IF(U26=4,O26,O27)," ") -> Error: Geometry is incorrect, shape is not closed.
M55: PICK LISTS:
A56: Loading Input: | M56: Spanwire Present: | N56: Signals: | O56: Signs | P56: Wire Diameter | Q56: Wire Material
M57: YES | N57: None | O57: None | P57: 0.25" | Q57: ASTM A 475
D58: Span Wire SW-1 Input | G58: Span Wire SW-2 Input | M58: NO | N58: A-3 | O58: 30" x 36" | P58: 0.3125" | Q58: ASTM B 416
B59: Loading ID | C59: Description | D59: Sign Size/Wire Size (in) | E59: Signal Config. - Signal Sec. Each Direction (3) | F59: Distance (Xn), ft (1) | G59: Sign Size/Wire Size (in) | H59: Signal Config. - Signal Sec. Each Direction (3) | I59: Distance (Xn), ft (1) | N59: A-4 | O59: None | P59: 0.375"
N60: A-5 | O60: 72" x 21" | P60: 0.4375"
B61: M | C61: Signal | E61: A-3 | F61: 131 | H61: A-3 | I61: 117 | N61: B-3 | O61: 96" x 32" | P61: 0.5"
B62: N | C62: Signal | E62: A-3 | F62: 89 | H62: A-3 | I62: 70 | N62: C-3
B63: O | C63: Signal | E63: A-3 | F63: 68 | H63: A-3 | I63: 55 | N63: B-4
B64: P | C64: Signal | E64: A-3 | F64: 51 | H64: A-5 | I64: 42 | N64: C-4
B65: R | C65: Sign | D65: 30" x 36" | F65: 79 | G65: 30" x 36" | I65: 65 | N65: B-5
B66: S | C66: Sign | D66: None | F66: 0 | G66: 30" x 36" | I66: 36 | N66: D-3
B67: T | C67: Sign | D67: None | F67: 0 | G67: None | I67: 0 | N67: E-3
B68: U | C68: Sign | D68: None | F68: 0 | G68: None | I68: 0 | N68: D-4
B69: Y | C69: Sign | D69: 96" x 32" | F69: 22 | G69: 96" x 32" | I69: 30 | N69: E-4
B70: Wire | C70: Wire | D70: 0.5" | G70: 0.5" | N70: F-3
D71: Material (2): | E71: ASTM A 475 | G71: Material (2): | H71: ASTM A 475 | N71: F-4
D74: Span Wire SW-3 Input | G74: Span Wire SW-4 Input
B75: Loading ID | C75: Description | D75: Sign Size/Wire Size (in) | E75: Signal Config. - Signal Sec. Each Direction (3) | F75: Distance (Xn), ft (1) | G75: Sign Size/Wire Size (in) | H75: Signal Config. - Signal Sec. Each Direction (3) | I75: Distance (Xn), ft (1)
B77: M | C77: Signal | E77: A-3 | F77: 129 | H77: A-5 | I77: 120
B78: N | C78: Signal | E78: A-3 | F78: 90 | H78: A-3 | I78: 95
B79: O | C79: Signal | E79: A-3 | F79: 75 | H79: A-3 | I79: 72
B80: P | C80: Signal | E80: A-3 | F80: 55 | H80: A-3 | I80: 50
B81: R | C81: Sign | D81: 30" x 36" | F81: 83 | G81: 30" x 36" | I81: 125
B82: S | C82: Sign | D82: None | F82: 0 | G82: 30" x 36" | I82: 90
B83: T | C83: Sign | D83: None | F83: 0 | G83: None | I83: 0
B84: U | C84: Sign | D84: None | F84: 0 | G84: None | I84: 0
B85: Y | C85: Sign | D85: 96" x 32" | F85: 27 | G85: 96" x 32" | I85: 27
B86: Wire | C86: Wire | D86: 0.5" | G86: 0.5"
D87: Material (2): | E87: ASTM A 475 | G87: Material (2): | H87: ASTM A 475
A90: (1) Enter distance measured from the right support to the load location as if you are looking at the span wire from the roadway being signaled. The program as written assumes that the roadway being signaled is on the opposite side of the intersection from the span wire. If all loads are not used, enter a zero distance for each load not being used
A91: (2) ASTM A 475,Class A, Siemens-Martin Grade or ASTM B 416
A92: (3) A - 3
B94: Number of signal sections, each direction
B95: Signal Configuration, PennDOT Pub. 149, Figure 20-4
G97: A-3 | H97: A-4 | I97: A-5
G99: Examples

Sheet Input Diagrams
A2: Input Diagrams:
E37: Typical Elevation (TC-8801, Sheet 2 of 7)
F70: PennDOT Pub 149, Figure 20-4:

Sheet Output
A1: Span Wire Analysis - Output
A3: Project: | B3: =Project -> Sample Input/Output
A4: Intersection: | B4: =Intersection -> SR XX & SR XX
A5: Input By: | B5: =Input_By -> MEC | C5: Date: | D5: =Date_Inp -> 2011-07-20
A6: Checked By: | B6: =Checked_By -> XXX | C6: Date: | D6: =Date_Chk -> XXX
A8: Span Wire Forces:
B10: Span Wire | C10: Span Wire Tension Design Force (1) (lbs) | D10: Allowable Load (2) (lbs) | E10: Check | F10: Controlling Group Load
B11: SW1 | C11: =IF(Input!I49="YES",SUMMARY!B7,"N/A") -> 4087.768154 | D11: =IF(Input!I49="YES",SUMMARY!H7,"N/A") -> 7590.31 | E11: =IF(Input!I49="YES",IF(C11<=D11,"OK","NO GOOD"),"N/A") -> OK | F11: =IF(Input!I49="YES",SUMMARY!C7,"N/A") -> Group II
B12: SW2 | C12: =IF(Input!I50="YES",SUMMARY!B8,"N/A") -> 3496.340979 | D12: =IF(Input!I50="YES",SUMMARY!H8,"N/A") -> 7590.31 | E12: =IF(Input!I50="YES",IF(C12<=D12,"OK","NO GOOD"),"N/A") -> OK | F12: =IF(Input!I50="YES",SUMMARY!C8,"N/A") -> Group II
B13: SW3 | C13: =IF(Input!I51="YES",SUMMARY!B9,"N/A") -> 5140.949626 | D13: =IF(Input!I51="YES",SUMMARY!H9,"N/A") -> 7590.31 | E13: =IF(Input!I51="YES",IF(C13<=D13,"OK","NO GOOD"),"N/A") -> OK | F13: =IF(Input!I51="YES",SUMMARY!C9,"N/A") -> Group II
B14: SW4 | C14: =IF(Input!I52="YES",SUMMARY!B10,"N/A") -> 2250.244702 | D14: =IF(Input!I52="YES",SUMMARY!H10,"N/A") -> 7590.31 | E14: =IF(Input!I52="YES",IF(C14<=D14,"OK","NO GOOD"),"N/A") -> OK | F14: =IF(Input!I52="YES",SUMMARY!C10,"N/A") -> Group II
A16: (1) Forces have NOT been adjusted for overstress.
A17: (2) Allowable load includes allowable group overstress.
A18: (3) N/A indicates that no span wire is present.
A20: Pole Design Forces:
B22: Pole Number | C22: Pole Design Force (1) (lbs) | E22: Controlling Load Group (2)
C23: Horiz | D23: Vertical
B24: P1 | C24: =IF(AND(Input!$I$49="NO",Input!$I$52="NO"),"N/A",SUMMARY!F19) -> 2589.917348 | D24: =IF(AND(Input!$I$49="NO",Input!$I$52="NO"),"N/A",SUMMARY!G19) -> 582.6276995 | E24: =IF(AND(Input!$I$49="NO",Input!$I$52="NO"),"N/A",SUMMARY!E19) -> Group I (DL Only)
C25: =IF(AND(Input!$I$49="NO",Input!$I$52="NO"),"N/A",SUMMARY!F20) -> 5682.382069 | D25: =IF(AND(Input!$I$49="NO",Input!$I$52="NO"),"N/A",SUMMARY!G20) -> 582.6276995 | E25: =IF(AND(Input!$I$49="NO",Input!$I$52="NO"),"N/A",SUMMARY!E20) -> Group II
B26: P2 | C26: =IF(AND(Input!$I$49="NO",Input!$I$50="NO"),"N/A",SUMMARY!F21) -> 2631.85525 | D26: =IF(AND(Input!$I$49="NO",Input!$I$50="NO"),"N/A",SUMMARY!G21) -> 606.2534427 | E26: =IF(AND(Input!$I$49="NO",Input!$I$50="NO"),"N/A",SUMMARY!E21) -> Group I (DL Only)
C27: =IF(AND(Input!$I$49="NO",Input!$I$50="NO"),"N/A",SUMMARY!F22) -> 6338.393211 | D27: =IF(AND(Input!$I$49="NO",Input!$I$50="NO"),"N/A",SUMMARY!G22) -> 606.2534427 | E27: =IF(AND(Input!$I$49="NO",Input!$I$50="NO"),"N/A",SUMMARY!E22) -> Group II
B28: P3 | C28: =IF(AND(Input!$I$50="NO",Input!$I$51="NO"),"N/A",SUMMARY!F23) -> 2678.470993 | D28: =IF(AND(Input!$I$50="NO",Input!$I$51="NO"),"N/A",SUMMARY!G23) -> 628.830071 | E28: =IF(AND(Input!$I$50="NO",Input!$I$51="NO"),"N/A",SUMMARY!E23) -> Group I (DL Only)
C29: =IF(AND(Input!$I$50="NO",Input!$I$51="NO"),"N/A",SUMMARY!F24) -> 7459.363906 | D29: =IF(AND(Input!$I$50="NO",Input!$I$51="NO"),"N/A",SUMMARY!G24) -> 628.830071 | E29: =IF(AND(Input!$I$50="NO",Input!$I$51="NO"),"N/A",SUMMARY!E24) -> Group II
B30: P4 | C30: =IF(AND(Input!$I$51="NO",Input!$I$52="NO"),"N/A",SUMMARY!F25) -> 2637.274478 | D30: =IF(AND(Input!$I$51="NO",Input!$I$52="NO"),"N/A",SUMMARY!G25) -> 644.0387868 | E30: =IF(AND(Input!$I$51="NO",Input!$I$52="NO"),"N/A",SUMMARY!E25) -> Group I (DL Only)
C31: =IF(AND(Input!$I$51="NO",Input!$I$52="NO"),"N/A",SUMMARY!F26) -> 6721.602991 | D31: =IF(AND(Input!$I$51="NO",Input!$I$52="NO"),"N/A",SUMMARY!G26) -> 644.0387868 | E31: =IF(AND(Input!$I$51="NO",Input!$I$52="NO"),"N/A",SUMMARY!E26) -> Group II
A33: (1) Forces have NOT been adjusted for overstress.
A34: (2) Group 1 (Dead Load only and Load Group with the controlling shear value are reported.)
A36: (3) N/A indicates that no span wires are present at that pole.

Sheet SW1
A1: Strain Pole Design - SW1 Cable Stringing Tension
A3: Assumptions: | B3: This spreadsheet calculates the tension in strain poles for overhead sign in accordance with the AASHTO Specifications for Structural Supports for Highway Signs, Luminaires and Traffic Signals 4th Edition 2001, including the 2002 and 2003 Interims (Per DM-4), and the Pennsylvania Department of Transportation Criteria for the Design of Traffic Related Structures.
B5: Number of assumed concentrated loads on the strain pole cable. Also must consider concentrated cable loads with a minimum of 5 segments. | I5: Y
F6: = | G6: =I51 -> 11
H7: M
B9: Support 1 (Left) | G9: X | I9: Support 2 (Right)
G13: Loadn
G17: Xn
E19: Length
B21: Length: | C21: =L1_ -> 173 | D21: feet | E21: Maximum Allowable Sag: | G21: 5 | H21: percent
A24: Rank loading ID's from right to left ( Support 2 to Support 1) and calculate wire segment lengths:
A26: The spreadsheet assumes that 3 wire segments are placed before the first point load and 2 wire segments are placed after the last point load. The number of point loads is calculated by adding the number of point loads input and adding 5 point loads due to the wire segments.
B28: Original Rank w/o Wire | C28: Re-rank | D28: Final Rank | E28: Loading ID | F28: Distance
B29: =IF(F29<>"N/A",RANK(F29,$F$29:$F$37,1),"Exclude") -> 6 | C29: =IF(ISNUMBER(B29)=TRUE,B29,MAX($B$29:$B$37)+1) -> 6 | D29: =RANK(C29,$C$29:$C$37,1) -> 6 | E29: M | F29: =IF(Input!E61="None","N/A",Input!F61) -> 131
B30: 5 | C30: =IF(ISNUMBER(B30)=TRUE,B30,MAX($B$29:$B$37)+2) -> 5 | D30: 5 | E30: N | F30: =IF(Input!E62="None","N/A",Input!F62) -> 89
B31: 3 | C31: =IF(ISNUMBER(B31)=TRUE,B31,MAX($B$29:$B$37)+3) -> 3 | D31: 3 | E31: O | F31: =IF(Input!E63="None","N/A",Input!F63) -> 68
B32: 2 | C32: =IF(ISNUMBER(B32)=TRUE,B32,MAX($B$29:$B$37)+4) -> 2 | D32: 2 | E32: P | F32: =IF(Input!E64="None","N/A",Input!F64) -> 51
B33: 4 | C33: =IF(ISNUMBER(B33)=TRUE,B33,MAX($B$29:$B$37)+5) -> 4 | D33: 4 | E33: R | F33: =IF(Input!D65="None","N/A",Input!F65) -> 79
B34: Exclude | C34: =IF(ISNUMBER(B34)=TRUE,B34,MAX($B$29:$B$37)+6) -> 12 | D34: 7 | E34: S | F34: =IF(Input!D66="None","N/A",Input!F66) -> N/A
B35: Exclude | C35: =IF(ISNUMBER(B35)=TRUE,B35,MAX($B$29:$B$37)+7) -> 13 | D35: 8 | E35: T | F35: =IF(Input!D67="None","N/A",Input!F67) -> N/A
B36: Exclude | C36: =IF(ISNUMBER(B36)=TRUE,B36,MAX($B$29:$B$37)+8) -> 14 | D36: 9 | E36: U | F36: =IF(Input!D68="None","N/A",Input!F68) -> N/A
B37: 1 | C37: =IF(ISNUMBER(B37)=TRUE,B37,MAX($B$29:$B$37)+9) -> 1 | D37: 1 | E37: Y | F37: =IF(Input!D69="None","N/A",Input!F69) -> 22
C39: Rank | D39: Loading ID | E39: Distance | F39: Count
C40: 1 | D40: =VLOOKUP(C40,$D$29:$F$37,2,0) -> Y | E40: =VLOOKUP(C40,$D$29:$F$37,3,0) -> 22 | F40: =IF(E40<>"N/A",1,0) -> 1
C41: 2 | D41: P | E41: 51 | F41: 1
C42: 3 | D42: O | E42: 68 | F42: 1
C43: 4 | D43: R | E43: 79 | F43: 1
C44: 5 | D44: N | E44: 89 | F44: 1
C45: 6 | D45: M | E45: 131 | F45: 1
C46: 7 | D46: S | E46: N/A | F46: 0
C47: 8 | D47: T | E47: N/A | F47: 0
C48: 9 | D48: U | E48: N/A | F48: 0
C49: Wire Sections | D49: W1 | E49: =MIN(E40:E48)/3 -> 7.333333333
D50: W2 | E50: =MIN(E40:E48)/3+E49 -> 14.66666667 | H50: Number of Point Loads: | I50: =SUM(F40:F48) -> 6
D51: W3 | E51: =(C21-MAX(E40:E48))/4+MAX(E40:E48) -> 141.5 | H51: No. of Point Loads w/ Wire Segments: | I51: =I50+5 -> 11
D52: W4 | E52: =(C21-MAX(E40:E48))/4+E51 -> 152
D53: W5 | E53: =(C21-MAX(E40:E48))/4+E52 -> 162.5
D54: W6 | E54: =C21 -> 173
A57: Rank ID's and Wire Segments from right to left ( Support 2 to Support 1) and calculate loading:
C59: Original Rank With Wire | D59: Re-rank | E59: Final Rank | F59: Loading ID | G59: Distance
C60: =IF(E40<>"N/A",RANK(E40,$E$40:$E$54,1),"Exclude") -> 3 | D60: =IF(ISNUMBER(C60)=TRUE,C60,MAX($C$60:$C$74)+1) -> 3 | E60: =RANK(D60,$D$60:$D$74,1) -> 3 | F60: =D40 -> Y | G60: =E40 -> 22
C61: 4 | D61: =IF(ISNUMBER(C61)=TRUE,C61,MAX($C$60:$C$74)+2) -> 4 | E61: 4 | F61: P | G61: 51
C62: 5 | D62: =IF(ISNUMBER(C62)=TRUE,C62,MAX($C$60:$C$74)+3) -> 5 | E62: 5 | F62: O | G62: 68
C63: 6 | D63: =IF(ISNUMBER(C63)=TRUE,C63,MAX($C$60:$C$74)+4) -> 6 | E63: 6 | F63: R | G63: 79
C64: 7 | D64: =IF(ISNUMBER(C64)=TRUE,C64,MAX($C$60:$C$74)+5) -> 7 | E64: 7 | F64: N | G64: 89
C65: 8 | D65: =IF(ISNUMBER(C65)=TRUE,C65,MAX($C$60:$C$74)+6) -> 8 | E65: 8 | F65: M | G65: 131
C66: Exclude | D66: =IF(ISNUMBER(C66)=TRUE,C66,MAX($C$60:$C$74)+7) -> 19 | E66: 13 | F66: S | G66: N/A
C67: Exclude | D67: =IF(ISNUMBER(C67)=TRUE,C67,MAX($C$60:$C$74)+8) -> 20 | E67: 14 | F67: T | G67: N/A
C68: Exclude | D68: =IF(ISNUMBER(C68)=TRUE,C68,MAX($C$60:$C$74)+9) -> 21 | E68: 15 | F68: U | G68: N/A
C69: 1 | D69: =IF(ISNUMBER(C69)=TRUE,C69,MAX($C$60:$C$74)+10) -> 1 | E69: 1 | F69: W1 | G69: 7.333333333
C70: 2 | D70: =IF(ISNUMBER(C70)=TRUE,C70,MAX($C$60:$C$74)+11) -> 2 | E70: 2 | F70: W2 | G70: 14.66666667
C71: 9 | D71: =IF(ISNUMBER(C71)=TRUE,C71,MAX($C$60:$C$74)+12) -> 9 | E71: 9 | F71: W3 | G71: 141.5
C72: 10 | D72: =IF(ISNUMBER(C72)=TRUE,C72,MAX($C$60:$C$74)+13) -> 10 | E72: 10 | F72: W4 | G72: 152
C73: 11 | D73: =IF(ISNUMBER(C73)=TRUE,C73,MAX($C$60:$C$74)+14) -> 11 | E73: 11 | F73: W5 | G73: 162.5
C74: 12 | D74: =IF(ISNUMBER(C74)=TRUE,C74,MAX($C$60:$C$74)+15) -> 12 | E74: 12 | F74: W6 | G74: 173
B76: Final Rank | C76: Loading ID | D76: Distance | E76: Distance for Table | F76: Load description | G76: Signal Config/Sign Size/Wire Dia
B77: 1 | C77: =VLOOKUP(B77,$E$60:$G$74,2,0) -> W1 | D77: =VLOOKUP(B77,$E$60:$G$74,3,0) -> 7.333333333 | E77: =IF(ISNUMBER(D77),D77,0) -> 7.333333333 | F77: =IF(OR(C77=$D$49,C77=$D$50,C77=$D$51,C77=$D$52,C77=$D$53,C77=$D$54),"Wire",VLOOKUP(C77,Input!$B$61:$C$69,2,0)) -> Wire | G77: =IF(F77="Signal",VLOOKUP(C77,Input!$B$61:$F$69,4,0),IF(F77="Sign",VLOOKUP(C77,Input!$B$61:$F$69,3,0),SW1_Wire_Dia)) -> 0.5"
B78: 2 | C78: W2 | D78: 14.66666667 | E78: 14.66666667 | F78: =IF(OR(C78=$D$49,C78=$D$50,C78=$D$51,C78=$D$52,C78=$D$53,C78=$D$54),"Wire",VLOOKUP(C78,Input!$B$61:$C$69,2,0)) -> Wire | G78: =IF(F78="Signal",VLOOKUP(C78,Input!$B$61:$F$69,4,0),IF(F78="Sign",VLOOKUP(C78,Input!$B$61:$F$69,3,0),SW1_Wire_Dia)) -> 0.5"
B79: 3 | C79: Y | D79: 22 | E79: 22 | F79: =IF(OR(C79=$D$49,C79=$D$50,C79=$D$51,C79=$D$52,C79=$D$53,C79=$D$54),"Wire",VLOOKUP(C79,Input!$B$61:$C$69,2,0)) -> Sign | G79: =IF(F79="Signal",VLOOKUP(C79,Input!$B$61:$F$69,4,0),IF(F79="Sign",VLOOKUP(C79,Input!$B$61:$F$69,3,0),SW1_Wire_Dia)) -> 96" x 32"
B80: 4 | C80: P | D80: 51 | E80: 51 | F80: =IF(OR(C80=$D$49,C80=$D$50,C80=$D$51,C80=$D$52,C80=$D$53,C80=$D$54),"Wire",VLOOKUP(C80,Input!$B$61:$C$69,2,0)) -> Signal | G80: =IF(F80="Signal",VLOOKUP(C80,Input!$B$61:$F$69,4,0),IF(F80="Sign",VLOOKUP(C80,Input!$B$61:$F$69,3,0),SW1_Wire_Dia)) -> A-3
B81: 5 | C81: O | D81: 68 | E81: 68 | F81: =IF(OR(C81=$D$49,C81=$D$50,C81=$D$51,C81=$D$52,C81=$D$53,C81=$D$54),"Wire",VLOOKUP(C81,Input!$B$61:$C$69,2,0)) -> Signal | G81: =IF(F81="Signal",VLOOKUP(C81,Input!$B$61:$F$69,4,0),IF(F81="Sign",VLOOKUP(C81,Input!$B$61:$F$69,3,0),SW1_Wire_Dia)) -> A-3
B82: 6 | C82: R | D82: 79 | E82: 79 | F82: =IF(OR(C82=$D$49,C82=$D$50,C82=$D$51,C82=$D$52,C82=$D$53,C82=$D$54),"Wire",VLOOKUP(C82,Input!$B$61:$C$69,2,0)) -> Sign | G82: =IF(F82="Signal",VLOOKUP(C82,Input!$B$61:$F$69,4,0),IF(F82="Sign",VLOOKUP(C82,Input!$B$61:$F$69,3,0),SW1_Wire_Dia)) -> 30" x 36"
B83: 7 | C83: N | D83: 89 | E83: 89 | F83: =IF(OR(C83=$D$49,C83=$D$50,C83=$D$51,C83=$D$52,C83=$D$53,C83=$D$54),"Wire",VLOOKUP(C83,Input!$B$61:$C$69,2,0)) -> Signal | G83: =IF(F83="Signal",VLOOKUP(C83,Input!$B$61:$F$69,4,0),IF(F83="Sign",VLOOKUP(C83,Input!$B$61:$F$69,3,0),SW1_Wire_Dia)) -> A-3
B84: 8 | C84: M | D84: 131 | E84: 131 | F84: =IF(OR(C84=$D$49,C84=$D$50,C84=$D$51,C84=$D$52,C84=$D$53,C84=$D$54),"Wire",VLOOKUP(C84,Input!$B$61:$C$69,2,0)) -> Signal | G84: =IF(F84="Signal",VLOOKUP(C84,Input!$B$61:$F$69,4,0),IF(F84="Sign",VLOOKUP(C84,Input!$B$61:$F$69,3,0),SW1_Wire_Dia)) -> A-3
B85: 9 | C85: W3 | D85: 141.5 | E85: 141.5 | F85: =IF(OR(C85=$D$49,C85=$D$50,C85=$D$51,C85=$D$52,C85=$D$53,C85=$D$54),"Wire",VLOOKUP(C85,Input!$B$61:$C$69,2,0)) -> Wire | G85: =IF(F85="Signal",VLOOKUP(C85,Input!$B$61:$F$69,4,0),IF(F85="Sign",VLOOKUP(C85,Input!$B$61:$F$69,3,0),SW1_Wire_Dia)) -> 0.5"
B86: 10 | C86: W4 | D86: 152 | E86: 152 | F86: =IF(OR(C86=$D$49,C86=$D$50,C86=$D$51,C86=$D$52,C86=$D$53,C86=$D$54),"Wire",VLOOKUP(C86,Input!$B$61:$C$69,2,0)) -> Wire | G86: =IF(F86="Signal",VLOOKUP(C86,Input!$B$61:$F$69,4,0),IF(F86="Sign",VLOOKUP(C86,Input!$B$61:$F$69,3,0),SW1_Wire_Dia)) -> 0.5"
B87: 11 | C87: W5 | D87: 162.5 | E87: 162.5 | F87: =IF(OR(C87=$D$49,C87=$D$50,C87=$D$51,C87=$D$52,C87=$D$53,C87=$D$54),"Wire",VLOOKUP(C87,Input!$B$61:$C$69,2,0)) -> Wire | G87: =IF(F87="Signal",VLOOKUP(C87,Input!$B$61:$F$69,4,0),IF(F87="Sign",VLOOKUP(C87,Input!$B$61:$F$69,3,0),SW1_Wire_Dia)) -> 0.5"
B88: 12 | C88: W6 | D88: 173 | E88: 173 | F88: =IF(OR(C88=$D$49,C88=$D$50,C88=$D$51,C88=$D$52,C88=$D$53,C88=$D$54),"Wire",VLOOKUP(C88,Input!$B$61:$C$69,2,0)) -> Wire | G88: =IF(F88="Signal",VLOOKUP(C88,Input!$B$61:$F$69,4,0),IF(F88="Sign",VLOOKUP(C88,Input!$B$61:$F$69,3,0),SW1_Wire_Dia)) -> 0.5"
B89: 13 | C89: S | D89: N/A | E89: 0 | F89: =IF(OR(C89=$D$49,C89=$D$50,C89=$D$51,C89=$D$52,C89=$D$53,C89=$D$54),"Wire",VLOOKUP(C89,Input!$B$61:$C$69,2,0)) -> Sign | G89: =IF(F89="Signal",VLOOKUP(C89,Input!$B$61:$F$69,4,0),IF(F89="Sign",VLOOKUP(C89,Input!$B$61:$F$69,3,0),SW1_Wire_Dia)) -> None
B90: 14 | C90: T | D90: N/A | E90: 0 | F90: =IF(OR(C90=$D$49,C90=$D$50,C90=$D$51,C90=$D$52,C90=$D$53,C90=$D$54),"Wire",VLOOKUP(C90,Input!$B$61:$C$69,2,0)) -> Sign | G90: =IF(F90="Signal",VLOOKUP(C90,Input!$B$61:$F$69,4,0),IF(F90="Sign",VLOOKUP(C90,Input!$B$61:$F$69,3,0),SW1_Wire_Dia)) -> None
B91: 15 | C91: U | D91: N/A | E91: 0 | F91: =IF(OR(C91=$D$49,C91=$D$50,C91=$D$51,C91=$D$52,C91=$D$53,C91=$D$54),"Wire",VLOOKUP(C91,Input!$B$61:$C$69,2,0)) -> Sign | G91: =IF(F91="Signal",VLOOKUP(C91,Input!$B$61:$F$69,4,0),IF(F91="Sign",VLOOKUP(C91,Input!$B$61:$F$69,3,0),SW1_Wire_Dia)) -> None
A93: Calculate Loads:
B95: Wire Weights:
C96: Wire Weight = | D96: =VLOOKUP(SW1_Wire_Dia,'Pick Lists & Data'!A29:B33,2,0) -> 1 | E96: lb/ft
C97: Wire Wind Load = | D97: =VLOOKUP(SW1_Wire_Dia,'Pick Lists & Data'!A29:L33,10,0) -> 1.269077333 | E97: lb/ft
C98: Wire Ice Load = | D98: =VLOOKUP(SW1_Wire_Dia,'Pick Lists & Data'!A29:L33,12,0) -> 0.4 | E98: lb/ft
A100: Loading Final Rank | B100: Distance for Table | C100: Signal Config/Sign Size/Wire Dia | D100: Wire Segment Dead Load | E100: Signal/Sign Dead Load | F100: Wire Segment Wind Load | G100: Signal/Sign Wind Load | H100: Wire Segment Ice Load | I100: Signal/Sign Ice Load
A101: =B77 -> 1 | B101: =E77 -> 7.333333333 | C101: =G77 -> 0.5" | D101: =$D$77+($D$78-$D$77)*0.5*$D$96 -> 11 | E101: =IF($F77="Wire",0,IF($F77="Sign",VLOOKUP($G77,'Pick Lists & Data'!$A$39:$G$43,2,0),VLOOKUP($G77,'Pick Lists & Data'!$A$11:$H$25,2,0))) -> 0 | F101: =$D$77+($D$78-$D$77)*0.5*$D$97 -> 11.98661689 | G101: =IF($F77="Wire",0,IF($F77="Sign",VLOOKUP($G77,'Pick Lists & Data'!$A$39:$G$43,6,0),VLOOKUP($G77,'Pick Lists & Data'!$A$11:$H$25,6,0))) -> 0 | H101: =$D$77+($D$78-$D$77)*0.5*$D$98 -> 8.8 | I101: =IF($F77="Wire",0,IF($F77="Sign",VLOOKUP($G77,'Pick Lists & Data'!$A$39:$G$43,7,0),VLOOKUP($G77,'Pick Lists & Data'!$A$11:$H$25,8,0))) -> 0
A102: 2 | B102: 14.66666667 | C102: 0.5" | D102: =IF($E79=0,0,IF($E78<$C$21,(($E78-$E77)*0.5+($E79-$E78)*0.5)*$D$96,(($E78-$E77)*0.5+($E79-E$78))*$D$96)) -> 7.333333333 | E102: =IF(F78="Wire",0,IF(F78="Sign",VLOOKUP(G78,'Pick Lists & Data'!$A$39:$G$43,2,0),VLOOKUP(G78,'Pick Lists & Data'!$A$11:$H$25,2,0))) -> 0 | F102: =IF($E79=0,0,IF($E78<$C$21,(($E78-$E77)*0.5+($E79-$E78)*0.5)*$D$97,(($E78-$E77)*0.5+($E79-G$78))*$D$97)) -> 9.306567111 | G102: =IF($F78="Wire",0,IF($F78="Sign",VLOOKUP($G78,'Pick Lists & Data'!$A$39:$G$43,6,0),VLOOKUP($G78,'Pick Lists & Data'!$A$11:$H$25,6,0))) -> 0 | H102: =IF($E79=0,0,IF($E78<$C$21,(($E78-$E77)*0.5+($E79-$E78)*0.5)*$D$98,(($E78-$E77)*0.5+($E79-E$102))*$D$98)) -> 2.933333333 | I102: =IF($F78="Wire",0,IF($F78="Sign",VLOOKUP($G78,'Pick Lists & Data'!$A$39:$G$43,7,0),VLOOKUP($G78,'Pick Lists & Data'!$A$11:$H$25,8,0))) -> 0
A103: 3 | B103: 22 | C103: 96" x 32" | D103: 18.16666667 | E103: =IF(F79="Wire",0,IF(F79="Sign",VLOOKUP(G79,'Pick Lists & Data'!$A$39:$G$43,2,0),VLOOKUP(G79,'Pick Lists & Data'!$A$11:$H$25,2,0))) -> 106 | F103: 23.05490489 | G103: =IF($F79="Wire",0,IF($F79="Sign",VLOOKUP($G79,'Pick Lists & Data'!$A$39:$G$43,6,0),VLOOKUP($G79,'Pick Lists & Data'!$A$11:$H$25,6,0))) -> 708.7266202 | H103: 7.266666667 | I103: =IF($F79="Wire",0,IF($F79="Sign",VLOOKUP($G79,'Pick Lists & Data'!$A$39:$G$43,7,0),VLOOKUP($G79,'Pick Lists & Data'!$A$11:$H$25,8,0))) -> 63.99
A104: 4 | B104: 51 | C104: A-3 | D104: 23 | E104: =IF(F80="Wire",0,IF(F80="Sign",VLOOKUP(G80,'Pick Lists & Data'!$A$39:$G$43,2,0),VLOOKUP(G80,'Pick Lists & Data'!$A$11:$H$25,2,0))) -> 70 | F104: 29.18877867 | G104: =IF($F80="Wire",0,IF($F80="Sign",VLOOKUP($G80,'Pick Lists & Data'!$A$39:$G$43,6,0),VLOOKUP($G80,'Pick Lists & Data'!$A$11:$H$25,6,0))) -> 291.0663475 | H104: 9.2 | I104: =IF($F80="Wire",0,IF($F80="Sign",VLOOKUP($G80,'Pick Lists & Data'!$A$39:$G$43,7,0),VLOOKUP($G80,'Pick Lists & Data'!$A$11:$H$25,8,0))) -> 58.56
A105: 5 | B105: 68 | C105: A-3 | D105: 14 | E105: =IF(F81="Wire",0,IF(F81="Sign",VLOOKUP(G81,'Pick Lists & Data'!$A$39:$G$43,2,0),VLOOKUP(G81,'Pick Lists & Data'!$A$11:$H$25,2,0))) -> 70 | F105: 17.76708267 | G105: =IF($F81="Wire",0,IF($F81="Sign",VLOOKUP($G81,'Pick Lists & Data'!$A$39:$G$43,6,0),VLOOKUP($G81,'Pick Lists & Data'!$A$11:$H$25,6,0))) -> 291.0663475 | H105: 5.6 | I105: =IF($F81="Wire",0,IF($F81="Sign",VLOOKUP($G81,'Pick Lists & Data'!$A$39:$G$43,7,0),VLOOKUP($G81,'Pick Lists & Data'!$A$11:$H$25,8,0))) -> 58.56
A106: 6 | B106: 79 | C106: 30" x 36" | D106: 10.5 | E106: =IF(F82="Wire",0,IF(F82="Sign",VLOOKUP(G82,'Pick Lists & Data'!$A$39:$G$43,2,0),VLOOKUP(G82,'Pick Lists & Data'!$A$11:$H$25,2,0))) -> 39 | F106: 13.325312 | G106: =IF($F82="Wire",0,IF($F82="Sign",VLOOKUP($G82,'Pick Lists & Data'!$A$39:$G$43,6,0),VLOOKUP($G82,'Pick Lists & Data'!$A$11:$H$25,6,0))) -> 247.123968 | H106: 4.2 | I106: =IF($F82="Wire",0,IF($F82="Sign",VLOOKUP($G82,'Pick Lists & Data'!$A$39:$G$43,7,0),VLOOKUP($G82,'Pick Lists & Data'!$A$11:$H$25,8,0))) -> 22.5
A107: 7 | B107: 89 | C107: A-3 | D107: 26 | E107: =IF(F83="Wire",0,IF(F83="Sign",VLOOKUP(G83,'Pick Lists & Data'!$A$39:$G$43,2,0),VLOOKUP(G83,'Pick Lists & Data'!$A$11:$H$25,2,0))) -> 70 | F107: 32.99601067 | G107: =IF($F83="Wire",0,IF($F83="Sign",VLOOKUP($G83,'Pick Lists & Data'!$A$39:$G$43,6,0),VLOOKUP($G83,'Pick Lists & Data'!$A$11:$H$25,6,0))) -> 291.0663475 | H107: 10.4 | I107: =IF($F83="Wire",0,IF($F83="Sign",VLOOKUP($G83,'Pick Lists & Data'!$A$39:$G$43,7,0),VLOOKUP($G83,'Pick Lists & Data'!$A$11:$H$25,8,0))) -> 58.56
A108: 8 | B108: 131 | C108: A-3 | D108: 26.25 | E108: =IF(F84="Wire",0,IF(F84="Sign",VLOOKUP(G84,'Pick Lists & Data'!$A$39:$G$43,2,0),VLOOKUP(G84,'Pick Lists & Data'!$A$11:$H$25,2,0))) -> 70 | F108: 33.31328 | G108: =IF($F84="Wire",0,IF($F84="Sign",VLOOKUP($G84,'Pick Lists & Data'!$A$39:$G$43,6,0),VLOOKUP($G84,'Pick Lists & Data'!$A$11:$H$25,6,0))) -> 291.0663475 | H108: 10.5 | I108: =IF($F84="Wire",0,IF($F84="Sign",VLOOKUP($G84,'Pick Lists & Data'!$A$39:$G$43,7,0),VLOOKUP($G84,'Pick Lists & Data'!$A$11:$H$25,8,0))) -> 58.56
A109: 9 | B109: 141.5 | C109: 0.5" | D109: 10.5 | E109: =IF(F85="Wire",0,IF(F85="Sign",VLOOKUP(G85,'Pick Lists & Data'!$A$39:$G$43,2,0),VLOOKUP(G85,'Pick Lists & Data'!$A$11:$H$25,2,0))) -> 0 | F109: 13.325312 | G109: =IF($F85="Wire",0,IF($F85="Sign",VLOOKUP($G85,'Pick Lists & Data'!$A$39:$G$43,6,0),VLOOKUP($G85,'Pick Lists & Data'!$A$11:$H$25,6,0))) -> 0 | H109: 4.2 | I109: =IF($F85="Wire",0,IF($F85="Sign",VLOOKUP($G85,'Pick Lists & Data'!$A$39:$G$43,7,0),VLOOKUP($G85,'Pick Lists & Data'!$A$11:$H$25,8,0))) -> 0
A110: 10 | B110: 152 | C110: 0.5" | D110: 10.5 | E110: =IF(F86="Wire",0,IF(F86="Sign",VLOOKUP(G86,'Pick Lists & Data'!$A$39:$G$43,2,0),VLOOKUP(G86,'Pick Lists & Data'!$A$11:$H$25,2,0))) -> 0 | F110: 13.325312 | G110: =IF($F86="Wire",0,IF($F86="Sign",VLOOKUP($G86,'Pick Lists & Data'!$A$39:$G$43,6,0),VLOOKUP($G86,'Pick Lists & Data'!$A$11:$H$25,6,0))) -> 0 | H110: 4.2 | I110: =IF($F86="Wire",0,IF($F86="Sign",VLOOKUP($G86,'Pick Lists & Data'!$A$39:$G$43,7,0),VLOOKUP($G86,'Pick Lists & Data'!$A$11:$H$25,8,0))) -> 0
A111: 11 | B111: 162.5 | C111: 0.5" | D111: 10.5 | E111: =IF(F87="Wire",0,IF(F87="Sign",VLOOKUP(G87,'Pick Lists & Data'!$A$39:$G$43,2,0),VLOOKUP(G87,'Pick Lists & Data'!$A$11:$H$25,2,0))) -> 0 | F111: 13.325312 | G111: =IF($F87="Wire",0,IF($F87="Sign",VLOOKUP($G87,'Pick Lists & Data'!$A$39:$G$43,6,0),VLOOKUP($G87,'Pick Lists & Data'!$A$11:$H$25,6,0))) -> 0 | H111: 4.2 | I111: =IF($F87="Wire",0,IF($F87="Sign",VLOOKUP($G87,'Pick Lists & Data'!$A$39:$G$43,7,0),VLOOKUP($G87,'Pick Lists & Data'!$A$11:$H$25,8,0))) -> 0
A112: 12 | B112: 173 | C112: 0.5" | D112: 0 | E112: =IF(F88="Wire",0,IF(F88="Sign",VLOOKUP(G88,'Pick Lists & Data'!$A$39:$G$43,2,0),VLOOKUP(G88,'Pick Lists & Data'!$A$11:$H$25,2,0))) -> 0 | F112: 0 | G112: =IF($F88="Wire",0,IF($F88="Sign",VLOOKUP($G88,'Pick Lists & Data'!$A$39:$G$43,6,0),VLOOKUP($G88,'Pick Lists & Data'!$A$11:$H$25,6,0))) -> 0 | H112: 0 | I112: =IF($F88="Wire",0,IF($F88="Sign",VLOOKUP($G88,'Pick Lists & Data'!$A$39:$G$43,7,0),VLOOKUP($G88,'Pick Lists & Data'!$A$11:$H$25,8,0))) -> 0
A113: 13 | B113: 0 | C113: None | D113: 0 | E113: =IF(F89="Wire",0,IF(F89="Sign",VLOOKUP(G89,'Pick Lists & Data'!$A$39:$G$43,2,0),VLOOKUP(G89,'Pick Lists & Data'!$A$11:$H$25,2,0))) -> 0 | F113: 0 | G113: =IF($F89="Wire",0,IF($F89="Sign",VLOOKUP($G89,'Pick Lists & Data'!$A$39:$G$43,6,0),VLOOKUP($G89,'Pick Lists & Data'!$A$11:$H$25,6,0))) -> 0 | H113: 0 | I113: =IF($F89="Wire",0,IF($F89="Sign",VLOOKUP($G89,'Pick Lists & Data'!$A$39:$G$43,7,0),VLOOKUP($G89,'Pick Lists & Data'!$A$11:$H$25,8,0))) -> 0
A114: 14 | B114: 0 | C114: None | D114: 0 | E114: =IF(F90="Wire",0,IF(F90="Sign",VLOOKUP(G90,'Pick Lists & Data'!$A$39:$G$43,2,0),VLOOKUP(G90,'Pick Lists & Data'!$A$11:$H$25,2,0))) -> 0 | F114: 0 | G114: =IF($F90="Wire",0,IF($F90="Sign",VLOOKUP($G90,'Pick Lists & Data'!$A$39:$G$43,6,0),VLOOKUP($G90,'Pick Lists & Data'!$A$11:$H$25,6,0))) -> 0 | H114: 0 | I114: =IF($F90="Wire",0,IF($F90="Sign",VLOOKUP($G90,'Pick Lists & Data'!$A$39:$G$43,7,0),VLOOKUP($G90,'Pick Lists & Data'!$A$11:$H$25,8,0))) -> 0
A115: 15 | B115: 0 | C115: None | D115: =IF($T162=0,0,IF($E91<$C$21,(($E91-$E90)*0.5+($T162-$E91)*0.5)*$D$96,(($E91-$E90)*0.5+($T162-E$78))*$D$96)) -> 0 | E115: =IF(F91="Wire",0,IF(F91="Sign",VLOOKUP(G91,'Pick Lists & Data'!$A$39:$G$43,2,0),VLOOKUP(G91,'Pick Lists & Data'!$A$11:$H$25,2,0))) -> 0 | F115: =IF($T162=0,0,IF($E91<$C$21,(($E91-$E90)*0.5+($T162-$E91)*0.5)*$D$97,(($E91-$E90)*0.5+($T162-G$78))*$D$97)) -> 0 | G115: =IF($F91="Wire",0,IF($F91="Sign",VLOOKUP($G91,'Pick Lists & Data'!$A$39:$G$43,6,0),VLOOKUP($G91,'Pick Lists & Data'!$A$11:$H$25,6,0))) -> 0 | H115: =IF($T162=0,0,IF($E91<$C$21,(($E91-$E90)*0.5+($T162-$E91)*0.5)*$D$98,(($E91-$E90)*0.5+($T162-E$102))*$D$98)) -> 0 | I115: =IF($F91="Wire",0,IF($F91="Sign",VLOOKUP($G91,'Pick Lists & Data'!$A$39:$G$43,7,0),VLOOKUP($G91,'Pick Lists & Data'!$A$11:$H$25,8,0))) -> 0
A117: Place Distances and Loads into table for span wire analysis
B119: Loading Final Rank | C119: Distance (Xn) | D119: Dead Load | E119: Wind Load | F119: Ice Load | G119: Load Description | H119: Signal Config/Sign Size/Wire Diameter
B120: 1 | C120: =B101 -> 7.333333333 | D120: =SUM(D101:E101) -> 11 | E120: =SUM(F101:G101) -> 11.98661689 | F120: =SUM(H101:I101) -> 8.8 | G120: =F77 -> Wire | H120: =C101 -> 0.5"
B121: 2 | C121: =B102 -> 14.66666667 | D121: =SUM(D102:E102) -> 7.333333333 | E121: =SUM(F102:G102) -> 9.306567111 | F121: =SUM(H102:I102) -> 2.933333333 | G121: Wire | H121: =C102 -> 0.5"
B122: 3 | C122: 22 | D122: 124.1666667 | E122: 731.781525 | F122: 71.25666667 | G122: Sign | H122: 96" x 32"
B123: 4 | C123: 51 | D123: 93 | E123: 320.2551262 | F123: 67.76 | G123: Signal | H123: A-3
B124: 5 | C124: 68 | D124: 84 | E124: 308.8334302 | F124: 64.16 | G124: Signal | H124: A-3
B125: 6 | C125: 79 | D125: 49.5 | E125: 260.44928 | F125: 26.7 | G125: Sign | H125: 30" x 36"
B126: 7 | C126: 89 | D126: 96 | E126: 324.0623582 | F126: 68.96 | G126: Signal | H126: A-3
B127: 8 | C127: 131 | D127: 96.25 | E127: 324.3796275 | F127: 69.06 | G127: Signal | H127: A-3
B128: 9 | C128: 141.5 | D128: 10.5 | E128: 13.325312 | F128: 4.2 | G128: Wire | H128: 0.5"
B129: 10 | C129: 152 | D129: 10.5 | E129: 13.325312 | F129: 4.2 | G129: Wire | H129: 0.5"
B130: 11 | C130: 162.5 | D130: 10.5 | E130: 13.325312 | F130: 4.2 | G130: Wire | H130: 0.5"
B131: 12 | C131: 173 | D131: 0 | E131: 0 | F131: 0 | G131: Wire | H131: 0.5"
B132: 13 | C132: 0 | D132: 0 | E132: 0 | F132: 0 | G132: Sign | H132: None
B133: 14 | C133: 0 | D133: 0 | E133: 0 | F133: 0 | G133: Sign | H133: None
B134: 15 | C134: 0 | D134: 0 | E134: 0 | F134: 0 | G134: Sign | H134: None
D135: =SUM(D120:D134) -> 592.75 | E135: =SUM(E120:E134) -> 2331.030467
B137: * Distances MUST be entered in order, starting with the load closest to Support 1 and moving
B138: right towards Support 2. If all 14 loads are not used, a "null distance" and a "null load" must be
B139: assigned to the worksheet cell (ie. Enter a zero for each null value.)
A141: Dead Load (Group I Loading, also used for Groups II and III)
A143: Calculate Dead Load Reactions:
B144: Summing moments about Support 2 (Counter clockwise-moments positive):
B146: Loading | C146: Dead Load | D146: Arm | E146: Moment
B147: =B120 -> 1 | C147: =D120 -> 11 | D147: =C120 -> 7.333333333 | E147: =C147*D147 -> 80.66666667
B148: 2 | C148: 7.333333333 | D148: 14.66666667 | E148: 107.5555556
B149: 3 | C149: 124.1666667 | D149: 22 | E149: 2731.666667
B150: 4 | C150: 93 | D150: 51 | E150: 4743
B151: 5 | C151: 84 | D151: 68 | E151: 5712
B152: 6 | C152: 49.5 | D152: 79 | E152: 3910.5
B153: 7 | C153: 96 | D153: 89 | E153: 8544
B154: 8 | C154: 96.25 | D154: 131 | E154: 12608.75
B155: 9 | C155: 10.5 | D155: 141.5 | E155: 1485.75
B156: 10 | C156: 10.5 | D156: 152 | E156: 1596
B157: 11 | C157: 10.5 | D157: 162.5 | E157: 1706.25
B158: 12 | C158: 0 | D158: 173 | E158: 0
B159: 13 | C159: 0 | D159: 0 | E159: 0
B160: 14 | C160: 0 | D160: 0 | E160: 0
B161: 15 | C161: 0 | D161: 0 | E161: 0
B163: S MomentsSupport 2 = 0 = [(S Loadn * Xn)] - (R Support 1 * Length)
B164: R Support 1 = | C164: =(SUM(E147:E161)/C21) -> 249.8620745 | D164: lbs
B166: S Forcey = 0 = R Support 2 + R Support 1 - (S Loadn)
B167: R Support 2 = | C167: =(SUM(C147:C161))-C164 -> 342.8879255 | D167: lbs
A169: Dead Load Shear Diagram:
B170: Location | C170: Distance | D170: Load / Reaction | E170: Shear 1 | F170: Shear 2
B171: Support 2 | C171: 0 | D171: =C167 -> 342.8879255 | E171: =0 -> 0 | F171: =E171+C167 -> 342.8879255 | G171: =IF(AND(E171>=0,F171>=0),"+ / +",IF(AND(E171<=0,F171<=0),"- / -","+ / -")) -> + / + | H171: =IF(G171="+ / -","Low Point","") ->  | I171: =IF(H171="Low Point",C171," ") -> 
B172: =B120 -> 1 | C172: 7.333333333 | D172: 11 | E172: =IF(D172>0,F171," ") -> 342.8879255 | F172: =IF(D171>0,E172-D172," ") -> 331.8879255 | G172: =IF(AND(E172>=0,F172>=0),"+ / +",IF(AND(E172<=0,F172<=0),"- / -","+ / -")) -> + / + | H172: =IF(G172="+ / -","Low Point","") ->  | I172: =IF(H172="Low Point",C172," ") -> 
B173: 2 | C173: 14.66666667 | D173: 7.333333333 | E173: =F172 -> 331.8879255 | F173: =E173-D173 -> 324.5545922 | G173: + / +
B174: 3 | C174: 22 | D174: 124.1666667 | E174: =F173 -> 324.5545922 | F174: =E174-D174 -> 200.3879255 | G174: =IF(AND(E174>=0,F174>=0),"+ / +",IF(AND(E174<=0,F174<=0),"- / -","+ / -")) -> + / + | H174: =IF(G174="+ / -","Low Point","") ->  | I174: =IF(H174="Low Point",C174," ") -> 
B175: 4 | C175: 51 | D175: 93 | E175: =F174 -> 200.3879255 | F175: =E175-D175 -> 107.3879255 | G175: + / + | H175: =IF(G175="+ / -","Low Point","") -> 
B176: 5 | C176: 68 | D176: 84 | E176: =F175 -> 107.3879255 | F176: 23.3879255 | G176: + / +
B177: 6 | C177: 79 | D177: 49.5 | E177: 23.3879255 | F177: -26.1120745 | G177: + / - | H177: Low Point | I177: 79
B178: 7 | C178: 89 | D178: 96 | E178: -26.1120745 | F178: -122.1120745 | G178: - / -
B179: 8 | C179: 131 | D179: 96.25 | E179: -122.1120745 | F179: -218.3620745 | G179: =IF(AND(E179>=0,F179>=0),"+ / +",IF(AND(E179<=0,F179<=0),"- / -","+ / -")) -> - / - | I179: =IF(H179="Low Point",C179," ") -> 
B180: 9 | C180: 141.5 | D180: 10.5 | E180: -218.3620745 | F180: -228.8620745 | G180: - / -
B181: 10 | C181: 152 | D181: 10.5 | E181: -228.8620745 | F181: -239.3620745 | G181: - / -
B182: 11 | C182: 162.5 | D182: 10.5 | E182: -239.3620745 | F182: -249.8620745 | G182: - / -
B183: 12 | C183: 173 | D183: 0 | E183: -249.8620745 | F183: -249.8620745 | G183: - / -
B184: 13 | C184: 0 | D184: 0 | E184: -249.8620745 | F184: -249.8620745 | G184: - / -
B185: 14 | C185: 0 | D185: 0 | E185: -249.8620745 | F185: -249.8620745 | G185: - / -
B186: 15 | C186: 0 | D186: 0 | E186: =F185 -> -249.8620745 | F186: =E186-D186 -> -249.8620745 | G186: =IF(AND(E186>=0,F186>=0),"+ / +",IF(AND(E186<=0,F186<=0),"- / -","+ / -")) -> - / - | H186: =IF(G186="+ / -","Low Point","") ->  | I186: =IF(H186="Low Point",C186," ") -> 
B187: Support 1 | C187: =C21 -> 173 | D187: =C164 -> 249.8620745 | E187: =F186 -> -249.8620745 | F187: =E187+D187 -> 0 | G187: - / -
B189: The Low Point occurs at: | D189: =MAX(I171:I187) -> 79 | E189: feet from Support 2
A190: Calculation: Sum Moments about Low Point to Determine Horizontal Reaction:
B192: Maximum Allowable Sag: | D192: =(G21/100)*C21 -> 8.65 | E192: feet
B193: Summing Moments about the Low point (Counter-Clockwise Positive):
B195: Location | C195: Distance from Low Point | D195: Load | E195: Moment
B196: Support 2 | C196: =D189 -> 79 | D196: =D171 -> 342.8879255 | E196: =C196*D196 -> 27088.14611
B197: =B120 -> 1 | C197: =IF(C172=0,0,IF(C172<$D$189,($D$189-C172),0)) -> 71.66666667 | D197: 11 | E197: =-C197*D197 -> -788.3333333
B198: 2 | C198: 64.33333333 | D198: 7.333333333 | E198: =-C198*D198 -> -471.7777778
B199: 3 | C199: 57 | D199: 124.1666667 | E199: =-C199*D199 -> -7077.5
B200: 4 | C200: 28 | D200: 93 | E200: =-C200*D200 -> -2604
B201: 5 | C201: 11 | D201: 84 | E201: =-C201*D201 -> -924
B202: 6 | C202: 0 | D202: 49.5 | E202: 0
B203: 7 | C203: 0 | D203: 96 | E203: 0
B204: 8 | C204: 0 | D204: 96.25 | E204: 0
B205: 9 | C205: 0 | D205: 10.5 | E205: 0
B206: 10 | C206: 0 | D206: 10.5 | E206: 0
B207: 11 | C207: 0 | D207: 10.5 | E207: 0
B208: 12 | C208: 0 | D208: 0 | E208: 0
B209: 13 | C209: 0 | D209: 0 | E209: 0
B210: 14 | C210: 0 | D210: 0 | E210: 0
B211: 15 | C211: 0 | D211: 0 | E211: =-C211*D211 -> 0
B212: Support 1 | C212: 0 | D212: 249.8620745 | E212: 0
B214: Determine Horizontal force:
B215: H = | C215: =ABS(SUM(E196:E212)/D192) -> 1759.830636 | D215: lbs
A217: Calculate Actual Length of Cable (Accounting for sag, Dead Load Only):
B218: Fy = Shear 2, calculated above.
B220: Location | C220: Fy | D220: xi | E220: Length of Segment
B221: Support 1
B222: =B120 -> 1 | C222: =E172 -> 342.8879255 | D222: =IF(B222<($G$6+1),((C172-C171)),(IF(B222=($G$6+1),(($C$187-C171)),0))) -> 7.333333333 | E222: =SQRT($C$215^2+C222^2)*(D222/$C$215) -> 7.471235071
B223: 2 | C223: =E173 -> 331.8879255 | D223: 7.333333333 | E223: =SQRT($C$215^2+C223^2)*(D223/$C$215) -> 7.462604454
B224: 3 | C224: 324.5545922 | D224: 7.333333333 | E224: 7.457001696
B225: 4 | C225: 200.3879255 | D225: 29 | E225: 29.18739949
B226: 5 | C226: 107.3879255 | D226: 17 | E226: 17.03162164
B227: 6 | C227: 23.3879255 | D227: 11 | E227: 11.00097137
B228: 7 | C228: -26.1120745 | D228: 10 | E228: 10.00110075
B229: 8 | C229: -122.1120745 | D229: 42 | E229: 42.10098874
B230: 9 | C230: -218.3620745 | D230: 10.5 | E230: 10.58052114
B231: 10 | C231: -228.8620745 | D231: 10.5 | E231: 10.58841796
B232: 11 | C232: -239.3620745 | D232: 10.5 | E232: 10.59667929
B233: 12 | C233: -249.8620745 | D233: 10.5 | E233: 10.60530425
B234: 13 | C234: -249.8620745 | D234: 0 | E234: 0
B235: 14 | C235: -249.8620745 | D235: 0 | E235: 0
B236: 15 | C236: -249.8620745 | D236: 0 | E236: 0
B237: Support 2 | C237: -249.8620745 | D237: 0 | E237: 0
D239: Total Length = | E239: =SUM(E221:E237) -> 174.0838458
... 141 more rows

Sheet SW2
A1: Strain Pole Design - SW2 Cable Stringing Tension
A3: Assumptions: | B3: This spreadsheet calculates the tension in strain poles for overhead sign in accordance with the AASHTO Specifications for Structural Supports for Highway Signs, Luminaires and Traffic Signals 4th Edition 2001, including the 2002 and 2003 Interims (Per DM-4), and the Pennsylvania Department of Transportation Criteria for the Design of Traffic Related Structures.
B5: Number of assumed concentrated loads on the strain pole cable. Also must consider concentrated cable loads with a minimum of 5 segments. | I5: Y
F6: = | G6: =I51 -> 12
H7: M
B9: Support 1 (Left) | G9: X | I9: Support 2 (Right)
G13: Loadn
G17: Xn
E19: Length
B21: Length: | C21: =L2_ -> 145 | D21: feet | E21: Maximum Allowable Sag: | G21: 5 | H21: percent
A24: Rank loading ID's from right to left ( Support 2 to Support 1) and calculate wire segment lengths:
A26: The spreadsheet assumes that 3 wire segments are placed before the first point load and 2 wire segments are placed after the last point load. The number of point loads is calculated by adding the number of point loads input and adding 5 point loads due to the wire segments.
B28: Original Rank | C28: Re-rank | D28: Final Rank | E28: Loading ID | F28: Distance
B29: =IF(F29<>"N/A",RANK(F29,$F$29:$F$37,1),"Exclude") -> 7 | C29: =IF(ISNUMBER(B29)=TRUE,B29,MAX($B$29:$B$37)+1) -> 7 | D29: =RANK(C29,$C$29:$C$37,1) -> 7 | E29: M | F29: =IF(Input!H61="None","N/A",Input!I61) -> 117
B30: 6 | C30: =IF(ISNUMBER(B30)=TRUE,B30,MAX($B$29:$B$37)+2) -> 6 | D30: 6 | E30: N | F30: =IF(Input!H62="None","N/A",Input!I62) -> 70
B31: 4 | C31: =IF(ISNUMBER(B31)=TRUE,B31,MAX($B$29:$B$37)+3) -> 4 | D31: 4 | E31: O | F31: =IF(Input!H63="None","N/A",Input!I63) -> 55
B32: 3 | C32: =IF(ISNUMBER(B32)=TRUE,B32,MAX($B$29:$B$37)+4) -> 3 | D32: 3 | E32: P | F32: =IF(Input!H64="None","N/A",Input!I64) -> 42
B33: 5 | C33: =IF(ISNUMBER(B33)=TRUE,B33,MAX($B$29:$B$37)+5) -> 5 | D33: 5 | E33: R | F33: =IF(Input!G65="None","N/A",Input!I65) -> 65
B34: 2 | C34: =IF(ISNUMBER(B34)=TRUE,B34,MAX($B$29:$B$37)+6) -> 2 | D34: 2 | E34: S | F34: =IF(Input!G66="None","N/A",Input!I66) -> 36
B35: Exclude | C35: =IF(ISNUMBER(B35)=TRUE,B35,MAX($B$29:$B$37)+7) -> 14 | D35: 8 | E35: T | F35: =IF(Input!G67="None","N/A",Input!I67) -> N/A
B36: Exclude | C36: =IF(ISNUMBER(B36)=TRUE,B36,MAX($B$29:$B$37)+8) -> 15 | D36: 9 | E36: U | F36: =IF(Input!G68="None","N/A",Input!I68) -> N/A
B37: 1 | C37: =IF(ISNUMBER(B37)=TRUE,B37,MAX($B$29:$B$37)+9) -> 1 | D37: 1 | E37: Y | F37: =IF(Input!G69="None","N/A",Input!I69) -> 30
C39: Rank | D39: Loading ID | E39: Distance | F39: Count
C40: 1 | D40: =VLOOKUP(C40,$D$29:$F$37,2,0) -> Y | E40: =VLOOKUP(C40,$D$29:$F$37,3,0) -> 30 | F40: =IF(E40<>"N/A",1,0) -> 1
C41: 2 | D41: S | E41: 36 | F41: 1
C42: 3 | D42: P | E42: 42 | F42: 1
C43: 4 | D43: O | E43: 55 | F43: 1
C44: 5 | D44: R | E44: 65 | F44: 1
C45: 6 | D45: N | E45: 70 | F45: 1
C46: 7 | D46: M | E46: 117 | F46: 1
C47: 8 | D47: T | E47: N/A | F47: 0
C48: 9 | D48: U | E48: N/A | F48: 0
C49: Wire Sections | D49: W1 | E49: =MIN(E40:E48)/3 -> 10
D50: W2 | E50: =MIN(E40:E48)/3+E49 -> 20 | H50: Number of Point Loads: | I50: =SUM(F40:F48) -> 7
D51: W3 | E51: =(C21-MAX(E40:E48))/4+MAX(E40:E48) -> 124 | H51: No. of Point Loads w/ Wire Segments: | I51: =I50+5 -> 12
D52: W4 | E52: =(C21-MAX(E40:E48))/4+E51 -> 131
D53: W5 | E53: =(C21-MAX(E40:E48))/4+E52 -> 138
D54: W6 | E54: =C21 -> 145
A57: Rank ID's and Wire Segments from right to left ( Support 2 to Support 1) and calculate loading:
C59: Original Rank With Wire | D59: Re-rank | E59: Final Rank | F59: Loading ID | G59: Distance
C60: =IF(E40<>"N/A",RANK(E40,$E$40:$E$54,1),"Exclude") -> 3 | D60: =IF(ISNUMBER(C60)=TRUE,C60,MAX($C$60:$C$74)+1) -> 3 | E60: =RANK(D60,$D$60:$D$74,1) -> 3 | F60: =D40 -> Y | G60: 30
C61: 4 | D61: =IF(ISNUMBER(C61)=TRUE,C61,MAX($C$60:$C$74)+2) -> 4 | E61: 4 | F61: S | G61: 36
C62: 5 | D62: =IF(ISNUMBER(C62)=TRUE,C62,MAX($C$60:$C$74)+3) -> 5 | E62: 5 | F62: P | G62: 42
C63: 6 | D63: =IF(ISNUMBER(C63)=TRUE,C63,MAX($C$60:$C$74)+4) -> 6 | E63: 6 | F63: O | G63: 55
C64: 7 | D64: =IF(ISNUMBER(C64)=TRUE,C64,MAX($C$60:$C$74)+5) -> 7 | E64: 7 | F64: R | G64: 65
C65: 8 | D65: =IF(ISNUMBER(C65)=TRUE,C65,MAX($C$60:$C$74)+6) -> 8 | E65: 8 | F65: N | G65: 70
C66: 9 | D66: =IF(ISNUMBER(C66)=TRUE,C66,MAX($C$60:$C$74)+7) -> 9 | E66: 9 | F66: M | G66: 117
C67: Exclude | D67: =IF(ISNUMBER(C67)=TRUE,C67,MAX($C$60:$C$74)+8) -> 21 | E67: 14 | F67: T | G67: N/A
C68: Exclude | D68: =IF(ISNUMBER(C68)=TRUE,C68,MAX($C$60:$C$74)+9) -> 22 | E68: 15 | F68: U | G68: N/A
C69: 1 | D69: =IF(ISNUMBER(C69)=TRUE,C69,MAX($C$60:$C$74)+10) -> 1 | E69: 1 | F69: W1 | G69: 10
C70: 2 | D70: =IF(ISNUMBER(C70)=TRUE,C70,MAX($C$60:$C$74)+11) -> 2 | E70: 2 | F70: W2 | G70: 20
C71: 10 | D71: =IF(ISNUMBER(C71)=TRUE,C71,MAX($C$60:$C$74)+12) -> 10 | E71: 10 | F71: W3 | G71: 124
C72: 11 | D72: =IF(ISNUMBER(C72)=TRUE,C72,MAX($C$60:$C$74)+13) -> 11 | E72: 11 | F72: W4 | G72: 131
C73: 12 | D73: =IF(ISNUMBER(C73)=TRUE,C73,MAX($C$60:$C$74)+14) -> 12 | E73: 12 | F73: W5 | G73: 138
C74: 13 | D74: =IF(ISNUMBER(C74)=TRUE,C74,MAX($C$60:$C$74)+15) -> 13 | E74: 13 | F74: W6 | G74: 145
B76: Final Rank | C76: Loading ID | D76: Distance | E76: Distance for Table | F76: Load description | G76: Signal Config/Sign Size/Wire Dia
B77: 1 | C77: =VLOOKUP(B77,$E$60:$G$74,2,0) -> W1 | D77: =VLOOKUP(B77,$E$60:$G$74,3,0) -> 10 | E77: =IF(ISNUMBER(D77),D77,0) -> 10 | F77: =IF(OR(C77=$D$49,C77=$D$50,C77=$D$51,C77=$D$52,C77=$D$53,C77=$D$54),"Wire",VLOOKUP(C77,Input!$B$61:$C$69,2,0)) -> Wire | G77: =IF(F77="Signal",VLOOKUP(C77,Input!$B$61:$I$69,7,0),IF(F77="Sign",VLOOKUP(C77,Input!$B$61:$I$69,6,0),SW2_Wire_Dia)) -> 0.5"
B78: 2 | C78: W2 | D78: 20 | E78: 20 | F78: =IF(OR(C78=$D$49,C78=$D$50,C78=$D$51,C78=$D$52,C78=$D$53,C78=$D$54),"Wire",VLOOKUP(C78,Input!$B$61:$C$69,2,0)) -> Wire | G78: =IF(F78="Signal",VLOOKUP(C78,Input!$B$61:$I$69,7,0),IF(F78="Sign",VLOOKUP(C78,Input!$B$61:$I$69,6,0),SW2_Wire_Dia)) -> 0.5"
B79: 3 | C79: Y | D79: 30 | E79: 30 | F79: =IF(OR(C79=$D$49,C79=$D$50,C79=$D$51,C79=$D$52,C79=$D$53,C79=$D$54),"Wire",VLOOKUP(C79,Input!$B$61:$C$69,2,0)) -> Sign | G79: =IF(F79="Signal",VLOOKUP(C79,Input!$B$61:$I$69,7,0),IF(F79="Sign",VLOOKUP(C79,Input!$B$61:$I$69,6,0),SW2_Wire_Dia)) -> 96" x 32"
B80: 4 | C80: S | D80: 36 | E80: 36 | F80: =IF(OR(C80=$D$49,C80=$D$50,C80=$D$51,C80=$D$52,C80=$D$53,C80=$D$54),"Wire",VLOOKUP(C80,Input!$B$61:$C$69,2,0)) -> Sign | G80: =IF(F80="Signal",VLOOKUP(C80,Input!$B$61:$I$69,7,0),IF(F80="Sign",VLOOKUP(C80,Input!$B$61:$I$69,6,0),SW2_Wire_Dia)) -> 30" x 36"
B81: 5 | C81: P | D81: 42 | E81: 42 | F81: =IF(OR(C81=$D$49,C81=$D$50,C81=$D$51,C81=$D$52,C81=$D$53,C81=$D$54),"Wire",VLOOKUP(C81,Input!$B$61:$C$69,2,0)) -> Signal | G81: =IF(F81="Signal",VLOOKUP(C81,Input!$B$61:$I$69,7,0),IF(F81="Sign",VLOOKUP(C81,Input!$B$61:$I$69,6,0),SW2_Wire_Dia)) -> A-5
B82: 6 | C82: O | D82: 55 | E82: 55 | F82: =IF(OR(C82=$D$49,C82=$D$50,C82=$D$51,C82=$D$52,C82=$D$53,C82=$D$54),"Wire",VLOOKUP(C82,Input!$B$61:$C$69,2,0)) -> Signal | G82: =IF(F82="Signal",VLOOKUP(C82,Input!$B$61:$I$69,7,0),IF(F82="Sign",VLOOKUP(C82,Input!$B$61:$I$69,6,0),SW2_Wire_Dia)) -> A-3
B83: 7 | C83: R | D83: 65 | E83: 65 | F83: =IF(OR(C83=$D$49,C83=$D$50,C83=$D$51,C83=$D$52,C83=$D$53,C83=$D$54),"Wire",VLOOKUP(C83,Input!$B$61:$C$69,2,0)) -> Sign | G83: =IF(F83="Signal",VLOOKUP(C83,Input!$B$61:$I$69,7,0),IF(F83="Sign",VLOOKUP(C83,Input!$B$61:$I$69,6,0),SW2_Wire_Dia)) -> 30" x 36"
B84: 8 | C84: N | D84: 70 | E84: 70 | F84: =IF(OR(C84=$D$49,C84=$D$50,C84=$D$51,C84=$D$52,C84=$D$53,C84=$D$54),"Wire",VLOOKUP(C84,Input!$B$61:$C$69,2,0)) -> Signal | G84: =IF(F84="Signal",VLOOKUP(C84,Input!$B$61:$I$69,7,0),IF(F84="Sign",VLOOKUP(C84,Input!$B$61:$I$69,6,0),SW2_Wire_Dia)) -> A-3
B85: 9 | C85: M | D85: 117 | E85: 117 | F85: =IF(OR(C85=$D$49,C85=$D$50,C85=$D$51,C85=$D$52,C85=$D$53,C85=$D$54),"Wire",VLOOKUP(C85,Input!$B$61:$C$69,2,0)) -> Signal | G85: =IF(F85="Signal",VLOOKUP(C85,Input!$B$61:$I$69,7,0),IF(F85="Sign",VLOOKUP(C85,Input!$B$61:$I$69,6,0),SW2_Wire_Dia)) -> A-3
B86: 10 | C86: W3 | D86: 124 | E86: 124 | F86: =IF(OR(C86=$D$49,C86=$D$50,C86=$D$51,C86=$D$52,C86=$D$53,C86=$D$54),"Wire",VLOOKUP(C86,Input!$B$61:$C$69,2,0)) -> Wire | G86: =IF(F86="Signal",VLOOKUP(C86,Input!$B$61:$I$69,7,0),IF(F86="Sign",VLOOKUP(C86,Input!$B$61:$I$69,6,0),SW2_Wire_Dia)) -> 0.5"
B87: 11 | C87: W4 | D87: 131 | E87: 131 | F87: =IF(OR(C87=$D$49,C87=$D$50,C87=$D$51,C87=$D$52,C87=$D$53,C87=$D$54),"Wire",VLOOKUP(C87,Input!$B$61:$C$69,2,0)) -> Wire | G87: =IF(F87="Signal",VLOOKUP(C87,Input!$B$61:$I$69,7,0),IF(F87="Sign",VLOOKUP(C87,Input!$B$61:$I$69,6,0),SW2_Wire_Dia)) -> 0.5"
B88: 12 | C88: W5 | D88: 138 | E88: 138 | F88: =IF(OR(C88=$D$49,C88=$D$50,C88=$D$51,C88=$D$52,C88=$D$53,C88=$D$54),"Wire",VLOOKUP(C88,Input!$B$61:$C$69,2,0)) -> Wire | G88: =IF(F88="Signal",VLOOKUP(C88,Input!$B$61:$I$69,7,0),IF(F88="Sign",VLOOKUP(C88,Input!$B$61:$I$69,6,0),SW2_Wire_Dia)) -> 0.5"
B89: 13 | C89: W6 | D89: 145 | E89: 145 | F89: =IF(OR(C89=$D$49,C89=$D$50,C89=$D$51,C89=$D$52,C89=$D$53,C89=$D$54),"Wire",VLOOKUP(C89,Input!$B$61:$C$69,2,0)) -> Wire | G89: =IF(F89="Signal",VLOOKUP(C89,Input!$B$61:$I$69,7,0),IF(F89="Sign",VLOOKUP(C89,Input!$B$61:$I$69,6,0),SW2_Wire_Dia)) -> 0.5"
B90: 14 | C90: T | D90: N/A | E90: 0 | F90: =IF(OR(C90=$D$49,C90=$D$50,C90=$D$51,C90=$D$52,C90=$D$53,C90=$D$54),"Wire",VLOOKUP(C90,Input!$B$61:$C$69,2,0)) -> Sign | G90: =IF(F90="Signal",VLOOKUP(C90,Input!$B$61:$I$69,7,0),IF(F90="Sign",VLOOKUP(C90,Input!$B$61:$I$69,6,0),SW2_Wire_Dia)) -> None
B91: 15 | C91: U | D91: N/A | E91: 0 | F91: =IF(OR(C91=$D$49,C91=$D$50,C91=$D$51,C91=$D$52,C91=$D$53,C91=$D$54),"Wire",VLOOKUP(C91,Input!$B$61:$C$69,2,0)) -> Sign | G91: =IF(F91="Signal",VLOOKUP(C91,Input!$B$61:$I$69,7,0),IF(F91="Sign",VLOOKUP(C91,Input!$B$61:$I$69,6,0),SW2_Wire_Dia)) -> None
A93: Calculate Loads:
B95: Wire Weights:
C96: Wire Weight = | D96: =VLOOKUP(SW1_Wire_Dia,'Pick Lists & Data'!A29:B33,2,0) -> 1 | E96: lb/ft
C97: Wire Wind Load = | D97: =VLOOKUP(SW1_Wire_Dia,'Pick Lists & Data'!A29:L33,10,0) -> 1.269077333 | E97: lb/ft
C98: Wire Ice Load = | D98: =VLOOKUP(SW1_Wire_Dia,'Pick Lists & Data'!A29:L33,12,0) -> 0.4 | E98: lb/ft
A100: Loading Final Rank | B100: Distance for Table | C100: Signal Config/Sign Size/Wire Dia | D100: Wire Segment Dead Load | E100: Signal/Sign Dead Load | F100: Wire Segment Wind Load | G100: Signal/Sign Wind Load | H100: Wire Segment Ice Load | I100: Signal/Sign Ice Load
A101: =B77 -> 1 | B101: =E77 -> 10 | C101: =G77 -> 0.5" | D101: =$D$77+($D$78-$D$77)*0.5*$D$96 -> 15 | E101: =IF($F77="Wire",0,IF($F77="Sign",VLOOKUP($G77,'Pick Lists & Data'!$A$39:$G$43,2,0),VLOOKUP($G77,'Pick Lists & Data'!$A$11:$H$25,2,0))) -> 0 | F101: =$D$77+($D$78-$D$77)*0.5*$D$97 -> 16.34538667 | G101: =IF($F77="Wire",0,IF($F77="Sign",VLOOKUP($G77,'Pick Lists & Data'!$A$39:$G$43,6,0),VLOOKUP($G77,'Pick Lists & Data'!$A$11:$H$25,6,0))) -> 0 | H101: =$D$77+($D$78-$D$77)*0.5*$D$98 -> 12 | I101: =IF($F77="Wire",0,IF($F77="Sign",VLOOKUP($G77,'Pick Lists & Data'!$A$39:$G$43,7,0),VLOOKUP($G77,'Pick Lists & Data'!$A$11:$H$25,8,0))) -> 0
A102: 2 | B102: 20 | C102: 0.5" | D102: =IF($E79=0,0,IF($E78<$C$21,(($E78-$E77)*0.5+($E79-$E78)*0.5)*$D$96,(($E78-$E77)*0.5+($E79-E$78))*$D$96)) -> 10 | E102: =IF(F78="Wire",0,IF(F78="Sign",VLOOKUP(G78,'Pick Lists & Data'!$A$39:$G$43,2,0),VLOOKUP(G78,'Pick Lists & Data'!$A$11:$H$25,2,0))) -> 0 | F102: =IF($E79=0,0,IF($E78<$C$21,(($E78-$E77)*0.5+($E79-$E78)*0.5)*$D$97,(($E78-$E77)*0.5+($E79-G$78))*$D$97)) -> 12.69077333 | G102: =IF($F78="Wire",0,IF($F78="Sign",VLOOKUP($G78,'Pick Lists & Data'!$A$39:$G$43,6,0),VLOOKUP($G78,'Pick Lists & Data'!$A$11:$H$25,6,0))) -> 0 | H102: =IF($E79=0,0,IF($E78<$C$21,(($E78-$E77)*0.5+($E79-$E78)*0.5)*$D$98,(($E78-$E77)*0.5+($E79-E$102))*$D$98)) -> 4 | I102: =IF($F78="Wire",0,IF($F78="Sign",VLOOKUP($G78,'Pick Lists & Data'!$A$39:$G$43,7,0),VLOOKUP($G78,'Pick Lists & Data'!$A$11:$H$25,8,0))) -> 0
A103: 3 | B103: 30 | C103: 96" x 32" | D103: 8 | E103: =IF(F79="Wire",0,IF(F79="Sign",VLOOKUP(G79,'Pick Lists & Data'!$A$39:$G$43,2,0),VLOOKUP(G79,'Pick Lists & Data'!$A$11:$H$25,2,0))) -> 106 | F103: 10.15261867 | G103: =IF($F79="Wire",0,IF($F79="Sign",VLOOKUP($G79,'Pick Lists & Data'!$A$39:$G$43,6,0),VLOOKUP($G79,'Pick Lists & Data'!$A$11:$H$25,6,0))) -> 708.7266202 | H103: 3.2 | I103: =IF($F79="Wire",0,IF($F79="Sign",VLOOKUP($G79,'Pick Lists & Data'!$A$39:$G$43,7,0),VLOOKUP($G79,'Pick Lists & Data'!$A$11:$H$25,8,0))) -> 63.99
A104: 4 | B104: 36 | C104: 30" x 36" | D104: 6 | E104: =IF(F80="Wire",0,IF(F80="Sign",VLOOKUP(G80,'Pick Lists & Data'!$A$39:$G$43,2,0),VLOOKUP(G80,'Pick Lists & Data'!$A$11:$H$25,2,0))) -> 39 | F104: 7.614464 | G104: =IF($F80="Wire",0,IF($F80="Sign",VLOOKUP($G80,'Pick Lists & Data'!$A$39:$G$43,6,0),VLOOKUP($G80,'Pick Lists & Data'!$A$11:$H$25,6,0))) -> 247.123968 | H104: 2.4 | I104: =IF($F80="Wire",0,IF($F80="Sign",VLOOKUP($G80,'Pick Lists & Data'!$A$39:$G$43,7,0),VLOOKUP($G80,'Pick Lists & Data'!$A$11:$H$25,8,0))) -> 22.5
A105: 5 | B105: 42 | C105: A-5 | D105: 9.5 | E105: =IF(F81="Wire",0,IF(F81="Sign",VLOOKUP(G81,'Pick Lists & Data'!$A$39:$G$43,2,0),VLOOKUP(G81,'Pick Lists & Data'!$A$11:$H$25,2,0))) -> 97 | F105: 12.05623467 | G105: =IF($F81="Wire",0,IF($F81="Sign",VLOOKUP($G81,'Pick Lists & Data'!$A$39:$G$43,6,0),VLOOKUP($G81,'Pick Lists & Data'!$A$11:$H$25,6,0))) -> 461.5195853 | H105: 3.8 | I105: =IF($F81="Wire",0,IF($F81="Sign",VLOOKUP($G81,'Pick Lists & Data'!$A$39:$G$43,7,0),VLOOKUP($G81,'Pick Lists & Data'!$A$11:$H$25,8,0))) -> 89.34
A106: 6 | B106: 55 | C106: A-3 | D106: 11.5 | E106: =IF(F82="Wire",0,IF(F82="Sign",VLOOKUP(G82,'Pick Lists & Data'!$A$39:$G$43,2,0),VLOOKUP(G82,'Pick Lists & Data'!$A$11:$H$25,2,0))) -> 70 | F106: 14.59438933 | G106: =IF($F82="Wire",0,IF($F82="Sign",VLOOKUP($G82,'Pick Lists & Data'!$A$39:$G$43,6,0),VLOOKUP($G82,'Pick Lists & Data'!$A$11:$H$25,6,0))) -> 291.0663475 | H106: 4.6 | I106: =IF($F82="Wire",0,IF($F82="Sign",VLOOKUP($G82,'Pick Lists & Data'!$A$39:$G$43,7,0),VLOOKUP($G82,'Pick Lists & Data'!$A$11:$H$25,8,0))) -> 58.56
A107: 7 | B107: 65 | C107: 30" x 36" | D107: 7.5 | E107: =IF(F83="Wire",0,IF(F83="Sign",VLOOKUP(G83,'Pick Lists & Data'!$A$39:$G$43,2,0),VLOOKUP(G83,'Pick Lists & Data'!$A$11:$H$25,2,0))) -> 39 | F107: 9.51808 | G107: =IF($F83="Wire",0,IF($F83="Sign",VLOOKUP($G83,'Pick Lists & Data'!$A$39:$G$43,6,0),VLOOKUP($G83,'Pick Lists & Data'!$A$11:$H$25,6,0))) -> 247.123968 | H107: 3 | I107: =IF($F83="Wire",0,IF($F83="Sign",VLOOKUP($G83,'Pick Lists & Data'!$A$39:$G$43,7,0),VLOOKUP($G83,'Pick Lists & Data'!$A$11:$H$25,8,0))) -> 22.5
A108: 8 | B108: 70 | C108: A-3 | D108: 26 | E108: =IF(F84="Wire",0,IF(F84="Sign",VLOOKUP(G84,'Pick Lists & Data'!$A$39:$G$43,2,0),VLOOKUP(G84,'Pick Lists & Data'!$A$11:$H$25,2,0))) -> 70 | F108: 32.99601067 | G108: =IF($F84="Wire",0,IF($F84="Sign",VLOOKUP($G84,'Pick Lists & Data'!$A$39:$G$43,6,0),VLOOKUP($G84,'Pick Lists & Data'!$A$11:$H$25,6,0))) -> 291.0663475 | H108: 10.4 | I108: =IF($F84="Wire",0,IF($F84="Sign",VLOOKUP($G84,'Pick Lists & Data'!$A$39:$G$43,7,0),VLOOKUP($G84,'Pick Lists & Data'!$A$11:$H$25,8,0))) -> 58.56
A109: 9 | B109: 117 | C109: A-3 | D109: 27 | E109: =IF(F85="Wire",0,IF(F85="Sign",VLOOKUP(G85,'Pick Lists & Data'!$A$39:$G$43,2,0),VLOOKUP(G85,'Pick Lists & Data'!$A$11:$H$25,2,0))) -> 70 | F109: 34.265088 | G109: =IF($F85="Wire",0,IF($F85="Sign",VLOOKUP($G85,'Pick Lists & Data'!$A$39:$G$43,6,0),VLOOKUP($G85,'Pick Lists & Data'!$A$11:$H$25,6,0))) -> 291.0663475 | H109: 10.8 | I109: =IF($F85="Wire",0,IF($F85="Sign",VLOOKUP($G85,'Pick Lists & Data'!$A$39:$G$43,7,0),VLOOKUP($G85,'Pick Lists & Data'!$A$11:$H$25,8,0))) -> 58.56
A110: 10 | B110: 124 | C110: 0.5" | D110: 7 | E110: =IF(F86="Wire",0,IF(F86="Sign",VLOOKUP(G86,'Pick Lists & Data'!$A$39:$G$43,2,0),VLOOKUP(G86,'Pick Lists & Data'!$A$11:$H$25,2,0))) -> 0 | F110: 8.883541333 | G110: =IF($F86="Wire",0,IF($F86="Sign",VLOOKUP($G86,'Pick Lists & Data'!$A$39:$G$43,6,0),VLOOKUP($G86,'Pick Lists & Data'!$A$11:$H$25,6,0))) -> 0 | H110: 2.8 | I110: =IF($F86="Wire",0,IF($F86="Sign",VLOOKUP($G86,'Pick Lists & Data'!$A$39:$G$43,7,0),VLOOKUP($G86,'Pick Lists & Data'!$A$11:$H$25,8,0))) -> 0
A111: 11 | B111: 131 | C111: 0.5" | D111: 7 | E111: =IF(F87="Wire",0,IF(F87="Sign",VLOOKUP(G87,'Pick Lists & Data'!$A$39:$G$43,2,0),VLOOKUP(G87,'Pick Lists & Data'!$A$11:$H$25,2,0))) -> 0 | F111: 8.883541333 | G111: =IF($F87="Wire",0,IF($F87="Sign",VLOOKUP($G87,'Pick Lists & Data'!$A$39:$G$43,6,0),VLOOKUP($G87,'Pick Lists & Data'!$A$11:$H$25,6,0))) -> 0 | H111: 2.8 | I111: =IF($F87="Wire",0,IF($F87="Sign",VLOOKUP($G87,'Pick Lists & Data'!$A$39:$G$43,7,0),VLOOKUP($G87,'Pick Lists & Data'!$A$11:$H$25,8,0))) -> 0
A112: 12 | B112: 138 | C112: 0.5" | D112: 7 | E112: =IF(F88="Wire",0,IF(F88="Sign",VLOOKUP(G88,'Pick Lists & Data'!$A$39:$G$43,2,0),VLOOKUP(G88,'Pick Lists & Data'!$A$11:$H$25,2,0))) -> 0 | F112: 8.883541333 | G112: =IF($F88="Wire",0,IF($F88="Sign",VLOOKUP($G88,'Pick Lists & Data'!$A$39:$G$43,6,0),VLOOKUP($G88,'Pick Lists & Data'!$A$11:$H$25,6,0))) -> 0 | H112: 2.8 | I112: =IF($F88="Wire",0,IF($F88="Sign",VLOOKUP($G88,'Pick Lists & Data'!$A$39:$G$43,7,0),VLOOKUP($G88,'Pick Lists & Data'!$A$11:$H$25,8,0))) -> 0
A113: 13 | B113: 145 | C113: 0.5" | D113: 0 | E113: =IF(F89="Wire",0,IF(F89="Sign",VLOOKUP(G89,'Pick Lists & Data'!$A$39:$G$43,2,0),VLOOKUP(G89,'Pick Lists & Data'!$A$11:$H$25,2,0))) -> 0 | F113: 0 | G113: =IF($F89="Wire",0,IF($F89="Sign",VLOOKUP($G89,'Pick Lists & Data'!$A$39:$G$43,6,0),VLOOKUP($G89,'Pick Lists & Data'!$A$11:$H$25,6,0))) -> 0 | H113: 0 | I113: =IF($F89="Wire",0,IF($F89="Sign",VLOOKUP($G89,'Pick Lists & Data'!$A$39:$G$43,7,0),VLOOKUP($G89,'Pick Lists & Data'!$A$11:$H$25,8,0))) -> 0
A114: 14 | B114: 0 | C114: None | D114: 0 | E114: =IF(F90="Wire",0,IF(F90="Sign",VLOOKUP(G90,'Pick Lists & Data'!$A$39:$G$43,2,0),VLOOKUP(G90,'Pick Lists & Data'!$A$11:$H$25,2,0))) -> 0 | F114: 0 | G114: =IF($F90="Wire",0,IF($F90="Sign",VLOOKUP($G90,'Pick Lists & Data'!$A$39:$G$43,6,0),VLOOKUP($G90,'Pick Lists & Data'!$A$11:$H$25,6,0))) -> 0 | H114: 0 | I114: =IF($F90="Wire",0,IF($F90="Sign",VLOOKUP($G90,'Pick Lists & Data'!$A$39:$G$43,7,0),VLOOKUP($G90,'Pick Lists & Data'!$A$11:$H$25,8,0))) -> 0
A115: 15 | B115: 0 | C115: None | D115: =IF($T162=0,0,IF($E91<$C$21,(($E91-$E90)*0.5+($T162-$E91)*0.5)*$D$96,(($E91-$E90)*0.5+($T162-E$78))*$D$96)) -> 0 | E115: =IF(F91="Wire",0,IF(F91="Sign",VLOOKUP(G91,'Pick Lists & Data'!$A$39:$G$43,2,0),VLOOKUP(G91,'Pick Lists & Data'!$A$11:$H$25,2,0))) -> 0 | F115: =IF($T162=0,0,IF($E91<$C$21,(($E91-$E90)*0.5+($T162-$E91)*0.5)*$D$97,(($E91-$E90)*0.5+($T162-G$78))*$D$97)) -> 0 | G115: =IF($F91="Wire",0,IF($F91="Sign",VLOOKUP($G91,'Pick Lists & Data'!$A$39:$G$43,6,0),VLOOKUP($G91,'Pick Lists & Data'!$A$11:$H$25,6,0))) -> 0 | H115: =IF($T162=0,0,IF($E91<$C$21,(($E91-$E90)*0.5+($T162-$E91)*0.5)*$D$98,(($E91-$E90)*0.5+($T162-E$102))*$D$98)) -> 0 | I115: =IF($F91="Wire",0,IF($F91="Sign",VLOOKUP($G91,'Pick Lists & Data'!$A$39:$G$43,7,0),VLOOKUP($G91,'Pick Lists & Data'!$A$11:$H$25,8,0))) -> 0
A117: Place Distances and Loads into table for span wire analysis
B119: Loading Final Rank | C119: Distance (Xn) | D119: Dead Load | E119: Wind Load | F119: Ice Load | G119: Load Description | H119: Signal Config/Sign Size/Wire Diameter
B120: 1 | C120: =B101 -> 10 | D120: =SUM(D101:E101) -> 15 | E120: =SUM(F101:G101) -> 16.34538667 | F120: =SUM(H101:I101) -> 12 | G120: =F77 -> Wire | H120: =C101 -> 0.5"
B121: 2 | C121: =B102 -> 20 | D121: =SUM(D102:E102) -> 10 | E121: =SUM(F102:G102) -> 12.69077333 | F121: =SUM(H102:I102) -> 4 | G121: Wire | H121: =C102 -> 0.5"
B122: 3 | C122: 30 | D122: 114 | E122: 718.8792388 | F122: 67.19 | G122: Sign | H122: 96" x 32"
B123: 4 | C123: 36 | D123: 45 | E123: 254.738432 | F123: 24.9 | G123: Sign | H123: 30" x 36"
B124: 5 | C124: 42 | D124: 106.5 | E124: 473.5758199 | F124: 93.14 | G124: Signal | H124: A-5
B125: 6 | C125: 55 | D125: 81.5 | E125: 305.6607369 | F125: 63.16 | G125: Signal | H125: A-3
B126: 7 | C126: 65 | D126: 46.5 | E126: 256.642048 | F126: 25.5 | G126: Sign | H126: 30" x 36"
B127: 8 | C127: 70 | D127: 96 | E127: 324.0623582 | F127: 68.96 | G127: Signal | H127: A-3
B128: 9 | C128: 117 | D128: 97 | E128: 325.3314355 | F128: 69.36 | G128: Signal | H128: A-3
B129: 10 | C129: 124 | D129: 7 | E129: 8.883541333 | F129: 2.8 | G129: Wire | H129: 0.5"
B130: 11 | C130: 131 | D130: 7 | E130: 8.883541333 | F130: 2.8 | G130: Wire | H130: 0.5"
B131: 12 | C131: 138 | D131: 7 | E131: 8.883541333 | F131: 2.8 | G131: Wire | H131: 0.5"
B132: 13 | C132: 145 | D132: 0 | E132: 0 | F132: 0 | G132: Wire | H132: 0.5"
B133: 14 | C133: 0 | D133: 0 | E133: 0 | F133: 0 | G133: Sign | H133: None
B134: 15 | C134: 0 | D134: 0 | E134: 0 | F134: 0 | G134: Sign | H134: None
D135: =SUM(D120:D134) -> 632.5 | E135: =SUM(E120:E134) -> 2714.576853
B137: * Distances MUST be entered in order, starting with the load closest to Support 1 and moving
B138: right towards Support 2. If all 14 loads are not used, a "null distance" and a "null load" must be
B139: assigned to the worksheet cell (ie. Enter a zero for each null value.)
A141: Dead Load (Group I Loading, also used for Groups II and III)
A143: Calculate Dead Load Reactions:
B144: Summing moments about Support 2 (Counter clockwise-moments positive):
B146: Loading | C146: Dead Load | D146: Arm | E146: Moment
B147: =B120 -> 1 | C147: =D120 -> 15 | D147: =C120 -> 10 | E147: =C147*D147 -> 150
B148: 2 | C148: 10 | D148: 20 | E148: 200
B149: 3 | C149: 114 | D149: 30 | E149: 3420
B150: 4 | C150: 45 | D150: 36 | E150: 1620
B151: 5 | C151: 106.5 | D151: 42 | E151: 4473
B152: 6 | C152: 81.5 | D152: 55 | E152: 4482.5
B153: 7 | C153: 46.5 | D153: 65 | E153: 3022.5
B154: 8 | C154: 96 | D154: 70 | E154: 6720
B155: 9 | C155: 97 | D155: 117 | E155: 11349
B156: 10 | C156: 7 | D156: 124 | E156: 868
B157: 11 | C157: 7 | D157: 131 | E157: 917
B158: 12 | C158: 7 | D158: 138 | E158: 966
B159: 13 | C159: 0 | D159: 145 | E159: 0
B160: 14 | C160: 0 | D160: 0 | E160: 0
B161: 15 | C161: 0 | D161: 0 | E161: 0
B163: S MomentsSupport 2 = 0 = [(S Loadn * Xn)] - (R Support 1 * Length)
B164: R Support 1 = | C164: =(SUM(E147:E161)/C21) -> 263.3655172 | D164: lbs
B166: S Forcey = 0 = R Support 2 + R Support 1 - (S Loadn)
B167: R Support 2 = | C167: =(SUM(C147:C161))-C164 -> 369.1344828 | D167: lbs
A169: Dead Load Shear Diagram:
B170: Location | C170: Distance | D170: Load / Reaction | E170: Shear 1 | F170: Shear 2
B171: Support 2 | C171: 0 | D171: =C167 -> 369.1344828 | E171: =0 -> 0 | F171: =E171+C167 -> 369.1344828 | G171: =IF(AND(E171>=0,F171>=0),"+ / +",IF(AND(E171<=0,F171<=0),"- / -","+ / -")) -> + / + | H171: =IF(G171="+ / -","Low Point","") ->  | I171: =IF(H171="Low Point",C171," ") -> 
B172: =B120 -> 1 | C172: 10 | D172: 15 | E172: =IF(D172>0,F171," ") -> 369.1344828 | F172: =IF(D171>0,E172-D172," ") -> 354.1344828 | G172: =IF(AND(E172>=0,F172>=0),"+ / +",IF(AND(E172<=0,F172<=0),"- / -","+ / -")) -> + / + | H172: =IF(G172="+ / -","Low Point","") ->  | I172: =IF(H172="Low Point",C172," ") -> 
B173: 2 | C173: 20 | D173: 10 | E173: =F172 -> 354.1344828 | F173: =E173-D173 -> 344.1344828 | G173: + / +
B174: 3 | C174: 30 | D174: 114 | E174: =F173 -> 344.1344828 | F174: =E174-D174 -> 230.1344828 | G174: =IF(AND(E174>=0,F174>=0),"+ / +",IF(AND(E174<=0,F174<=0),"- / -","+ / -")) -> + / + | H174: =IF(G174="+ / -","Low Point","") ->  | I174: =IF(H174="Low Point",C174," ") -> 
B175: 4 | C175: 36 | D175: 45 | E175: =F174 -> 230.1344828 | F175: =E175-D175 -> 185.1344828 | G175: + / + | H175: =IF(G175="+ / -","Low Point","") -> 
B176: 5 | C176: 42 | D176: 106.5 | E176: =F175 -> 185.1344828 | F176: 78.63448276 | G176: + / +
B177: 6 | C177: 55 | D177: 81.5 | E177: 78.63448276 | F177: -2.865517241 | G177: + / - | H177: Low Point | I177: 55
B178: 7 | C178: 65 | D178: 46.5 | E178: -2.865517241 | F178: -49.36551724 | G178: - / -
B179: 8 | C179: 70 | D179: 96 | E179: -49.36551724 | F179: -145.3655172 | G179: - / -
B180: 9 | C180: 117 | D180: 97 | E180: -145.3655172 | F180: -242.3655172 | G180: - / -
B181: 10 | C181: 124 | D181: 7 | E181: -242.3655172 | F181: -249.3655172 | G181: - / -
B182: 11 | C182: 131 | D182: 7 | E182: -249.3655172 | F182: -256.3655172 | G182: - / -
B183: 12 | C183: 138 | D183: 7 | E183: -256.3655172 | F183: -263.3655172 | G183: - / -
B184: 13 | C184: 145 | D184: 0 | E184: -263.3655172 | F184: -263.3655172 | G184: - / -
B185: 14 | C185: 0 | D185: 0 | E185: -263.3655172 | F185: -263.3655172 | G185: - / -
B186: 15 | C186: 0 | D186: 0 | E186: -263.3655172 | F186: -263.3655172 | G186: - / -
B187: Support 1 | C187: =C21 -> 145 | D187: =C164 -> 263.3655172 | E187: =F186 -> -263.3655172 | F187: =E187+D187 -> 0 | G187: - / -
B189: The Low Point occurs at: | D189: =MAX(I171:I187) -> 55 | E189: feet from Support 2
A190: Calculation: Sum Moments about Low Point to Determine Horizontal Reaction:
B192: Maximum Allowable Sag: | D192: =(G21/100)*C21 -> 7.25 | E192: feet
B193: Summing Moments about the Low point (Counter-Clockwise Positive):
B195: Location | C195: Distance from Low Point | D195: Load | E195: Moment
B196: Support 2 | C196: =D189 -> 55 | D196: =D171 -> 369.1344828 | E196: =C196*D196 -> 20302.39655
B197: =B120 -> 1 | C197: =IF(C172=0,0,IF(C172<$D$189,($D$189-C172),0)) -> 45 | D197: 15 | E197: =-C197*D197 -> -675
B198: 2 | C198: 35 | D198: 10 | E198: =-C198*D198 -> -350
B199: 3 | C199: 25 | D199: 114 | E199: =-C199*D199 -> -2850
B200: 4 | C200: 19 | D200: 45 | E200: =-C200*D200 -> -855
B201: 5 | C201: 13 | D201: 106.5 | E201: =-C201*D201 -> -1384.5
B202: 6 | C202: 0 | D202: 81.5 | E202: 0
B203: 7 | C203: 0 | D203: 46.5 | E203: 0
B204: 8 | C204: 0 | D204: 96 | E204: 0
B205: 9 | C205: 0 | D205: 97 | E205: 0
B206: 10 | C206: 0 | D206: 7 | E206: 0
B207: 11 | C207: 0 | D207: 7 | E207: 0
B208: 12 | C208: 0 | D208: 7 | E208: 0
B209: 13 | C209: 0 | D209: 0 | E209: 0
B210: 14 | C210: 0 | D210: 0 | E210: 0
B211: 15 | C211: 0 | D211: 0 | E211: 0
B212: Support 1 | C212: 0 | D212: 263.3655172 | E212: 0
B214: Determine Horizontal force:
B215: H = | C215: =ABS(SUM(E196:E212)/D192) -> 1956.951249 | D215: lbs
A217: Calculate Actual Length of Cable (Accounting for sag, Dead Load Only):
B218: Fy = Shear 2, calculated above.
B220: Location | C220: Fy | D220: xi | E220: Length of Segment
B221: Support 1
B222: =B120 -> 1 | C222: =E172 -> 369.1344828 | D222: =IF(B222<($G$6+1),((C172-C171)),(IF(B222=($G$6+1),(($C$187-C171)),0))) -> 10 | E222: =SQRT($C$215^2+C222^2)*(D222/$C$215) -> 10.17634644
B223: 2 | C223: =E173 -> 354.1344828 | D223: 10 | E223: =SQRT($C$215^2+C223^2)*(D223/$C$215) -> 10.16241787
B224: 3 | C224: 344.1344828 | D224: 10 | E224: 10.15344301
B225: 4 | C225: 230.1344828 | D225: 6 | E225: 6.041345748
B226: 5 | C226: 185.1344828 | D226: 6 | E226: 6.026789673
B227: 6 | C227: 78.63448276 | D227: 13 | E227: 13.01049069
B228: 7 | C228: -2.865517241 | D228: 10 | E228: 10.00001072
B229: 8 | C229: -49.36551724 | D229: 5 | E229: 5.00159059
B230: 9 | C230: -145.3655172 | D230: 47 | E230: 47.12948898
B231: 10 | C231: -242.3655172 | D231: 7 | E231: 7.0534803
B232: 11 | C232: -249.3655172 | D232: 7 | E232: 7.056601577
B233: 12 | C233: -256.3655172 | D233: 7 | E233: 7.059810279
B234: 13 | C234: -263.3655172 | D234: 7 | E234: 7.063106287
B235: 14 | C235: -263.3655172 | D235: 0 | E235: 0
B236: 15 | C236: -263.3655172 | D236: 0 | E236: 0
B237: Support 2 | C237: -263.3655172 | D237: 0 | E237: 0
D239: Total Length = | E239: =SUM(E221:E237) -> 145.9349222
... 142 more rows

Sheet SW3
A1: Strain Pole Design - SW3 Cable Stringing Tension
A3: Assumptions: | B3: This spreadsheet calculates the tension in strain poles for overhead sign in accordance with the AASHTO Specifications for Structural Supports for Highway Signs, Luminaires and Traffic Signals 4th Edition 2001, including the 2002 and 2003 Interims (Per DM-4), and the Pennsylvania Department of Transportation Criteria for the Design of Traffic Related Structures.
B5: Number of assumed concentrated loads on the strain pole cable. Also must consider concentrated cable loads with a minimum of 5 segments. | I5: Y
F6: = | G6: =I51 -> 11
H7: M
B9: Support 1 (Left) | G9: X | I9: Support 2 (Right)
G13: Loadn
G17: Xn
E19: Length
B21: Length: | C21: =L3_ -> 170 | D21: feet | E21: Maximum Allowable Sag: | G21: 5 | H21: percent
A24: Rank loading ID's from right to left ( Support 2 to Support 1) and calculate wire segment lengths:
A26: The spreadsheet assumes that 3 wire segments are placed before the first point load and 2 wire segments are placed after the last point load. The number of point loads is calculated by adding the number of point loads input and adding 5 point loads due to the wire segments.
B28: Original Rank | C28: Re-rank | D28: Final Rank | E28: Loading ID | F28: Distance
B29: =IF(F29<>"N/A",RANK(F29,$F$29:$F$37,1),"Exclude") -> 6 | C29: =IF(ISNUMBER(B29)=TRUE,B29,MAX($B$29:$B$37)+1) -> 6 | D29: =RANK(C29,$C$29:$C$37,1) -> 6 | E29: M | F29: =IF(Input!E77="None","N/A",Input!F77) -> 129
B30: 5 | C30: =IF(ISNUMBER(B30)=TRUE,B30,MAX($B$29:$B$37)+2) -> 5 | D30: 5 | E30: N | F30: =IF(Input!E78="None","N/A",Input!F78) -> 90
B31: 3 | C31: =IF(ISNUMBER(B31)=TRUE,B31,MAX($B$29:$B$37)+3) -> 3 | D31: 3 | E31: O | F31: =IF(Input!E79="None","N/A",Input!F79) -> 75
B32: 2 | C32: =IF(ISNUMBER(B32)=TRUE,B32,MAX($B$29:$B$37)+4) -> 2 | D32: 2 | E32: P | F32: =IF(Input!E80="None","N/A",Input!F80) -> 55
B33: 4 | C33: =IF(ISNUMBER(B33)=TRUE,B33,MAX($B$29:$B$37)+5) -> 4 | D33: 4 | E33: R | F33: =IF(Input!D81="None","N/A",Input!F81) -> 83
B34: Exclude | C34: =IF(ISNUMBER(B34)=TRUE,B34,MAX($B$29:$B$37)+6) -> 12 | D34: 7 | E34: S | F34: =IF(Input!D82="None","N/A",Input!F82) -> N/A
B35: Exclude | C35: =IF(ISNUMBER(B35)=TRUE,B35,MAX($B$29:$B$37)+7) -> 13 | D35: 8 | E35: T | F35: =IF(Input!D83="None","N/A",Input!F83) -> N/A
B36: Exclude | C36: =IF(ISNUMBER(B36)=TRUE,B36,MAX($B$29:$B$37)+8) -> 14 | D36: 9 | E36: U | F36: =IF(Input!D84="None","N/A",Input!F84) -> N/A
B37: 1 | C37: =IF(ISNUMBER(B37)=TRUE,B37,MAX($B$29:$B$37)+9) -> 1 | D37: 1 | E37: Y | F37: =IF(Input!D85="None","N/A",Input!F85) -> 27
C39: Rank | D39: Loading ID | E39: Distance | F39: Count
C40: 1 | D40: =VLOOKUP(C40,$D$29:$F$37,2,0) -> Y | E40: =VLOOKUP(C40,$D$29:$F$37,3,0) -> 27 | F40: =IF(E40<>"N/A",1,0) -> 1
C41: 2 | D41: P | E41: 55 | F41: 1
C42: 3 | D42: O | E42: 75 | F42: 1
C43: 4 | D43: R | E43: 83 | F43: 1
C44: 5 | D44: N | E44: 90 | F44: 1
C45: 6 | D45: M | E45: 129 | F45: 1
C46: 7 | D46: S | E46: N/A | F46: 0
C47: 8 | D47: T | E47: N/A | F47: 0
C48: 9 | D48: U | E48: N/A | F48: 0
C49: Wire Sections | D49: W1 | E49: =MIN(E40:E48)/3 -> 9
D50: W2 | E50: =MIN(E40:E48)/3+E49 -> 18 | H50: Number of Point Loads: | I50: =SUM(F40:F48) -> 6
D51: W3 | E51: =(C21-MAX(E40:E48))/4+MAX(E40:E48) -> 139.25 | H51: No. of Point Loads w/ Wire Segments: | I51: =I50+5 -> 11
D52: W4 | E52: =(C21-MAX(E40:E48))/4+E51 -> 149.5
D53: W5 | E53: =(C21-MAX(E40:E48))/4+E52 -> 159.75
D54: W6 | E54: =C21 -> 170
A57: Rank ID's and Wire Segments from right to left ( Support 2 to Support 1) and calculate loading:
C59: Original Rank With Wire | D59: Re-rank | E59: Final Rank | F59: Loading ID | G59: Distance
C60: =IF(E40<>"N/A",RANK(E40,$E$40:$E$54,1),"Exclude") -> 3 | D60: =IF(ISNUMBER(C60)=TRUE,C60,MAX($C$60:$C$74)+1) -> 3 | E60: =RANK(D60,$D$60:$D$74,1) -> 3 | F60: =D40 -> Y | G60: 27
C61: 4 | D61: =IF(ISNUMBER(C61)=TRUE,C61,MAX($C$60:$C$74)+2) -> 4 | E61: 4 | F61: P | G61: 55
C62: 5 | D62: =IF(ISNUMBER(C62)=TRUE,C62,MAX($C$60:$C$74)+3) -> 5 | E62: 5 | F62: O | G62: 75
C63: 6 | D63: =IF(ISNUMBER(C63)=TRUE,C63,MAX($C$60:$C$74)+4) -> 6 | E63: 6 | F63: R | G63: 83
C64: 7 | D64: =IF(ISNUMBER(C64)=TRUE,C64,MAX($C$60:$C$74)+5) -> 7 | E64: 7 | F64: N | G64: 90
C65: 8 | D65: =IF(ISNUMBER(C65)=TRUE,C65,MAX($C$60:$C$74)+6) -> 8 | E65: 8 | F65: M | G65: 129
C66: Exclude | D66: =IF(ISNUMBER(C66)=TRUE,C66,MAX($C$60:$C$74)+7) -> 19 | E66: 13 | F66: S | G66: N/A
C67: Exclude | D67: =IF(ISNUMBER(C67)=TRUE,C67,MAX($C$60:$C$74)+8) -> 20 | E67: 14 | F67: T | G67: N/A
C68: Exclude | D68: =IF(ISNUMBER(C68)=TRUE,C68,MAX($C$60:$C$74)+9) -> 21 | E68: 15 | F68: U | G68: N/A
C69: 1 | D69: =IF(ISNUMBER(C69)=TRUE,C69,MAX($C$60:$C$74)+10) -> 1 | E69: 1 | F69: W1 | G69: 9
C70: 2 | D70: =IF(ISNUMBER(C70)=TRUE,C70,MAX($C$60:$C$74)+11) -> 2 | E70: 2 | F70: W2 | G70: 18
C71: 9 | D71: =IF(ISNUMBER(C71)=TRUE,C71,MAX($C$60:$C$74)+12) -> 9 | E71: 9 | F71: W3 | G71: 139.25
C72: 10 | D72: =IF(ISNUMBER(C72)=TRUE,C72,MAX($C$60:$C$74)+13) -> 10 | E72: 10 | F72: W4 | G72: 149.5
C73: 11 | D73: =IF(ISNUMBER(C73)=TRUE,C73,MAX($C$60:$C$74)+14) -> 11 | E73: 11 | F73: W5 | G73: 159.75
C74: 12 | D74: =IF(ISNUMBER(C74)=TRUE,C74,MAX($C$60:$C$74)+15) -> 12 | E74: 12 | F74: W6 | G74: 170
B76: Final Rank | C76: Loading ID | D76: Distance | E76: Distance for Table | F76: Load description | G76: Signal Config/Sign Size/Wire Dia
B77: 1 | C77: =VLOOKUP(B77,$E$60:$G$74,2,0) -> W1 | D77: =VLOOKUP(B77,$E$60:$G$74,3,0) -> 9 | E77: =IF(ISNUMBER(D77),D77,0) -> 9 | F77: =IF(OR(C77=$D$49,C77=$D$50,C77=$D$51,C77=$D$52,C77=$D$53,C77=$D$54),"Wire",VLOOKUP(C77,Input!$B$77:$C$85,2,0)) -> Wire | G77: =IF(F77="Signal",VLOOKUP(C77,Input!$B$77:$I$85,4,0),IF(F77="Sign",VLOOKUP(C77,Input!$B$77:$I$85,3,0),SW3_Wire_Dia)) -> 0.5"
B78: 2 | C78: W2 | D78: 18 | E78: 18 | F78: =IF(OR(C78=$D$49,C78=$D$50,C78=$D$51,C78=$D$52,C78=$D$53,C78=$D$54),"Wire",VLOOKUP(C78,Input!$B$77:$C$85,2,0)) -> Wire | G78: =IF(F78="Signal",VLOOKUP(C78,Input!$B$77:$I$85,4,0),IF(F78="Sign",VLOOKUP(C78,Input!$B$77:$I$85,3,0),SW3_Wire_Dia)) -> 0.5"
B79: 3 | C79: Y | D79: 27 | E79: 27 | F79: =IF(OR(C79=$D$49,C79=$D$50,C79=$D$51,C79=$D$52,C79=$D$53,C79=$D$54),"Wire",VLOOKUP(C79,Input!$B$77:$C$85,2,0)) -> Sign | G79: =IF(F79="Signal",VLOOKUP(C79,Input!$B$77:$I$85,4,0),IF(F79="Sign",VLOOKUP(C79,Input!$B$77:$I$85,3,0),SW3_Wire_Dia)) -> 96" x 32"
B80: 4 | C80: P | D80: 55 | E80: 55 | F80: =IF(OR(C80=$D$49,C80=$D$50,C80=$D$51,C80=$D$52,C80=$D$53,C80=$D$54),"Wire",VLOOKUP(C80,Input!$B$77:$C$85,2,0)) -> Signal | G80: =IF(F80="Signal",VLOOKUP(C80,Input!$B$77:$I$85,4,0),IF(F80="Sign",VLOOKUP(C80,Input!$B$77:$I$85,3,0),SW3_Wire_Dia)) -> A-3
B81: 5 | C81: O | D81: 75 | E81: 75 | F81: =IF(OR(C81=$D$49,C81=$D$50,C81=$D$51,C81=$D$52,C81=$D$53,C81=$D$54),"Wire",VLOOKUP(C81,Input!$B$77:$C$85,2,0)) -> Signal | G81: =IF(F81="Signal",VLOOKUP(C81,Input!$B$77:$I$85,4,0),IF(F81="Sign",VLOOKUP(C81,Input!$B$77:$I$85,3,0),SW3_Wire_Dia)) -> A-3
B82: 6 | C82: R | D82: 83 | E82: 83 | F82: =IF(OR(C82=$D$49,C82=$D$50,C82=$D$51,C82=$D$52,C82=$D$53,C82=$D$54),"Wire",VLOOKUP(C82,Input!$B$77:$C$85,2,0)) -> Sign | G82: =IF(F82="Signal",VLOOKUP(C82,Input!$B$77:$I$85,4,0),IF(F82="Sign",VLOOKUP(C82,Input!$B$77:$I$85,3,0),SW3_Wire_Dia)) -> 30" x 36"
B83: 7 | C83: N | D83: 90 | E83: 90 | F83: =IF(OR(C83=$D$49,C83=$D$50,C83=$D$51,C83=$D$52,C83=$D$53,C83=$D$54),"Wire",VLOOKUP(C83,Input!$B$77:$C$85,2,0)) -> Signal | G83: =IF(F83="Signal",VLOOKUP(C83,Input!$B$77:$I$85,4,0),IF(F83="Sign",VLOOKUP(C83,Input!$B$77:$I$85,3,0),SW3_Wire_Dia)) -> A-3
B84: 8 | C84: M | D84: 129 | E84: 129 | F84: =IF(OR(C84=$D$49,C84=$D$50,C84=$D$51,C84=$D$52,C84=$D$53,C84=$D$54),"Wire",VLOOKUP(C84,Input!$B$77:$C$85,2,0)) -> Signal | G84: =IF(F84="Signal",VLOOKUP(C84,Input!$B$77:$I$85,4,0),IF(F84="Sign",VLOOKUP(C84,Input!$B$77:$I$85,3,0),SW3_Wire_Dia)) -> A-3
B85: 9 | C85: W3 | D85: 139.25 | E85: 139.25 | F85: =IF(OR(C85=$D$49,C85=$D$50,C85=$D$51,C85=$D$52,C85=$D$53,C85=$D$54),"Wire",VLOOKUP(C85,Input!$B$77:$C$85,2,0)) -> Wire | G85: =IF(F85="Signal",VLOOKUP(C85,Input!$B$77:$I$85,4,0),IF(F85="Sign",VLOOKUP(C85,Input!$B$77:$I$85,3,0),SW3_Wire_Dia)) -> 0.5"
B86: 10 | C86: W4 | D86: 149.5 | E86: 149.5 | F86: =IF(OR(C86=$D$49,C86=$D$50,C86=$D$51,C86=$D$52,C86=$D$53,C86=$D$54),"Wire",VLOOKUP(C86,Input!$B$77:$C$85,2,0)) -> Wire | G86: =IF(F86="Signal",VLOOKUP(C86,Input!$B$77:$I$85,4,0),IF(F86="Sign",VLOOKUP(C86,Input!$B$77:$I$85,3,0),SW3_Wire_Dia)) -> 0.5"
B87: 11 | C87: W5 | D87: 159.75 | E87: 159.75 | F87: =IF(OR(C87=$D$49,C87=$D$50,C87=$D$51,C87=$D$52,C87=$D$53,C87=$D$54),"Wire",VLOOKUP(C87,Input!$B$77:$C$85,2,0)) -> Wire | G87: =IF(F87="Signal",VLOOKUP(C87,Input!$B$77:$I$85,4,0),IF(F87="Sign",VLOOKUP(C87,Input!$B$77:$I$85,3,0),SW3_Wire_Dia)) -> 0.5"
B88: 12 | C88: W6 | D88: 170 | E88: 170 | F88: =IF(OR(C88=$D$49,C88=$D$50,C88=$D$51,C88=$D$52,C88=$D$53,C88=$D$54),"Wire",VLOOKUP(C88,Input!$B$77:$C$85,2,0)) -> Wire | G88: =IF(F88="Signal",VLOOKUP(C88,Input!$B$77:$I$85,4,0),IF(F88="Sign",VLOOKUP(C88,Input!$B$77:$I$85,3,0),SW3_Wire_Dia)) -> 0.5"
B89: 13 | C89: S | D89: N/A | E89: 0 | F89: =IF(OR(C89=$D$49,C89=$D$50,C89=$D$51,C89=$D$52,C89=$D$53,C89=$D$54),"Wire",VLOOKUP(C89,Input!$B$77:$C$85,2,0)) -> Sign | G89: =IF(F89="Signal",VLOOKUP(C89,Input!$B$77:$I$85,4,0),IF(F89="Sign",VLOOKUP(C89,Input!$B$77:$I$85,3,0),SW3_Wire_Dia)) -> None
B90: 14 | C90: T | D90: N/A | E90: 0 | F90: =IF(OR(C90=$D$49,C90=$D$50,C90=$D$51,C90=$D$52,C90=$D$53,C90=$D$54),"Wire",VLOOKUP(C90,Input!$B$77:$C$85,2,0)) -> Sign | G90: =IF(F90="Signal",VLOOKUP(C90,Input!$B$77:$I$85,4,0),IF(F90="Sign",VLOOKUP(C90,Input!$B$77:$I$85,3,0),SW3_Wire_Dia)) -> None
B91: 15 | C91: U | D91: N/A | E91: 0 | F91: =IF(OR(C91=$D$49,C91=$D$50,C91=$D$51,C91=$D$52,C91=$D$53,C91=$D$54),"Wire",VLOOKUP(C91,Input!$B$77:$C$85,2,0)) -> Sign | G91: =IF(F91="Signal",VLOOKUP(C91,Input!$B$77:$I$85,4,0),IF(F91="Sign",VLOOKUP(C91,Input!$B$77:$I$85,3,0),SW3_Wire_Dia)) -> None
A93: Calculate Loads:
B95: Wire Weights:
C96: Wire Weight = | D96: =VLOOKUP(SW1_Wire_Dia,'Pick Lists & Data'!A29:B33,2,0) -> 1 | E96: lb/ft
C97: Wire Wind Load = | D97: =VLOOKUP(SW1_Wire_Dia,'Pick Lists & Data'!A29:L33,10,0) -> 1.269077333 | E97: lb/ft
C98: Wire Ice Load = | D98: =VLOOKUP(SW1_Wire_Dia,'Pick Lists & Data'!A29:L33,12,0) -> 0.4 | E98: lb/ft
A100: Loading Final Rank | B100: Distance for Table | C100: Signal Config/Sign Size/Wire Dia | D100: Wire Segment Dead Load | E100: Signal/Sign Dead Load | F100: Wire Segment Wind Load | G100: Signal/Sign Wind Load | H100: Wire Segment Ice Load | I100: Signal/Sign Ice Load
A101: =B77 -> 1 | B101: =E77 -> 9 | C101: =G77 -> 0.5" | D101: =$D$77+($D$78-$D$77)*0.5*$D$96 -> 13.5 | E101: =IF($F77="Wire",0,IF($F77="Sign",VLOOKUP($G77,'Pick Lists & Data'!$A$39:$G$43,2,0),VLOOKUP($G77,'Pick Lists & Data'!$A$11:$H$25,2,0))) -> 0 | F101: =$D$77+($D$78-$D$77)*0.5*$D$97 -> 14.710848 | G101: =IF($F77="Wire",0,IF($F77="Sign",VLOOKUP($G77,'Pick Lists & Data'!$A$39:$G$43,6,0),VLOOKUP($G77,'Pick Lists & Data'!$A$11:$H$25,6,0))) -> 0 | H101: =$D$77+($D$78-$D$77)*0.5*$D$98 -> 10.8 | I101: =IF($F77="Wire",0,IF($F77="Sign",VLOOKUP($G77,'Pick Lists & Data'!$A$39:$G$43,7,0),VLOOKUP($G77,'Pick Lists & Data'!$A$11:$H$25,8,0))) -> 0
A102: 2 | B102: 18 | C102: 0.5" | D102: =IF($E79=0,0,IF($E78<$C$21,(($E78-$E77)*0.5+($E79-$E78)*0.5)*$D$96,(($E78-$E77)*0.5+($E79-E$78))*$D$96)) -> 9 | E102: =IF(F78="Wire",0,IF(F78="Sign",VLOOKUP(G78,'Pick Lists & Data'!$A$39:$G$43,2,0),VLOOKUP(G78,'Pick Lists & Data'!$A$11:$H$25,2,0))) -> 0 | F102: =IF($E79=0,0,IF($E78<$C$21,(($E78-$E77)*0.5+($E79-$E78)*0.5)*$D$97,(($E78-$E77)*0.5+($E79-G$78))*$D$97)) -> 11.421696 | G102: =IF($F78="Wire",0,IF($F78="Sign",VLOOKUP($G78,'Pick Lists & Data'!$A$39:$G$43,6,0),VLOOKUP($G78,'Pick Lists & Data'!$A$11:$H$25,6,0))) -> 0 | H102: =IF($E79=0,0,IF($E78<$C$21,(($E78-$E77)*0.5+($E79-$E78)*0.5)*$D$98,(($E78-$E77)*0.5+($E79-E$102))*$D$98)) -> 3.6 | I102: =IF($F78="Wire",0,IF($F78="Sign",VLOOKUP($G78,'Pick Lists & Data'!$A$39:$G$43,7,0),VLOOKUP($G78,'Pick Lists & Data'!$A$11:$H$25,8,0))) -> 0
A103: 3 | B103: 27 | C103: 96" x 32" | D103: 18.5 | E103: =IF(F79="Wire",0,IF(F79="Sign",VLOOKUP(G79,'Pick Lists & Data'!$A$39:$G$43,2,0),VLOOKUP(G79,'Pick Lists & Data'!$A$11:$H$25,2,0))) -> 106 | F103: 23.47793067 | G103: =IF($F79="Wire",0,IF($F79="Sign",VLOOKUP($G79,'Pick Lists & Data'!$A$39:$G$43,6,0),VLOOKUP($G79,'Pick Lists & Data'!$A$11:$H$25,6,0))) -> 708.7266202 | H103: 7.4 | I103: =IF($F79="Wire",0,IF($F79="Sign",VLOOKUP($G79,'Pick Lists & Data'!$A$39:$G$43,7,0),VLOOKUP($G79,'Pick Lists & Data'!$A$11:$H$25,8,0))) -> 63.99
A104: 4 | B104: 55 | C104: A-3 | D104: 24 | E104: =IF(F80="Wire",0,IF(F80="Sign",VLOOKUP(G80,'Pick Lists & Data'!$A$39:$G$43,2,0),VLOOKUP(G80,'Pick Lists & Data'!$A$11:$H$25,2,0))) -> 70 | F104: 30.457856 | G104: =IF($F80="Wire",0,IF($F80="Sign",VLOOKUP($G80,'Pick Lists & Data'!$A$39:$G$43,6,0),VLOOKUP($G80,'Pick Lists & Data'!$A$11:$H$25,6,0))) -> 291.0663475 | H104: 9.6 | I104: =IF($F80="Wire",0,IF($F80="Sign",VLOOKUP($G80,'Pick Lists & Data'!$A$39:$G$43,7,0),VLOOKUP($G80,'Pick Lists & Data'!$A$11:$H$25,8,0))) -> 58.56
A105: 5 | B105: 75 | C105: A-3 | D105: 14 | E105: =IF(F81="Wire",0,IF(F81="Sign",VLOOKUP(G81,'Pick Lists & Data'!$A$39:$G$43,2,0),VLOOKUP(G81,'Pick Lists & Data'!$A$11:$H$25,2,0))) -> 70 | F105: 17.76708267 | G105: =IF($F81="Wire",0,IF($F81="Sign",VLOOKUP($G81,'Pick Lists & Data'!$A$39:$G$43,6,0),VLOOKUP($G81,'Pick Lists & Data'!$A$11:$H$25,6,0))) -> 291.0663475 | H105: 5.6 | I105: =IF($F81="Wire",0,IF($F81="Sign",VLOOKUP($G81,'Pick Lists & Data'!$A$39:$G$43,7,0),VLOOKUP($G81,'Pick Lists & Data'!$A$11:$H$25,8,0))) -> 58.56
A106: 6 | B106: 83 | C106: 30" x 36" | D106: 7.5 | E106: =IF(F82="Wire",0,IF(F82="Sign",VLOOKUP(G82,'Pick Lists & Data'!$A$39:$G$43,2,0),VLOOKUP(G82,'Pick Lists & Data'!$A$11:$H$25,2,0))) -> 39 | F106: 9.51808 | G106: =IF($F82="Wire",0,IF($F82="Sign",VLOOKUP($G82,'Pick Lists & Data'!$A$39:$G$43,6,0),VLOOKUP($G82,'Pick Lists & Data'!$A$11:$H$25,6,0))) -> 247.123968 | H106: 3 | I106: =IF($F82="Wire",0,IF($F82="Sign",VLOOKUP($G82,'Pick Lists & Data'!$A$39:$G$43,7,0),VLOOKUP($G82,'Pick Lists & Data'!$A$11:$H$25,8,0))) -> 22.5
A107: 7 | B107: 90 | C107: A-3 | D107: 23 | E107: =IF(F83="Wire",0,IF(F83="Sign",VLOOKUP(G83,'Pick Lists & Data'!$A$39:$G$43,2,0),VLOOKUP(G83,'Pick Lists & Data'!$A$11:$H$25,2,0))) -> 70 | F107: 29.18877867 | G107: =IF($F83="Wire",0,IF($F83="Sign",VLOOKUP($G83,'Pick Lists & Data'!$A$39:$G$43,6,0),VLOOKUP($G83,'Pick Lists & Data'!$A$11:$H$25,6,0))) -> 291.0663475 | H107: 9.2 | I107: =IF($F83="Wire",0,IF($F83="Sign",VLOOKUP($G83,'Pick Lists & Data'!$A$39:$G$43,7,0),VLOOKUP($G83,'Pick Lists & Data'!$A$11:$H$25,8,0))) -> 58.56
A108: 8 | B108: 129 | C108: A-3 | D108: 24.625 | E108: =IF(F84="Wire",0,IF(F84="Sign",VLOOKUP(G84,'Pick Lists & Data'!$A$39:$G$43,2,0),VLOOKUP(G84,'Pick Lists & Data'!$A$11:$H$25,2,0))) -> 70 | F108: 31.25102933 | G108: =IF($F84="Wire",0,IF($F84="Sign",VLOOKUP($G84,'Pick Lists & Data'!$A$39:$G$43,6,0),VLOOKUP($G84,'Pick Lists & Data'!$A$11:$H$25,6,0))) -> 291.0663475 | H108: 9.85 | I108: =IF($F84="Wire",0,IF($F84="Sign",VLOOKUP($G84,'Pick Lists & Data'!$A$39:$G$43,7,0),VLOOKUP($G84,'Pick Lists & Data'!$A$11:$H$25,8,0))) -> 58.56
A109: 9 | B109: 139.25 | C109: 0.5" | D109: 10.25 | E109: =IF(F85="Wire",0,IF(F85="Sign",VLOOKUP(G85,'Pick Lists & Data'!$A$39:$G$43,2,0),VLOOKUP(G85,'Pick Lists & Data'!$A$11:$H$25,2,0))) -> 0 | F109: 13.00804267 | G109: =IF($F85="Wire",0,IF($F85="Sign",VLOOKUP($G85,'Pick Lists & Data'!$A$39:$G$43,6,0),VLOOKUP($G85,'Pick Lists & Data'!$A$11:$H$25,6,0))) -> 0 | H109: 4.1 | I109: =IF($F85="Wire",0,IF($F85="Sign",VLOOKUP($G85,'Pick Lists & Data'!$A$39:$G$43,7,0),VLOOKUP($G85,'Pick Lists & Data'!$A$11:$H$25,8,0))) -> 0
A110: 10 | B110: 149.5 | C110: 0.5" | D110: 10.25 | E110: =IF(F86="Wire",0,IF(F86="Sign",VLOOKUP(G86,'Pick Lists & Data'!$A$39:$G$43,2,0),VLOOKUP(G86,'Pick Lists & Data'!$A$11:$H$25,2,0))) -> 0 | F110: 13.00804267 | G110: =IF($F86="Wire",0,IF($F86="Sign",VLOOKUP($G86,'Pick Lists & Data'!$A$39:$G$43,6,0),VLOOKUP($G86,'Pick Lists & Data'!$A$11:$H$25,6,0))) -> 0 | H110: 4.1 | I110: =IF($F86="Wire",0,IF($F86="Sign",VLOOKUP($G86,'Pick Lists & Data'!$A$39:$G$43,7,0),VLOOKUP($G86,'Pick Lists & Data'!$A$11:$H$25,8,0))) -> 0
A111: 11 | B111: 159.75 | C111: 0.5" | D111: 10.25 | E111: =IF(F87="Wire",0,IF(F87="Sign",VLOOKUP(G87,'Pick Lists & Data'!$A$39:$G$43,2,0),VLOOKUP(G87,'Pick Lists & Data'!$A$11:$H$25,2,0))) -> 0 | F111: 13.00804267 | G111: =IF($F87="Wire",0,IF($F87="Sign",VLOOKUP($G87,'Pick Lists & Data'!$A$39:$G$43,6,0),VLOOKUP($G87,'Pick Lists & Data'!$A$11:$H$25,6,0))) -> 0 | H111: 4.1 | I111: =IF($F87="Wire",0,IF($F87="Sign",VLOOKUP($G87,'Pick Lists & Data'!$A$39:$G$43,7,0),VLOOKUP($G87,'Pick Lists & Data'!$A$11:$H$25,8,0))) -> 0
A112: 12 | B112: 170 | C112: 0.5" | D112: 0 | E112: =IF(F88="Wire",0,IF(F88="Sign",VLOOKUP(G88,'Pick Lists & Data'!$A$39:$G$43,2,0),VLOOKUP(G88,'Pick Lists & Data'!$A$11:$H$25,2,0))) -> 0 | F112: 0 | G112: =IF($F88="Wire",0,IF($F88="Sign",VLOOKUP($G88,'Pick Lists & Data'!$A$39:$G$43,6,0),VLOOKUP($G88,'Pick Lists & Data'!$A$11:$H$25,6,0))) -> 0 | H112: 0 | I112: =IF($F88="Wire",0,IF($F88="Sign",VLOOKUP($G88,'Pick Lists & Data'!$A$39:$G$43,7,0),VLOOKUP($G88,'Pick Lists & Data'!$A$11:$H$25,8,0))) -> 0
A113: 13 | B113: 0 | C113: None | D113: 0 | E113: =IF(F89="Wire",0,IF(F89="Sign",VLOOKUP(G89,'Pick Lists & Data'!$A$39:$G$43,2,0),VLOOKUP(G89,'Pick Lists & Data'!$A$11:$H$25,2,0))) -> 0 | F113: 0 | G113: =IF($F89="Wire",0,IF($F89="Sign",VLOOKUP($G89,'Pick Lists & Data'!$A$39:$G$43,6,0),VLOOKUP($G89,'Pick Lists & Data'!$A$11:$H$25,6,0))) -> 0 | H113: 0 | I113: =IF($F89="Wire",0,IF($F89="Sign",VLOOKUP($G89,'Pick Lists & Data'!$A$39:$G$43,7,0),VLOOKUP($G89,'Pick Lists & Data'!$A$11:$H$25,8,0))) -> 0
A114: 14 | B114: 0 | C114: None | D114: 0 | E114: =IF(F90="Wire",0,IF(F90="Sign",VLOOKUP(G90,'Pick Lists & Data'!$A$39:$G$43,2,0),VLOOKUP(G90,'Pick Lists & Data'!$A$11:$H$25,2,0))) -> 0 | F114: 0 | G114: =IF($F90="Wire",0,IF($F90="Sign",VLOOKUP($G90,'Pick Lists & Data'!$A$39:$G$43,6,0),VLOOKUP($G90,'Pick Lists & Data'!$A$11:$H$25,6,0))) -> 0 | H114: 0 | I114: =IF($F90="Wire",0,IF($F90="Sign",VLOOKUP($G90,'Pick Lists & Data'!$A$39:$G$43,7,0),VLOOKUP($G90,'Pick Lists & Data'!$A$11:$H$25,8,0))) -> 0
A115: 15 | B115: 0 | C115: None | D115: =IF($T162=0,0,IF($E91<$C$21,(($E91-$E90)*0.5+($T162-$E91)*0.5)*$D$96,(($E91-$E90)*0.5+($T162-E$78))*$D$96)) -> 0 | E115: =IF(F91="Wire",0,IF(F91="Sign",VLOOKUP(G91,'Pick Lists & Data'!$A$39:$G$43,2,0),VLOOKUP(G91,'Pick Lists & Data'!$A$11:$H$25,2,0))) -> 0 | F115: =IF($T162=0,0,IF($E91<$C$21,(($E91-$E90)*0.5+($T162-$E91)*0.5)*$D$97,(($E91-$E90)*0.5+($T162-G$78))*$D$97)) -> 0 | G115: =IF($F91="Wire",0,IF($F91="Sign",VLOOKUP($G91,'Pick Lists & Data'!$A$39:$G$43,6,0),VLOOKUP($G91,'Pick Lists & Data'!$A$11:$H$25,6,0))) -> 0 | H115: =IF($T162=0,0,IF($E91<$C$21,(($E91-$E90)*0.5+($T162-$E91)*0.5)*$D$98,(($E91-$E90)*0.5+($T162-E$102))*$D$98)) -> 0 | I115: =IF($F91="Wire",0,IF($F91="Sign",VLOOKUP($G91,'Pick Lists & Data'!$A$39:$G$43,7,0),VLOOKUP($G91,'Pick Lists & Data'!$A$11:$H$25,8,0))) -> 0
A117: Place Distances and Loads into table for span wire analysis
B119: Loading Final Rank | C119: Distance (Xn) | D119: Dead Load | E119: Wind Load | F119: Ice Load | G119: Load Description | H119: Signal Config/Sign Size/Wire Diameter
B120: 1 | C120: =B101 -> 9 | D120: =SUM(D101:E101) -> 13.5 | E120: =SUM(F101:G101) -> 14.710848 | F120: =SUM(H101:I101) -> 10.8 | G120: =F77 -> Wire | H120: =C101 -> 0.5"
B121: 2 | C121: =B102 -> 18 | D121: =SUM(D102:E102) -> 9 | E121: =SUM(F102:G102) -> 11.421696 | F121: =SUM(H102:I102) -> 3.6 | G121: Wire | H121: =C102 -> 0.5"
B122: 3 | C122: 27 | D122: 124.5 | E122: 732.2045508 | F122: 71.39 | G122: Sign | H122: 96" x 32"
B123: 4 | C123: 55 | D123: 94 | E123: 321.5242035 | F123: 68.16 | G123: Signal | H123: A-3
B124: 5 | C124: 75 | D124: 84 | E124: 308.8334302 | F124: 64.16 | G124: Signal | H124: A-3
B125: 6 | C125: 83 | D125: 46.5 | E125: 256.642048 | F125: 25.5 | G125: Sign | H125: 30" x 36"
B126: 7 | C126: 90 | D126: 93 | E126: 320.2551262 | F126: 67.76 | G126: Signal | H126: A-3
B127: 8 | C127: 129 | D127: 94.625 | E127: 322.3173769 | F127: 68.41 | G127: Signal | H127: A-3
B128: 9 | C128: 139.25 | D128: 10.25 | E128: 13.00804267 | F128: 4.1 | G128: Wire | H128: 0.5"
B129: 10 | C129: 149.5 | D129: 10.25 | E129: 13.00804267 | F129: 4.1 | G129: Wire | H129: 0.5"
B130: 11 | C130: 159.75 | D130: 10.25 | E130: 13.00804267 | F130: 4.1 | G130: Wire | H130: 0.5"
B131: 12 | C131: 170 | D131: 0 | E131: 0 | F131: 0 | G131: Wire | H131: 0.5"
B132: 13 | C132: 0 | D132: 0 | E132: 0 | F132: 0 | G132: Sign | H132: None
B133: 14 | C133: 0 | D133: 0 | E133: 0 | F133: 0 | G133: Sign | H133: None
B134: 15 | C134: 0 | D134: 0 | E134: 0 | F134: 0 | G134: Sign | H134: None
D135: =SUM(D120:D134) -> 589.875 | E135: =SUM(E120:E134) -> 2326.933408
B137: * Distances MUST be entered in order, starting with the load closest to Support 1 and moving
B138: right towards Support 2. If all 14 loads are not used, a "null distance" and a "null load" must be
B139: assigned to the worksheet cell (ie. Enter a zero for each null value.)
A141: Dead Load (Group I Loading, also used for Groups II and III)
A143: Calculate Dead Load Reactions:
B144: Summing moments about Support 2 (Counter clockwise-moments positive):
B146: Loading | C146: Dead Load | D146: Arm | E146: Moment
B147: =B120 -> 1 | C147: =D120 -> 13.5 | D147: =C120 -> 9 | E147: =C147*D147 -> 121.5
B148: 2 | C148: 9 | D148: 18 | E148: 162
B149: 3 | C149: 124.5 | D149: 27 | E149: 3361.5
B150: 4 | C150: 94 | D150: 55 | E150: 5170
B151: 5 | C151: 84 | D151: 75 | E151: 6300
B152: 6 | C152: 46.5 | D152: 83 | E152: 3859.5
B153: 7 | C153: 93 | D153: 90 | E153: 8370
B154: 8 | C154: 94.625 | D154: 129 | E154: 12206.625
B155: 9 | C155: 10.25 | D155: 139.25 | E155: 1427.3125
B156: 10 | C156: 10.25 | D156: 149.5 | E156: 1532.375
B157: 11 | C157: 10.25 | D157: 159.75 | E157: 1637.4375
B158: 12 | C158: 0 | D158: 170 | E158: 0
B159: 13 | C159: 0 | D159: 0 | E159: 0
B160: 14 | C160: 0 | D160: 0 | E160: 0
B161: 15 | C161: 0 | D161: 0 | E161: 0
B163: S MomentsSupport 2 = 0 = [(S Loadn * Xn)] - (R Support 1 * Length)
B164: R Support 1 = | C164: =(SUM(E147:E161)/C21) -> 259.6955882 | D164: lbs
B166: S Forcey = 0 = R Support 2 + R Support 1 - (S Loadn)
B167: R Support 2 = | C167: =(SUM(C147:C161))-C164 -> 330.1794118 | D167: lbs
A169: Dead Load Shear Diagram:
B170: Location | C170: Distance | D170: Load / Reaction | E170: Shear 1 | F170: Shear 2
B171: Support 2 | C171: 0 | D171: =C167 -> 330.1794118 | E171: =0 -> 0 | F171: =E171+C167 -> 330.1794118 | G171: =IF(AND(E171>=0,F171>=0),"+ / +",IF(AND(E171<=0,F171<=0),"- / -","+ / -")) -> + / + | H171: =IF(G171="+ / -","Low Point","") ->  | I171: =IF(H171="Low Point",C171," ") -> 
B172: =B120 -> 1 | C172: 9 | D172: 13.5 | E172: =IF(D172>0,F171," ") -> 330.1794118 | F172: =IF(D171>0,E172-D172," ") -> 316.6794118 | G172: =IF(AND(E172>=0,F172>=0),"+ / +",IF(AND(E172<=0,F172<=0),"- / -","+ / -")) -> + / + | H172: =IF(G172="+ / -","Low Point","") ->  | I172: =IF(H172="Low Point",C172," ") -> 
B173: 2 | C173: 18 | D173: 9 | E173: =F172 -> 316.6794118 | F173: =E173-D173 -> 307.6794118 | G173: + / +
B174: 3 | C174: 27 | D174: 124.5 | E174: =F173 -> 307.6794118 | F174: =E174-D174 -> 183.1794118 | G174: =IF(AND(E174>=0,F174>=0),"+ / +",IF(AND(E174<=0,F174<=0),"- / -","+ / -")) -> + / + | H174: =IF(G174="+ / -","Low Point","") ->  | I174: =IF(H174="Low Point",C174," ") -> 
B175: 4 | C175: 55 | D175: 94 | E175: =F174 -> 183.1794118 | F175: =E175-D175 -> 89.17941176 | G175: + / + | H175: =IF(G175="+ / -","Low Point","") -> 
B176: 5 | C176: 75 | D176: 84 | E176: =F175 -> 89.17941176 | F176: 5.179411765 | G176: + / +
B177: 6 | C177: 83 | D177: 46.5 | E177: 5.179411765 | F177: -41.32058824 | G177: + / - | H177: Low Point | I177: 83
B178: 7 | C178: 90 | D178: 93 | E178: -41.32058824 | F178: -134.3205882 | G178: - / -
B179: 8 | C179: 129 | D179: 94.625 | E179: -134.3205882 | F179: -228.9455882 | G179: - / -
B180: 9 | C180: 139.25 | D180: 10.25 | E180: -228.9455882 | F180: -239.1955882 | G180: - / -
B181: 10 | C181: 149.5 | D181: 10.25 | E181: -239.1955882 | F181: -249.4455882 | G181: - / -
B182: 11 | C182: 159.75 | D182: 10.25 | E182: -249.4455882 | F182: -259.6955882 | G182: - / -
B183: 12 | C183: 170 | D183: 0 | E183: -259.6955882 | F183: -259.6955882 | G183: - / -
B184: 13 | C184: 0 | D184: 0 | E184: -259.6955882 | F184: -259.6955882 | G184: - / -
B185: 14 | C185: 0 | D185: 0 | E185: -259.6955882 | F185: -259.6955882 | G185: - / -
B186: 15 | C186: 0 | D186: 0 | E186: -259.6955882 | F186: -259.6955882 | G186: - / -
B187: Support 1 | C187: =C21 -> 170 | D187: =C164 -> 259.6955882 | E187: =F186 -> -259.6955882 | F187: =E187+D187 -> 0 | G187: - / -
B189: The Low Point occurs at: | D189: =MAX(I171:I187) -> 83 | E189: feet from Support 2
A190: Calculation: Sum Moments about Low Point to Determine Horizontal Reaction:
B192: Maximum Allowable Sag: | D192: =(G21/100)*C21 -> 8.5 | E192: feet
B193: Summing Moments about the Low point (Counter-Clockwise Positive):
B195: Location | C195: Distance from Low Point | D195: Load | E195: Moment
B196: Support 2 | C196: =D189 -> 83 | D196: =D171 -> 330.1794118 | E196: =C196*D196 -> 27404.89118
B197: =B120 -> 1 | C197: =IF(C172=0,0,IF(C172<$D$189,($D$189-C172),0)) -> 74 | D197: 13.5 | E197: =-C197*D197 -> -999
B198: 2 | C198: 65 | D198: 9 | E198: =-C198*D198 -> -585
B199: 3 | C199: 56 | D199: 124.5 | E199: =-C199*D199 -> -6972
B200: 4 | C200: 28 | D200: 94 | E200: =-C200*D200 -> -2632
B201: 5 | C201: 8 | D201: 84 | E201: =-C201*D201 -> -672
B202: 6 | C202: 0 | D202: 46.5 | E202: 0
B203: 7 | C203: 0 | D203: 93 | E203: 0
B204: 8 | C204: 0 | D204: 94.625 | E204: 0
B205: 9 | C205: 0 | D205: 10.25 | E205: 0
B206: 10 | C206: 0 | D206: 10.25 | E206: 0
B207: 11 | C207: 0 | D207: 10.25 | E207: 0
B208: 12 | C208: 0 | D208: 0 | E208: 0
B209: 13 | C209: 0 | D209: 0 | E209: 0
B210: 14 | C210: 0 | D210: 0 | E210: 0
B211: 15 | C211: 0 | D211: 0 | E211: 0
B212: Support 1 | C212: 0 | D212: 259.6955882 | E212: 0
B214: Determine Horizontal force:
B215: H = | C215: =ABS(SUM(E196:E212)/D192) -> 1828.810727 | D215: lbs
A217: Calculate Actual Length of Cable (Accounting for sag, Dead Load Only):
B218: Fy = Shear 2, calculated above.
B220: Location | C220: Fy | D220: xi | E220: Length of Segment
B221: Support 1
B222: =B120 -> 1 | C222: =E172 -> 330.1794118 | D222: =IF(B222<($G$6+1),((C172-C171)),(IF(B222=($G$6+1),(($C$187-C171)),0))) -> 9 | E222: =SQRT($C$215^2+C222^2)*(D222/$C$215) -> 9.145505166
B223: 2 | C223: =E173 -> 316.6794118 | D223: 9 | E223: =SQRT($C$215^2+C223^2)*(D223/$C$215) -> 9.133935312
B224: 3 | C224: 307.6794118 | D224: 9 | E224: 9.126482614
B225: 4 | C225: 183.1794118 | D225: 28 | E225: 28.14010661
B226: 5 | C226: 89.17941176 | D226: 20 | E226: 20.02376478
B227: 6 | C227: 5.179411765 | D227: 8 | E227: 8.000032084
B228: 7 | C228: -41.32058824 | D228: 7 | E228: 7.001786521
B229: 8 | C229: -134.3205882 | D229: 39 | E229: 39.10505041
B230: 9 | C230: -228.9455882 | D230: 10.25 | E230: 10.33000723
B231: 10 | C231: -239.1955882 | D231: 10.25 | E231: 10.33730058
B232: 11 | C232: -249.4455882 | D232: 10.25 | E232: 10.34490782
B233: 12 | C233: -259.6955882 | D233: 10.25 | E233: 10.35282827
B234: 13 | C234: -259.6955882 | D234: 0 | E234: 0
B235: 14 | C235: -259.6955882 | D235: 0 | E235: 0
B236: 15 | C236: -259.6955882 | D236: 0 | E236: 0
B237: Support 2 | C237: -259.6955882 | D237: 0 | E237: 0
D239: Total Length = | E239: =SUM(E221:E237) -> 171.0417074
... 141 more rows

Sheet SW4
A1: Strain Pole Design - SW4 Cable Stringing Tension
A3: Assumptions: | B3: This spreadsheet calculates the tension in strain poles for overhead sign in accordance with the AASHTO Specifications for Structural Supports for Highway Signs, Luminaires and Traffic Signals 4th Edition 2001, including the 2002 and 2003 Interims (Per DM-4), and the Pennsylvania Department of Transportation Criteria for the Design of Traffic Related Structures.
B5: Number of assumed concentrated loads on the strain pole cable. Also must consider concentrated cable loads with a minimum of 5 segments. | I5: Y
F6: = | G6: =I51 -> 12
H7: M
B9: Support 1 (Left) | G9: X | I9: Support 2 (Right)
G13: Loadn
G17: Xn
E19: Length
B21: Length: | C21: =L4_ -> 160 | D21: feet | E21: Maximum Allowable Sag: | G21: 5 | H21: percent
A24: Rank loading ID's from right to left ( Support 2 to Support 1) and calculate wire segment lengths:
A26: The spreadsheet assumes that 3 wire segments are placed before the first point load and 2 wire segments are placed after the last point load. The number of point loads is calculated by adding the number of point loads input and adding 5 point loads due to the wire segments.
B28: Original Rank | C28: Re-rank | D28: Final Rank | E28: Loading ID | F28: Distance
B29: =IF(F29<>"N/A",RANK(F29,$F$29:$F$37,1),"Exclude") -> 6 | C29: =IF(ISNUMBER(B29)=TRUE,B29,MAX($B$29:$B$37)+1) -> 6 | D29: =RANK(C29,$C$29:$C$37,1) -> 6 | E29: M | F29: =IF(Input!H77="None","N/A",Input!I77) -> 120
B30: 5 | C30: =IF(ISNUMBER(B30)=TRUE,B30,MAX($B$29:$B$37)+2) -> 5 | D30: 5 | E30: N | F30: =IF(Input!H78="None","N/A",Input!I78) -> 95
B31: 3 | C31: =IF(ISNUMBER(B31)=TRUE,B31,MAX($B$29:$B$37)+3) -> 3 | D31: 3 | E31: O | F31: =IF(Input!H79="None","N/A",Input!I79) -> 72
B32: 2 | C32: =IF(ISNUMBER(B32)=TRUE,B32,MAX($B$29:$B$37)+4) -> 2 | D32: 2 | E32: P | F32: =IF(Input!H80="None","N/A",Input!I80) -> 50
B33: 7 | C33: =IF(ISNUMBER(B33)=TRUE,B33,MAX($B$29:$B$37)+5) -> 7 | D33: 7 | E33: R | F33: =IF(Input!G81="None","N/A",Input!I81) -> 125
B34: 4 | C34: =IF(ISNUMBER(B34)=TRUE,B34,MAX($B$29:$B$37)+6) -> 4 | D34: 4 | E34: S | F34: =IF(Input!G82="None","N/A",Input!I82) -> 90
B35: Exclude | C35: =IF(ISNUMBER(B35)=TRUE,B35,MAX($B$29:$B$37)+7) -> 14 | D35: 8 | E35: T | F35: =IF(Input!G83="None","N/A",Input!I83) -> N/A
B36: Exclude | C36: =IF(ISNUMBER(B36)=TRUE,B36,MAX($B$29:$B$37)+8) -> 15 | D36: 9 | E36: U | F36: =IF(Input!G84="None","N/A",Input!I84) -> N/A
B37: 1 | C37: =IF(ISNUMBER(B37)=TRUE,B37,MAX($B$29:$B$37)+9) -> 1 | D37: 1 | E37: Y | F37: =IF(Input!G85="None","N/A",Input!I85) -> 27
C39: Rank | D39: Loading ID | E39: Distance | F39: Count
C40: 1 | D40: =VLOOKUP(C40,$D$29:$F$37,2,0) -> Y | E40: =VLOOKUP(C40,$D$29:$F$37,3,0) -> 27 | F40: =IF(E40<>"N/A",1,0) -> 1
C41: 2 | D41: P | E41: 50 | F41: 1
C42: 3 | D42: O | E42: 72 | F42: 1
C43: 4 | D43: S | E43: 90 | F43: 1
C44: 5 | D44: N | E44: 95 | F44: 1
C45: 6 | D45: M | E45: 120 | F45: 1
C46: 7 | D46: R | E46: 125 | F46: 1
C47: 8 | D47: T | E47: N/A | F47: 0
C48: 9 | D48: U | E48: N/A | F48: 0
C49: Wire Sections | D49: W1 | E49: =MIN(E40:E48)/3 -> 9
D50: W2 | E50: =MIN(E40:E48)/3+E49 -> 18 | H50: Number of Point Loads: | I50: =SUM(F40:F48) -> 7
D51: W3 | E51: =(C21-MAX(E40:E48))/4+MAX(E40:E48) -> 133.75 | H51: No. of Point Loads w/ Wire Segments: | I51: =I50+5 -> 12
D52: W4 | E52: =(C21-MAX(E40:E48))/4+E51 -> 142.5
D53: W5 | E53: =(C21-MAX(E40:E48))/4+E52 -> 151.25
D54: W6 | E54: =C21 -> 160
A57: Rank ID's and Wire Segments from right to left ( Support 2 to Support 1) and calculate loading:
C59: Original Rank With Wire | D59: Re-rank | E59: Final Rank | F59: Loading ID | G59: Distance
C60: =IF(E40<>"N/A",RANK(E40,$E$40:$E$54,1),"Exclude") -> 3 | D60: =IF(ISNUMBER(C60)=TRUE,C60,MAX($C$60:$C$74)+1) -> 3 | E60: =RANK(D60,$D$60:$D$74,1) -> 3 | F60: =D40 -> Y | G60: =E40 -> 27
C61: 4 | D61: =IF(ISNUMBER(C61)=TRUE,C61,MAX($C$60:$C$74)+2) -> 4 | E61: 4 | F61: P | G61: 50
C62: 5 | D62: =IF(ISNUMBER(C62)=TRUE,C62,MAX($C$60:$C$74)+3) -> 5 | E62: 5 | F62: O | G62: 72
C63: 6 | D63: =IF(ISNUMBER(C63)=TRUE,C63,MAX($C$60:$C$74)+4) -> 6 | E63: 6 | F63: S | G63: 90
C64: 7 | D64: =IF(ISNUMBER(C64)=TRUE,C64,MAX($C$60:$C$74)+5) -> 7 | E64: 7 | F64: N | G64: 95
C65: 8 | D65: =IF(ISNUMBER(C65)=TRUE,C65,MAX($C$60:$C$74)+6) -> 8 | E65: 8 | F65: M | G65: 120
C66: 9 | D66: =IF(ISNUMBER(C66)=TRUE,C66,MAX($C$60:$C$74)+7) -> 9 | E66: 9 | F66: R | G66: 125
C67: Exclude | D67: =IF(ISNUMBER(C67)=TRUE,C67,MAX($C$60:$C$74)+8) -> 21 | E67: 14 | F67: T | G67: N/A
C68: Exclude | D68: =IF(ISNUMBER(C68)=TRUE,C68,MAX($C$60:$C$74)+9) -> 22 | E68: 15 | F68: U | G68: N/A
C69: 1 | D69: =IF(ISNUMBER(C69)=TRUE,C69,MAX($C$60:$C$74)+10) -> 1 | E69: 1 | F69: W1 | G69: 9
C70: 2 | D70: =IF(ISNUMBER(C70)=TRUE,C70,MAX($C$60:$C$74)+11) -> 2 | E70: 2 | F70: W2 | G70: 18
C71: 10 | D71: =IF(ISNUMBER(C71)=TRUE,C71,MAX($C$60:$C$74)+12) -> 10 | E71: 10 | F71: W3 | G71: 133.75
C72: 11 | D72: =IF(ISNUMBER(C72)=TRUE,C72,MAX($C$60:$C$74)+13) -> 11 | E72: 11 | F72: W4 | G72: 142.5
C73: 12 | D73: =IF(ISNUMBER(C73)=TRUE,C73,MAX($C$60:$C$74)+14) -> 12 | E73: 12 | F73: W5 | G73: 151.25
C74: 13 | D74: =IF(ISNUMBER(C74)=TRUE,C74,MAX($C$60:$C$74)+15) -> 13 | E74: 13 | F74: W6 | G74: 160
B76: Final Rank | C76: Loading ID | D76: Distance | E76: Distance for Table | F76: Load description | G76: Signal Config/Sign Size/Wire Dia
B77: 1 | C77: =VLOOKUP(B77,$E$60:$G$74,2,0) -> W1 | D77: =VLOOKUP(B77,$E$60:$G$74,3,0) -> 9 | E77: =IF(ISNUMBER(D77),D77,0) -> 9 | F77: =IF(OR(C77=$D$49,C77=$D$50,C77=$D$51,C77=$D$52,C77=$D$53,C77=$D$54),"Wire",VLOOKUP(C77,Input!$B$77:$C$85,2,0)) -> Wire | G77: =IF(F77="Signal",VLOOKUP(C77,Input!$B$77:$I$85,7,0),IF(F77="Sign",VLOOKUP(C77,Input!$B$77:$I$85,6,0),SW4_Wire_Dia)) -> 0.5"
B78: 2 | C78: W2 | D78: 18 | E78: 18 | F78: =IF(OR(C78=$D$49,C78=$D$50,C78=$D$51,C78=$D$52,C78=$D$53,C78=$D$54),"Wire",VLOOKUP(C78,Input!$B$77:$C$85,2,0)) -> Wire | G78: =IF(F78="Signal",VLOOKUP(C78,Input!$B$77:$I$85,7,0),IF(F78="Sign",VLOOKUP(C78,Input!$B$77:$I$85,6,0),SW4_Wire_Dia)) -> 0.5"
B79: 3 | C79: Y | D79: 27 | E79: 27 | F79: =IF(OR(C79=$D$49,C79=$D$50,C79=$D$51,C79=$D$52,C79=$D$53,C79=$D$54),"Wire",VLOOKUP(C79,Input!$B$77:$C$85,2,0)) -> Sign | G79: =IF(F79="Signal",VLOOKUP(C79,Input!$B$77:$I$85,7,0),IF(F79="Sign",VLOOKUP(C79,Input!$B$77:$I$85,6,0),SW4_Wire_Dia)) -> 96" x 32"
B80: 4 | C80: P | D80: 50 | E80: 50 | F80: =IF(OR(C80=$D$49,C80=$D$50,C80=$D$51,C80=$D$52,C80=$D$53,C80=$D$54),"Wire",VLOOKUP(C80,Input!$B$77:$C$85,2,0)) -> Signal | G80: =IF(F80="Signal",VLOOKUP(C80,Input!$B$77:$I$85,7,0),IF(F80="Sign",VLOOKUP(C80,Input!$B$77:$I$85,6,0),SW4_Wire_Dia)) -> A-3
B81: 5 | C81: O | D81: 72 | E81: 72 | F81: =IF(OR(C81=$D$49,C81=$D$50,C81=$D$51,C81=$D$52,C81=$D$53,C81=$D$54),"Wire",VLOOKUP(C81,Input!$B$77:$C$85,2,0)) -> Signal | G81: =IF(F81="Signal",VLOOKUP(C81,Input!$B$77:$I$85,7,0),IF(F81="Sign",VLOOKUP(C81,Input!$B$77:$I$85,6,0),SW4_Wire_Dia)) -> A-3
B82: 6 | C82: S | D82: 90 | E82: 90 | F82: =IF(OR(C82=$D$49,C82=$D$50,C82=$D$51,C82=$D$52,C82=$D$53,C82=$D$54),"Wire",VLOOKUP(C82,Input!$B$77:$C$85,2,0)) -> Sign | G82: =IF(F82="Signal",VLOOKUP(C82,Input!$B$77:$I$85,7,0),IF(F82="Sign",VLOOKUP(C82,Input!$B$77:$I$85,6,0),SW4_Wire_Dia)) -> 30" x 36"
B83: 7 | C83: N | D83: 95 | E83: 95 | F83: =IF(OR(C83=$D$49,C83=$D$50,C83=$D$51,C83=$D$52,C83=$D$53,C83=$D$54),"Wire",VLOOKUP(C83,Input!$B$77:$C$85,2,0)) -> Signal | G83: =IF(F83="Signal",VLOOKUP(C83,Input!$B$77:$I$85,7,0),IF(F83="Sign",VLOOKUP(C83,Input!$B$77:$I$85,6,0),SW4_Wire_Dia)) -> A-3
B84: 8 | C84: M | D84: 120 | E84: 120 | F84: =IF(OR(C84=$D$49,C84=$D$50,C84=$D$51,C84=$D$52,C84=$D$53,C84=$D$54),"Wire",VLOOKUP(C84,Input!$B$77:$C$85,2,0)) -> Signal | G84: =IF(F84="Signal",VLOOKUP(C84,Input!$B$77:$I$85,7,0),IF(F84="Sign",VLOOKUP(C84,Input!$B$77:$I$85,6,0),SW4_Wire_Dia)) -> A-5
B85: 9 | C85: R | D85: 125 | E85: 125 | F85: =IF(OR(C85=$D$49,C85=$D$50,C85=$D$51,C85=$D$52,C85=$D$53,C85=$D$54),"Wire",VLOOKUP(C85,Input!$B$77:$C$85,2,0)) -> Sign | G85: =IF(F85="Signal",VLOOKUP(C85,Input!$B$77:$I$85,7,0),IF(F85="Sign",VLOOKUP(C85,Input!$B$77:$I$85,6,0),SW4_Wire_Dia)) -> 30" x 36"
B86: 10 | C86: W3 | D86: 133.75 | E86: 133.75 | F86: =IF(OR(C86=$D$49,C86=$D$50,C86=$D$51,C86=$D$52,C86=$D$53,C86=$D$54),"Wire",VLOOKUP(C86,Input!$B$77:$C$85,2,0)) -> Wire | G86: =IF(F86="Signal",VLOOKUP(C86,Input!$B$77:$I$85,7,0),IF(F86="Sign",VLOOKUP(C86,Input!$B$77:$I$85,6,0),SW4_Wire_Dia)) -> 0.5"
B87: 11 | C87: W4 | D87: 142.5 | E87: 142.5 | F87: =IF(OR(C87=$D$49,C87=$D$50,C87=$D$51,C87=$D$52,C87=$D$53,C87=$D$54),"Wire",VLOOKUP(C87,Input!$B$77:$C$85,2,0)) -> Wire | G87: =IF(F87="Signal",VLOOKUP(C87,Input!$B$77:$I$85,7,0),IF(F87="Sign",VLOOKUP(C87,Input!$B$77:$I$85,6,0),SW4_Wire_Dia)) -> 0.5"
B88: 12 | C88: W5 | D88: 151.25 | E88: 151.25 | F88: =IF(OR(C88=$D$49,C88=$D$50,C88=$D$51,C88=$D$52,C88=$D$53,C88=$D$54),"Wire",VLOOKUP(C88,Input!$B$77:$C$85,2,0)) -> Wire | G88: =IF(F88="Signal",VLOOKUP(C88,Input!$B$77:$I$85,7,0),IF(F88="Sign",VLOOKUP(C88,Input!$B$77:$I$85,6,0),SW4_Wire_Dia)) -> 0.5"
B89: 13 | C89: W6 | D89: 160 | E89: 160 | F89: =IF(OR(C89=$D$49,C89=$D$50,C89=$D$51,C89=$D$52,C89=$D$53,C89=$D$54),"Wire",VLOOKUP(C89,Input!$B$77:$C$85,2,0)) -> Wire | G89: =IF(F89="Signal",VLOOKUP(C89,Input!$B$77:$I$85,7,0),IF(F89="Sign",VLOOKUP(C89,Input!$B$77:$I$85,6,0),SW4_Wire_Dia)) -> 0.5"
B90: 14 | C90: T | D90: N/A | E90: 0 | F90: =IF(OR(C90=$D$49,C90=$D$50,C90=$D$51,C90=$D$52,C90=$D$53,C90=$D$54),"Wire",VLOOKUP(C90,Input!$B$77:$C$85,2,0)) -> Sign | G90: =IF(F90="Signal",VLOOKUP(C90,Input!$B$77:$I$85,7,0),IF(F90="Sign",VLOOKUP(C90,Input!$B$77:$I$85,6,0),SW4_Wire_Dia)) -> None
B91: 15 | C91: U | D91: N/A | E91: 0 | F91: =IF(OR(C91=$D$49,C91=$D$50,C91=$D$51,C91=$D$52,C91=$D$53,C91=$D$54),"Wire",VLOOKUP(C91,Input!$B$77:$C$85,2,0)) -> Sign | G91: =IF(F91="Signal",VLOOKUP(C91,Input!$B$77:$I$85,7,0),IF(F91="Sign",VLOOKUP(C91,Input!$B$77:$I$85,6,0),SW4_Wire_Dia)) -> None
A93: Calculate Loads:
B95: Wire Weights:
C96: Wire Weight = | D96: =VLOOKUP(SW1_Wire_Dia,'Pick Lists & Data'!A29:B33,2,0) -> 1 | E96: lb/ft
C97: Wire Wind Load = | D97: =VLOOKUP(SW1_Wire_Dia,'Pick Lists & Data'!A29:L33,10,0) -> 1.269077333 | E97: lb/ft
C98: Wire Ice Load = | D98: =VLOOKUP(SW1_Wire_Dia,'Pick Lists & Data'!A29:L33,12,0) -> 0.4 | E98: lb/ft
A100: Loading Final Rank | B100: Distance for Table | C100: Signal Config/Sign Size/Wire Dia | D100: Wire Segment Dead Load | E100: Signal/Sign Dead Load | F100: Wire Segment Wind Load | G100: Signal/Sign Wind Load | H100: Wire Segment Ice Load | I100: Signal/Sign Ice Load
A101: =B77 -> 1 | B101: =E77 -> 9 | C101: =G77 -> 0.5" | D101: =$D$77+($D$78-$D$77)*0.5*$D$96 -> 13.5 | E101: =IF($F77="Wire",0,IF($F77="Sign",VLOOKUP($G77,'Pick Lists & Data'!$A$39:$G$43,2,0),VLOOKUP($G77,'Pick Lists & Data'!$A$11:$H$25,2,0))) -> 0 | F101: =$D$77+($D$78-$D$77)*0.5*$D$97 -> 14.710848 | G101: =IF($F77="Wire",0,IF($F77="Sign",VLOOKUP($G77,'Pick Lists & Data'!$A$39:$G$43,6,0),VLOOKUP($G77,'Pick Lists & Data'!$A$11:$H$25,6,0))) -> 0 | H101: =$D$77+($D$78-$D$77)*0.5*$D$98 -> 10.8 | I101: =IF($F77="Wire",0,IF($F77="Sign",VLOOKUP($G77,'Pick Lists & Data'!$A$39:$G$43,7,0),VLOOKUP($G77,'Pick Lists & Data'!$A$11:$H$25,8,0))) -> 0
A102: 2 | B102: 18 | C102: 0.5" | D102: =IF($E79=0,0,IF($E78<$C$21,(($E78-$E77)*0.5+($E79-$E78)*0.5)*$D$96,(($E78-$E77)*0.5+($E79-E$78))*$D$96)) -> 9 | E102: =IF(F78="Wire",0,IF(F78="Sign",VLOOKUP(G78,'Pick Lists & Data'!$A$39:$G$43,2,0),VLOOKUP(G78,'Pick Lists & Data'!$A$11:$H$25,2,0))) -> 0 | F102: =IF($E79=0,0,IF($E78<$C$21,(($E78-$E77)*0.5+($E79-$E78)*0.5)*$D$97,(($E78-$E77)*0.5+($E79-G$78))*$D$97)) -> 11.421696 | G102: =IF($F78="Wire",0,IF($F78="Sign",VLOOKUP($G78,'Pick Lists & Data'!$A$39:$G$43,6,0),VLOOKUP($G78,'Pick Lists & Data'!$A$11:$H$25,6,0))) -> 0 | H102: =IF($E79=0,0,IF($E78<$C$21,(($E78-$E77)*0.5+($E79-$E78)*0.5)*$D$98,(($E78-$E77)*0.5+($E79-E$102))*$D$98)) -> 3.6 | I102: =IF($F78="Wire",0,IF($F78="Sign",VLOOKUP($G78,'Pick Lists & Data'!$A$39:$G$43,7,0),VLOOKUP($G78,'Pick Lists & Data'!$A$11:$H$25,8,0))) -> 0
A103: 3 | B103: 27 | C103: 96" x 32" | D103: 16 | E103: =IF(F79="Wire",0,IF(F79="Sign",VLOOKUP(G79,'Pick Lists & Data'!$A$39:$G$43,2,0),VLOOKUP(G79,'Pick Lists & Data'!$A$11:$H$25,2,0))) -> 106 | F103: 20.30523733 | G103: =IF($F79="Wire",0,IF($F79="Sign",VLOOKUP($G79,'Pick Lists & Data'!$A$39:$G$43,6,0),VLOOKUP($G79,'Pick Lists & Data'!$A$11:$H$25,6,0))) -> 708.7266202 | H103: 6.4 | I103: =IF($F79="Wire",0,IF($F79="Sign",VLOOKUP($G79,'Pick Lists & Data'!$A$39:$G$43,7,0),VLOOKUP($G79,'Pick Lists & Data'!$A$11:$H$25,8,0))) -> 63.99
A104: 4 | B104: 50 | C104: A-3 | D104: 22.5 | E104: =IF(F80="Wire",0,IF(F80="Sign",VLOOKUP(G80,'Pick Lists & Data'!$A$39:$G$43,2,0),VLOOKUP(G80,'Pick Lists & Data'!$A$11:$H$25,2,0))) -> 70 | F104: 28.55424 | G104: =IF($F80="Wire",0,IF($F80="Sign",VLOOKUP($G80,'Pick Lists & Data'!$A$39:$G$43,6,0),VLOOKUP($G80,'Pick Lists & Data'!$A$11:$H$25,6,0))) -> 291.0663475 | H104: 9 | I104: =IF($F80="Wire",0,IF($F80="Sign",VLOOKUP($G80,'Pick Lists & Data'!$A$39:$G$43,7,0),VLOOKUP($G80,'Pick Lists & Data'!$A$11:$H$25,8,0))) -> 58.56
A105: 5 | B105: 72 | C105: A-3 | D105: 20 | E105: =IF(F81="Wire",0,IF(F81="Sign",VLOOKUP(G81,'Pick Lists & Data'!$A$39:$G$43,2,0),VLOOKUP(G81,'Pick Lists & Data'!$A$11:$H$25,2,0))) -> 70 | F105: 25.38154667 | G105: =IF($F81="Wire",0,IF($F81="Sign",VLOOKUP($G81,'Pick Lists & Data'!$A$39:$G$43,6,0),VLOOKUP($G81,'Pick Lists & Data'!$A$11:$H$25,6,0))) -> 291.0663475 | H105: 8 | I105: =IF($F81="Wire",0,IF($F81="Sign",VLOOKUP($G81,'Pick Lists & Data'!$A$39:$G$43,7,0),VLOOKUP($G81,'Pick Lists & Data'!$A$11:$H$25,8,0))) -> 58.56
A106: 6 | B106: 90 | C106: 30" x 36" | D106: 11.5 | E106: =IF(F82="Wire",0,IF(F82="Sign",VLOOKUP(G82,'Pick Lists & Data'!$A$39:$G$43,2,0),VLOOKUP(G82,'Pick Lists & Data'!$A$11:$H$25,2,0))) -> 39 | F106: 14.59438933 | G106: =IF($F82="Wire",0,IF($F82="Sign",VLOOKUP($G82,'Pick Lists & Data'!$A$39:$G$43,6,0),VLOOKUP($G82,'Pick Lists & Data'!$A$11:$H$25,6,0))) -> 247.123968 | H106: 4.6 | I106: =IF($F82="Wire",0,IF($F82="Sign",VLOOKUP($G82,'Pick Lists & Data'!$A$39:$G$43,7,0),VLOOKUP($G82,'Pick Lists & Data'!$A$11:$H$25,8,0))) -> 22.5
A107: 7 | B107: 95 | C107: A-3 | D107: 15 | E107: =IF(F83="Wire",0,IF(F83="Sign",VLOOKUP(G83,'Pick Lists & Data'!$A$39:$G$43,2,0),VLOOKUP(G83,'Pick Lists & Data'!$A$11:$H$25,2,0))) -> 70 | F107: 19.03616 | G107: =IF($F83="Wire",0,IF($F83="Sign",VLOOKUP($G83,'Pick Lists & Data'!$A$39:$G$43,6,0),VLOOKUP($G83,'Pick Lists & Data'!$A$11:$H$25,6,0))) -> 291.0663475 | H107: 6 | I107: =IF($F83="Wire",0,IF($F83="Sign",VLOOKUP($G83,'Pick Lists & Data'!$A$39:$G$43,7,0),VLOOKUP($G83,'Pick Lists & Data'!$A$11:$H$25,8,0))) -> 58.56
A108: 8 | B108: 120 | C108: A-5 | D108: 15 | E108: =IF(F84="Wire",0,IF(F84="Sign",VLOOKUP(G84,'Pick Lists & Data'!$A$39:$G$43,2,0),VLOOKUP(G84,'Pick Lists & Data'!$A$11:$H$25,2,0))) -> 97 | F108: 19.03616 | G108: =IF($F84="Wire",0,IF($F84="Sign",VLOOKUP($G84,'Pick Lists & Data'!$A$39:$G$43,6,0),VLOOKUP($G84,'Pick Lists & Data'!$A$11:$H$25,6,0))) -> 461.5195853 | H108: 6 | I108: =IF($F84="Wire",0,IF($F84="Sign",VLOOKUP($G84,'Pick Lists & Data'!$A$39:$G$43,7,0),VLOOKUP($G84,'Pick Lists & Data'!$A$11:$H$25,8,0))) -> 89.34
A109: 9 | B109: 125 | C109: 30" x 36" | D109: 6.875 | E109: =IF(F85="Wire",0,IF(F85="Sign",VLOOKUP(G85,'Pick Lists & Data'!$A$39:$G$43,2,0),VLOOKUP(G85,'Pick Lists & Data'!$A$11:$H$25,2,0))) -> 39 | F109: 8.724906667 | G109: =IF($F85="Wire",0,IF($F85="Sign",VLOOKUP($G85,'Pick Lists & Data'!$A$39:$G$43,6,0),VLOOKUP($G85,'Pick Lists & Data'!$A$11:$H$25,6,0))) -> 247.123968 | H109: 2.75 | I109: =IF($F85="Wire",0,IF($F85="Sign",VLOOKUP($G85,'Pick Lists & Data'!$A$39:$G$43,7,0),VLOOKUP($G85,'Pick Lists & Data'!$A$11:$H$25,8,0))) -> 22.5
A110: 10 | B110: 133.75 | C110: 0.5" | D110: 8.75 | E110: =IF(F86="Wire",0,IF(F86="Sign",VLOOKUP(G86,'Pick Lists & Data'!$A$39:$G$43,2,0),VLOOKUP(G86,'Pick Lists & Data'!$A$11:$H$25,2,0))) -> 0 | F110: 11.10442667 | G110: =IF($F86="Wire",0,IF($F86="Sign",VLOOKUP($G86,'Pick Lists & Data'!$A$39:$G$43,6,0),VLOOKUP($G86,'Pick Lists & Data'!$A$11:$H$25,6,0))) -> 0 | H110: 3.5 | I110: =IF($F86="Wire",0,IF($F86="Sign",VLOOKUP($G86,'Pick Lists & Data'!$A$39:$G$43,7,0),VLOOKUP($G86,'Pick Lists & Data'!$A$11:$H$25,8,0))) -> 0
A111: 11 | B111: 142.5 | C111: 0.5" | D111: 8.75 | E111: =IF(F87="Wire",0,IF(F87="Sign",VLOOKUP(G87,'Pick Lists & Data'!$A$39:$G$43,2,0),VLOOKUP(G87,'Pick Lists & Data'!$A$11:$H$25,2,0))) -> 0 | F111: 11.10442667 | G111: =IF($F87="Wire",0,IF($F87="Sign",VLOOKUP($G87,'Pick Lists & Data'!$A$39:$G$43,6,0),VLOOKUP($G87,'Pick Lists & Data'!$A$11:$H$25,6,0))) -> 0 | H111: 3.5 | I111: =IF($F87="Wire",0,IF($F87="Sign",VLOOKUP($G87,'Pick Lists & Data'!$A$39:$G$43,7,0),VLOOKUP($G87,'Pick Lists & Data'!$A$11:$H$25,8,0))) -> 0
A112: 12 | B112: 151.25 | C112: 0.5" | D112: 8.75 | E112: =IF(F88="Wire",0,IF(F88="Sign",VLOOKUP(G88,'Pick Lists & Data'!$A$39:$G$43,2,0),VLOOKUP(G88,'Pick Lists & Data'!$A$11:$H$25,2,0))) -> 0 | F112: 11.10442667 | G112: =IF($F88="Wire",0,IF($F88="Sign",VLOOKUP($G88,'Pick Lists & Data'!$A$39:$G$43,6,0),VLOOKUP($G88,'Pick Lists & Data'!$A$11:$H$25,6,0))) -> 0 | H112: 3.5 | I112: =IF($F88="Wire",0,IF($F88="Sign",VLOOKUP($G88,'Pick Lists & Data'!$A$39:$G$43,7,0),VLOOKUP($G88,'Pick Lists & Data'!$A$11:$H$25,8,0))) -> 0
A113: 13 | B113: 160 | C113: 0.5" | D113: 0 | E113: =IF(F89="Wire",0,IF(F89="Sign",VLOOKUP(G89,'Pick Lists & Data'!$A$39:$G$43,2,0),VLOOKUP(G89,'Pick Lists & Data'!$A$11:$H$25,2,0))) -> 0 | F113: 0 | G113: =IF($F89="Wire",0,IF($F89="Sign",VLOOKUP($G89,'Pick Lists & Data'!$A$39:$G$43,6,0),VLOOKUP($G89,'Pick Lists & Data'!$A$11:$H$25,6,0))) -> 0 | H113: 0 | I113: =IF($F89="Wire",0,IF($F89="Sign",VLOOKUP($G89,'Pick Lists & Data'!$A$39:$G$43,7,0),VLOOKUP($G89,'Pick Lists & Data'!$A$11:$H$25,8,0))) -> 0
A114: 14 | B114: 0 | C114: None | D114: 0 | E114: =IF(F90="Wire",0,IF(F90="Sign",VLOOKUP(G90,'Pick Lists & Data'!$A$39:$G$43,2,0),VLOOKUP(G90,'Pick Lists & Data'!$A$11:$H$25,2,0))) -> 0 | F114: 0 | G114: =IF($F90="Wire",0,IF($F90="Sign",VLOOKUP($G90,'Pick Lists & Data'!$A$39:$G$43,6,0),VLOOKUP($G90,'Pick Lists & Data'!$A$11:$H$25,6,0))) -> 0 | H114: 0 | I114: =IF($F90="Wire",0,IF($F90="Sign",VLOOKUP($G90,'Pick Lists & Data'!$A$39:$G$43,7,0),VLOOKUP($G90,'Pick Lists & Data'!$A$11:$H$25,8,0))) -> 0
A115: 15 | B115: 0 | C115: None | D115: =IF($T162=0,0,IF($E91<$C$21,(($E91-$E90)*0.5+($T162-$E91)*0.5)*$D$96,(($E91-$E90)*0.5+($T162-E$78))*$D$96)) -> 0 | E115: =IF(F91="Wire",0,IF(F91="Sign",VLOOKUP(G91,'Pick Lists & Data'!$A$39:$G$43,2,0),VLOOKUP(G91,'Pick Lists & Data'!$A$11:$H$25,2,0))) -> 0 | F115: =IF($T162=0,0,IF($E91<$C$21,(($E91-$E90)*0.5+($T162-$E91)*0.5)*$D$97,(($E91-$E90)*0.5+($T162-G$78))*$D$97)) -> 0 | G115: =IF($F91="Wire",0,IF($F91="Sign",VLOOKUP($G91,'Pick Lists & Data'!$A$39:$G$43,6,0),VLOOKUP($G91,'Pick Lists & Data'!$A$11:$H$25,6,0))) -> 0 | H115: =IF($T162=0,0,IF($E91<$C$21,(($E91-$E90)*0.5+($T162-$E91)*0.5)*$D$98,(($E91-$E90)*0.5+($T162-E$102))*$D$98)) -> 0 | I115: =IF($F91="Wire",0,IF($F91="Sign",VLOOKUP($G91,'Pick Lists & Data'!$A$39:$G$43,7,0),VLOOKUP($G91,'Pick Lists & Data'!$A$11:$H$25,8,0))) -> 0
A117: Place Distances and Loads into table for span wire analysis
B119: Loading Final Rank | C119: Distance (Xn) | D119: Dead Load | E119: Wind Load | F119: Ice Load | G119: Load Description | H119: Signal Config/Sign Size/Wire Diameter
B120: 1 | C120: =B101 -> 9 | D120: =SUM(D101:E101) -> 13.5 | E120: =SUM(F101:G101) -> 14.710848 | F120: =SUM(H101:I101) -> 10.8 | G120: =F77 -> Wire | H120: =C101 -> 0.5"
B121: 2 | C121: =B102 -> 18 | D121: =SUM(D102:E102) -> 9 | E121: =SUM(F102:G102) -> 11.421696 | F121: =SUM(H102:I102) -> 3.6 | G121: Wire | H121: =C102 -> 0.5"
B122: 3 | C122: 27 | D122: 122 | E122: 729.0318575 | F122: 70.39 | G122: Sign | H122: 96" x 32"
B123: 4 | C123: 50 | D123: 92.5 | E123: 319.6205875 | F123: 67.56 | G123: Signal | H123: A-3
B124: 5 | C124: 72 | D124: 90 | E124: 316.4478942 | F124: 66.56 | G124: Signal | H124: A-3
B125: 6 | C125: 90 | D125: 50.5 | E125: 261.7183573 | F125: 27.1 | G125: Sign | H125: 30" x 36"
B126: 7 | C126: 95 | D126: 85 | E126: 310.1025075 | F126: 64.56 | G126: Signal | H126: A-3
B127: 8 | C127: 120 | D127: 112 | E127: 480.5557453 | F127: 95.34 | G127: Signal | H127: A-5
B128: 9 | C128: 125 | D128: 45.875 | E128: 255.8488747 | F128: 25.25 | G128: Sign | H128: 30" x 36"
B129: 10 | C129: 133.75 | D129: 8.75 | E129: 11.10442667 | F129: 3.5 | G129: Wire | H129: 0.5"
B130: 11 | C130: 142.5 | D130: 8.75 | E130: 11.10442667 | F130: 3.5 | G130: Wire | H130: 0.5"
B131: 12 | C131: 151.25 | D131: 8.75 | E131: 11.10442667 | F131: 3.5 | G131: Wire | H131: 0.5"
B132: 13 | C132: 160 | D132: 0 | E132: 0 | F132: 0 | G132: Wire | H132: 0.5"
B133: 14 | C133: 0 | D133: 0 | E133: 0 | F133: 0 | G133: Sign | H133: None
B134: 15 | C134: 0 | D134: 0 | E134: 0 | F134: 0 | G134: Sign | H134: None
D135: =SUM(D120:D134) -> 646.625 | E135: =SUM(E120:E134) -> 2732.771648
B137: * Distances MUST be entered in order, starting with the load closest to Support 1 and moving
B138: right towards Support 2. If all 14 loads are not used, a "null distance" and a "null load" must be
B139: assigned to the worksheet cell (ie. Enter a zero for each null value.)
A141: Dead Load (Group I Loading, also used for Groups II and III)
A143: Calculate Dead Load Reactions:
B144: Summing moments about Support 2 (Counter clockwise-moments positive):
B146: Loading | C146: Dead Load | D146: Arm | E146: Moment
B147: =B120 -> 1 | C147: =D120 -> 13.5 | D147: =C120 -> 9 | E147: =C147*D147 -> 121.5
B148: 2 | C148: 9 | D148: 18 | E148: 162
B149: 3 | C149: 122 | D149: 27 | E149: 3294
B150: 4 | C150: 92.5 | D150: 50 | E150: 4625
B151: 5 | C151: 90 | D151: 72 | E151: 6480
B152: 6 | C152: 50.5 | D152: 90 | E152: 4545
B153: 7 | C153: 85 | D153: 95 | E153: 8075
B154: 8 | C154: 112 | D154: 120 | E154: 13440
B155: 9 | C155: 45.875 | D155: 125 | E155: 5734.375
B156: 10 | C156: 8.75 | D156: 133.75 | E156: 1170.3125
B157: 11 | C157: 8.75 | D157: 142.5 | E157: 1246.875
B158: 12 | C158: 8.75 | D158: 151.25 | E158: 1323.4375
B159: 13 | C159: 0 | D159: 160 | E159: 0
B160: 14 | C160: 0 | D160: 0 | E160: 0
B161: 15 | C161: 0 | D161: 0 | E161: 0
B163: S MomentsSupport 2 = 0 = [(S Loadn * Xn)] - (R Support 1 * Length)
B164: R Support 1 = | C164: =(SUM(E147:E161)/C21) -> 313.859375 | D164: lbs
B166: S Forcey = 0 = R Support 2 + R Support 1 - (S Loadn)
B167: R Support 2 = | C167: =(SUM(C147:C161))-C164 -> 332.765625 | D167: lbs
A169: Dead Load Shear Diagram:
B170: Location | C170: Distance | D170: Load / Reaction | E170: Shear 1 | F170: Shear 2
B171: Support 2 | C171: 0 | D171: =C167 -> 332.765625 | E171: =0 -> 0 | F171: =E171+C167 -> 332.765625 | G171: =IF(AND(E171>=0,F171>=0),"+ / +",IF(AND(E171<=0,F171<=0),"- / -","+ / -")) -> + / + | H171: =IF(G171="+ / -","Low Point","") ->  | I171: =IF(H171="Low Point",C171," ") -> 
B172: =B120 -> 1 | C172: 9 | D172: 13.5 | E172: =IF(D172>0,F171," ") -> 332.765625 | F172: =IF(D171>0,E172-D172," ") -> 319.265625 | G172: =IF(AND(E172>=0,F172>=0),"+ / +",IF(AND(E172<=0,F172<=0),"- / -","+ / -")) -> + / + | H172: =IF(G172="+ / -","Low Point","") ->  | I172: =IF(H172="Low Point",C172," ") -> 
B173: 2 | C173: 18 | D173: 9 | E173: =F172 -> 319.265625 | F173: =E173-D173 -> 310.265625 | G173: + / +
B174: 3 | C174: 27 | D174: 122 | E174: =F173 -> 310.265625 | F174: =E174-D174 -> 188.265625 | G174: =IF(AND(E174>=0,F174>=0),"+ / +",IF(AND(E174<=0,F174<=0),"- / -","+ / -")) -> + / + | H174: =IF(G174="+ / -","Low Point","") ->  | I174: =IF(H174="Low Point",C174," ") -> 
B175: 4 | C175: 50 | D175: 92.5 | E175: =F174 -> 188.265625 | F175: =E175-D175 -> 95.765625 | G175: + / + | H175: =IF(G175="+ / -","Low Point","") -> 
B176: 5 | C176: 72 | D176: 90 | E176: =F175 -> 95.765625 | F176: 5.765625 | G176: + / +
B177: 6 | C177: 90 | D177: 50.5 | E177: 5.765625 | F177: -44.734375 | G177: + / - | H177: Low Point | I177: 90
B178: 7 | C178: 95 | D178: 85 | E178: -44.734375 | F178: -129.734375 | G178: - / -
B179: 8 | C179: 120 | D179: 112 | E179: -129.734375 | F179: -241.734375 | G179: - / -
B180: 9 | C180: 125 | D180: 45.875 | E180: -241.734375 | F180: -287.609375 | G180: - / -
B181: 10 | C181: 133.75 | D181: 8.75 | E181: -287.609375 | F181: -296.359375 | G181: - / -
B182: 11 | C182: 142.5 | D182: 8.75 | E182: -296.359375 | F182: -305.109375 | G182: - / -
B183: 12 | C183: 151.25 | D183: 8.75 | E183: -305.109375 | F183: -313.859375 | G183: - / -
B184: 13 | C184: 160 | D184: 0 | E184: -313.859375 | F184: -313.859375 | G184: - / -
B185: 14 | C185: 0 | D185: 0 | E185: -313.859375 | F185: -313.859375 | G185: - / -
B186: 15 | C186: 0 | D186: 0 | E186: -313.859375 | F186: -313.859375 | G186: - / -
B187: Support 1 | C187: =C21 -> 160 | D187: =C164 -> 313.859375 | E187: =F186 -> -313.859375 | F187: =E187+D187 -> 0 | G187: - / -
B189: The Low Point occurs at: | D189: =MAX(I171:I187) -> 90 | E189: feet from Support 2
A190: Calculation: Sum Moments about Low Point to Determine Horizontal Reaction:
B192: Maximum Allowable Sag: | D192: =(G21/100)*C21 -> 8 | E192: feet
B193: Summing Moments about the Low point (Counter-Clockwise Positive):
B195: Location | C195: Distance from Low Point | D195: Load | E195: Moment
B196: Support 2 | C196: =D189 -> 90 | D196: =D171 -> 332.765625 | E196: =C196*D196 -> 29948.90625
B197: =B120 -> 1 | C197: =IF(C172=0,0,IF(C172<$D$189,($D$189-C172),0)) -> 81 | D197: 13.5 | E197: =-C197*D197 -> -1093.5
B198: 2 | C198: 72 | D198: 9 | E198: =-C198*D198 -> -648
B199: 3 | C199: 63 | D199: 122 | E199: =-C199*D199 -> -7686
B200: 4 | C200: 40 | D200: 92.5 | E200: =-C200*D200 -> -3700
B201: 5 | C201: 18 | D201: 90 | E201: =-C201*D201 -> -1620
B202: 6 | C202: 0 | D202: 50.5 | E202: 0
B203: 7 | C203: 0 | D203: 85 | E203: 0
B204: 8 | C204: 0 | D204: 112 | E204: 0
B205: 9 | C205: 0 | D205: 45.875 | E205: 0
B206: 10 | C206: 0 | D206: 8.75 | E206: 0
B207: 11 | C207: 0 | D207: 8.75 | E207: 0
B208: 12 | C208: 0 | D208: 8.75 | E208: 0
B209: 13 | C209: 0 | D209: 0 | E209: 0
B210: 14 | C210: 0 | D210: 0 | E210: 0
B211: 15 | C211: 0 | D211: 0 | E211: 0
B212: Support 1 | C212: 0 | D212: 313.859375 | E212: 0
B214: Determine Horizontal force:
B215: H = | C215: =ABS(SUM(E196:E212)/D192) -> 1900.175781 | D215: lbs
A217: Calculate Actual Length of Cable (Accounting for sag, Dead Load Only):
B218: Fy = Shear 2, calculated above.
B220: Location | C220: Fy | D220: xi | E220: Length of Segment
B221: Support 1
B222: =B120 -> 1 | C222: =E172 -> 332.765625 | D222: =IF(B222<($G$6+1),((C172-C171)),(IF(B222=($G$6+1),(($C$187-C171)),0))) -> 9 | E222: =SQRT($C$215^2+C222^2)*(D222/$C$215) -> 9.13696505
B223: 2 | C223: =E173 -> 319.265625 | D223: 9 | E223: =SQRT($C$215^2+C223^2)*(D223/$C$215) -> 9.126152585
B224: 3 | C224: 310.265625 | D224: 9 | E224: 9.119186234
B225: 4 | C225: 188.265625 | D225: 23 | E225: 23.1126135
B226: 5 | C226: 95.765625 | D226: 22 | E226: 22.02792215
B227: 6 | C227: 5.765625 | D227: 18 | E227: 18.00008286
B228: 7 | C228: -44.734375 | D228: 5 | E228: 5.0013854
B229: 8 | C229: -129.734375 | D229: 25 | E229: 25.05820059
B230: 9 | C230: -241.734375 | D230: 5 | E230: 5.040297924
B231: 10 | C231: -287.609375 | D231: 8.75 | E231: 8.84966216
B232: 11 | C232: -296.359375 | D232: 8.75 | E232: 8.855781708
B233: 12 | C233: -305.109375 | D233: 8.75 | E233: 8.862080226
B234: 13 | C234: -313.859375 | D234: 8.75 | E234: 8.868557332
B235: 14 | C235: -313.859375 | D235: 0 | E235: 0
B236: 15 | C236: -313.859375 | D236: 0 | E236: 0
B237: Support 2 | C237: -313.859375 | D237: 0 | E237: 0
D239: Total Length = | E239: =SUM(E221:E237) -> 161.0588877
... 141 more rows

Sheet P1
A1: P1 Reactions (Loads Due to SW4 & SW1)
A3: SW4 - Support 2 (Right) | D3: SW1 - Support 1 (Left) | G3: Group Load
A4: Fx | B4: Fy | C4: Fz | D4: Fx | E4: Fy | F4: Fz
A5: ='SW4'!D401 -> 1900.175781 | B5: ='SW4'!E401 -> 332.765625 | C5: ='SW4'!F401 -> 0 | D5: ='SW1'!A401 -> 1759.830636 | E5: ='SW1'!B401 -> 249.8620745 | F5: ='SW1'!C401 -> 0 | G5: Group I | H5: (DL)
A6: ='SW4'!D402 -> 1693.40066 | B6: ='SW4'!E402 -> 332.765625 | C6: ='SW4'!F402 -> 1444.043788 | D6: ='SW1'!A402 -> 3804.836898 | E6: ='SW1'!B402 -> 249.8620745 | F6: ='SW1'!C402 -> 876.5571843 | G6: Group II | H6: (DL + WL)
A7: ='SW4'!D403 -> 1208.870214 | B7: ='SW4'!E403 -> 556.3109375 | C7: ='SW4'!F403 -> 722.021894 | D7: ='SW1'!A403 -> 2468.308389 | E7: ='SW1'!B403 -> 415.7733012 | F7: ='SW1'!C403 -> 438.2785922 | G7: Group III | H7: (DL + IL + 0.5 · WL)
A9: Case 1 Wind at 90˚ to SW4
A10: FX = 1.0 · FX SW4 + 0.0 · FZ SW1
A11: FY = 1.0 · FY SW4 + 1.0 · FY SW1
A12: Fz = 1.0 · FX SW1 + 1.0 · FZ SW4 + 0.2 FZ SW1
B14: Pole Reactions | E14: Resultants | G14: Group Load
B15: Fx | C15: Fy | D15: Fz | E15: Horizontal | F15: Vertical
B16: =A5+0*F5 -> 1900.175781 | C16: =B5+E5 -> 582.6276995 | D16: =1*D5+1*C5+0.2*F5 -> 1759.830636 | E16: =SQRT(B16^2+D16^2) -> 2589.917348 | F16: =C16 -> 582.6276995 | G16: Group I | H16: (DL)
B17: =A6+0*F6 -> 1693.40066 | C17: =B6+E6 -> 582.6276995 | D17: =1*D6+1*C6+0.2*F6 -> 5424.192123 | E17: =SQRT(B17^2+D17^2) -> 5682.382069 | F17: =C17 -> 582.6276995 | G17: Group II | H17: (DL + WL)
B18: =A7+0*F7 -> 1208.870214 | C18: =B7+E7 -> 972.0842387 | D18: =1*D7+1*C7+0.2*F7 -> 3277.986002 | E18: =SQRT(B18^2+D18^2) -> 3493.788692 | F18: =C18 -> 972.0842387 | G18: Group III | H18: (DL + IL + 0.5 · WL)
A20: Case 2 Wind at 90˚ to SW1
A21: FX = 1.0 · FX SW4 + 1.0 · FZ SW1 + 0.2 · FZ SW4
A22: FY = 1.0 · FY SW4 + 1.0 · FY SW1
A23: Fz = 1.0 · FX SW1 + 0.0 · FZ SW4
B25: Pole Reactions | E25: Resultants | G25: Group Load
B26: Fx | C26: Fy | D26: Fz | E26: Horizontal | F26: Vertical
B27: =A5+1*F5+0.2*C5 -> 1900.175781 | C27: =B5+E5 -> 582.6276995 | D27: =D5+0*C5 -> 1759.830636 | E27: =SQRT(B27^2+D27^2) -> 2589.917348 | F27: =C27 -> 582.6276995 | G27: Group I | H27: (DL)
B28: =A6+1*F6+0.2*C6 -> 2858.766602 | C28: =B6+E6 -> 582.6276995 | D28: =D6+0*C6 -> 3804.836898 | E28: =SQRT(B28^2+D28^2) -> 4759.131255 | F28: =C28 -> 582.6276995 | G28: Group II | H28: (DL + WL)
B29: =A7+1*F7+0.2*C7 -> 1791.553185 | C29: =B7+E7 -> 972.0842387 | D29: =D7+0*C7 -> 2468.308389 | E29: =SQRT(B29^2+D29^2) -> 3049.952314 | F29: =C29 -> 972.0842387 | G29: Group III | H29: (DL + IL + 0.5 · WL)
A31: Case 3 Wind at 45˚
A32: FX = 1.0 · FX SW4 + 0.707 · FZ SW1 + 0.2 · 0.707 · FZ SW4
A33: FY = 1.0 · FY SW4 + 1.0 · FY SW1
A34: Fz = 1.0 · FX SW1 +0.707 · FZ SW4 + 0.2 · 0.707 · FZ SW1
B36: Pole Reactions | E36: Resultants | G36: Group Load
B37: Fx | C37: Fy | D37: Fz | E37: Horizontal | F37: Vertical
B38: =A5+0.707*F5+0.2*0.707*C5 -> 1900.175781 | C38: =B5+E5 -> 582.6276995 | D38: =D5+0.707*C5+0.2*0.707*F5 -> 1759.830636 | E38: =SQRT(B38^2+D38^2) -> 2589.917348 | F38: =C38 -> 582.6276995 | G38: Group I | H38: (DL)
B39: =A6+0.707*F6+0.2*0.707*C6 -> 2517.314381 | C39: =B6+E6 -> 582.6276995 | D39: =D6+0.707*C6+0.2*0.707*F6 -> 4949.721042 | E39: =SQRT(B39^2+D39^2) -> 5553.07213 | F39: =C39 -> 582.6276995 | G39: Group II | H39: (DL + WL)
B40: =A7+0.707*F7+0.2*0.707*C7 -> 1620.827075 | C40: =B7+E7 -> 972.0842387 | D40: =D7+0.707*C7+0.2*0.707*F7 -> 3040.750461 | E40: =SQRT(B40^2+D40^2) -> 3445.757358 | F40: =C40 -> 972.0842387 | G40: Group III | H40: (DL + IL + 0.5 · WL)
A44: Maximum Reactions:
A46: All Load Groups:
B47: Horizontal: | C47: =MAX(E16:E18,E27:E29,E38:E40) -> 5682.382069 | D47: lbs
B48: Vertical: | C48: =VLOOKUP(C47,E16:I40,2,0) -> 582.6276995 | D48: lbs
B49: Load Case: | C49: =VLOOKUP(C47,E16:I40,3,0) -> Group II
A50: Dead Load Only: | E50: Pole Coordinate Axis
B51: Horizontal: | C51: =MAX(E16,E27,E38) -> 2589.917348
B52: Vertical: | C52: =VLOOKUP(C51,E16:I40,2,0) -> 582.6276995
B53: Load Case: | C53: =VLOOKUP(C51,E16:I40,3,0) -> Group I | E53: Note: SW4 and SW1 Reactions above use sign convention from SW4 and SW1 tabs

Sheet P2
A1: P2 Reactions (Loads Due to SW1 & SW2)
A3: SW1 - Support 2 (Right) | D3: SW2 - Support 1 (Left) | G3: Group Load
A4: Fx | B4: Fy | C4: Fz | D4: Fx | E4: Fy | F4: Fz
A5: ='SW1'!D401 -> 1759.830636 | B5: ='SW1'!E401 -> 342.8879255 | C5: ='SW1'!F401 -> 0 | D5: ='SW2'!A401 -> 1956.951249 | E5: ='SW2'!B401 -> 263.3655172 | F5: ='SW2'!C401 -> 0 | G5: Group I | H5: (DL)
A6: ='SW1'!D402 -> 3804.836898 | B6: ='SW1'!E402 -> 342.8879255 | C6: ='SW1'!F402 -> 1454.473283 | D6: ='SW2'!A402 -> 3039.244647 | E6: ='SW2'!B402 -> 263.3655172 | F6: ='SW2'!C402 -> 1026.04733 | G6: Group II | H6: (DL + WL)
A7: ='SW1'!D403 -> 2468.308389 | B7: ='SW1'!E403 -> 569.2066988 | C7: ='SW1'!F403 -> 727.2366414 | D7: ='SW2'!A403 -> 2024.142201 | E7: ='SW2'!B403 -> 444.0413793 | F7: ='SW2'!C403 -> 513.0236652 | G7: Group III | H7: (DL + IL + 0.5 · WL)
A9: Case 1 Wind at 90˚ to SW1
A10: FX = 1.0 · FX SW1 + 0.0 · FZ SW2
A11: FY = 1.0 · FY SW1 + 1.0 · FY SW2
A12: Fz = 1.0 · FX SW2 + 1.0 · FZ SW1 + 0.2 FZ SW2
B14: Pole Reactions | E14: Resultants | G14: Group Load
B15: Fx | C15: Fy | D15: Fz | E15: Horizontal | F15: Vertical
B16: =A5+0*F5 -> 1759.830636 | C16: =B5+E5 -> 606.2534427 | D16: =1*D5+1*C5+0.2*F5 -> 1956.951249 | E16: =SQRT(B16^2+D16^2) -> 2631.85525 | F16: =C16 -> 606.2534427 | G16: Group I | H16: (DL)
B17: =A6+0*F6 -> 3804.836898 | C17: =B6+E6 -> 606.2534427 | D17: =1*D6+1*C6+0.2*F6 -> 4698.927396 | E17: =SQRT(B17^2+D17^2) -> 6046.213897 | F17: =C17 -> 606.2534427 | G17: Group II | H17: (DL + WL)
B18: =A7+0*F7 -> 2468.308389 | C18: =B7+E7 -> 1013.248078 | D18: =1*D7+1*C7+0.2*F7 -> 2853.983576 | E18: =SQRT(B18^2+D18^2) -> 3773.296775 | F18: =C18 -> 1013.248078 | G18: Group III | H18: (DL + IL + 0.5 · WL)
A20: Case 2 Wind at 90˚ to SW2
A21: FX = 1.0 · FX SW1 + 1.0 · FZ SW2 + 0.2 · FZ SW1
A22: FY = 1.0 · FY SW1 + 1.0 · FY SW2
A23: Fz = 1.0 · FX SW2 + 0.0 · FZ SW1
B25: Pole Reactions | E25: Resultants | G25: Group Load
B26: Fx | C26: Fy | D26: Fz | E26: Horizontal | F26: Vertical
B27: =A5+1*F5+0.2*C5 -> 1759.830636 | C27: =B5+E5 -> 606.2534427 | D27: =D5+0*C5 -> 1956.951249 | E27: =SQRT(B27^2+D27^2) -> 2631.85525 | F27: =C27 -> 606.2534427 | G27: Group I | H27: (DL)
B28: =A6+1*F6+0.2*C6 -> 5121.778885 | C28: =B6+E6 -> 606.2534427 | D28: =D6+0*C6 -> 3039.244647 | E28: =SQRT(B28^2+D28^2) -> 5955.63825 | F28: =C28 -> 606.2534427 | G28: Group II | H28: (DL + WL)
B29: =A7+1*F7+0.2*C7 -> 3126.779383 | C29: =B7+E7 -> 1013.248078 | D29: =D7+0*C7 -> 2024.142201 | E29: =SQRT(B29^2+D29^2) -> 3724.768578 | F29: =C29 -> 1013.248078 | G29: Group III | H29: (DL + IL + 0.5 · WL)
A31: Case 3 Wind at 45˚
A32: FX = 1.0 · FX SW1 + 0.707 · FZ SW2 + 0.2 · 0.707 · FZ SW1
A33: FY = 1.0 · FY SW1 + 1.0 · FY SW2
A34: Fz = 1.0 · FX SW2 +0.707 · FZ SW1 + 0.2 · 0.707 · FZ SW2
B36: Pole Reactions | E36: Resultants | G36: Group Load
B37: Fx | C37: Fy | D37: Fz | E37: Horizontal | F37: Vertical
B38: =A5+0.707*F5+0.2*0.707*C5 -> 1759.830636 | C38: =B5+E5 -> 606.2534427 | D38: =D5+0.707*C5+0.2*0.707*F5 -> 1956.951249 | E38: =SQRT(B38^2+D38^2) -> 2631.85525 | F38: =C38 -> 606.2534427 | G38: Group I | H38: (DL)
B39: =A6+0.707*F6+0.2*0.707*C6 -> 4735.914883 | C39: =B6+E6 -> 606.2534427 | D39: =D6+0.707*C6+0.2*0.707*F6 -> 4212.64035 | E39: =SQRT(B39^2+D39^2) -> 6338.393211 | F39: =C39 -> 606.2534427 | G39: Group II | H39: (DL + WL)
B40: =A7+0.707*F7+0.2*0.707*C7 -> 2933.847381 | C40: =B7+E7 -> 1013.248078 | D40: =D7+0.707*C7+0.2*0.707*F7 -> 2610.840053 | E40: =SQRT(B40^2+D40^2) -> 3927.333223 | F40: =C40 -> 1013.248078 | G40: Group III | H40: (DL + IL + 0.5 · WL)
A44: Maximum Reactions:
A46: All Load Groups:
B47: Horizontal: | C47: =MAX(E16:E18,E27:E29,E38:E40) -> 6338.393211 | D47: lbs
B48: Vertical: | C48: =VLOOKUP(C47,E16:I40,2,0) -> 606.2534427 | D48: lbs
B49: Load Case: | C49: =VLOOKUP(C47,E16:I40,3,0) -> Group II
A50: Dead Load Only: | E50: Pole Coordinate Axis
B51: Horizontal: | C51: =MAX(E16,E27,E38) -> 2631.85525
B52: Vertical: | C52: =VLOOKUP(C51,E16:I40,2,0) -> 606.2534427
B53: Load Case: | C53: =VLOOKUP(C51,E16:I40,3,0) -> Group I | E53: Note: SW1 and SW2 Reactions above use sign convention from SW1 and SW2 tabs

Sheet P3
A1: P3 Reactions (Loads Due to SW2 & SW3)
A3: SW2 - Support 2 (Right) | D3: SW3 - Support 1 (Left) | G3: Group Load
A4: Fx | B4: Fy | C4: Fz | D4: Fx | E4: Fy | F4: Fz
A5: ='SW2'!D401 -> 1956.951249 | B5: ='SW2'!E401 -> 369.1344828 | C5: ='SW2'!F401 -> 0 | D5: ='SW3'!A401 -> 1828.810727 | E5: ='SW3'!B401 -> 259.6955882 | F5: ='SW3'!C401 -> 0 | G5: Group I | H5: (DL)
A6: ='SW2'!D402 -> 3039.244647 | B6: ='SW2'!E402 -> 369.1344828 | C6: ='SW2'!F402 -> 1688.529523 | D6: ='SW3'!A402 -> 4937.139327 | E6: ='SW3'!B402 -> 259.6955882 | F6: ='SW3'!C402 -> 932.3008799 | G6: Group II | H6: (DL + WL)
A7: ='SW2'!D403 -> 2024.142201 | B7: ='SW2'!E403 -> 625.0686207 | C7: ='SW2'!F403 -> 844.2647615 | D7: ='SW3'!A403 -> 3176.344642 | E7: ='SW3'!B403 -> 433.3954118 | F7: ='SW3'!C403 -> 466.1504399 | G7: Group III | H7: (DL + IL + 0.5 · WL)
A9: Case 1 Wind at 90˚ to SW2
A10: FX = 1.0 · FX SW2 + 0.0 · FZ SW3
A11: FY = 1.0 · FY SW2 + 1.0 · FY SW3
A12: Fz = 1.0 · FX SW3 + 1.0 · FZ SW2 + 0.2 FZ SW3
B14: Pole Reactions | E14: Resultants | G14: Group Load
B15: Fx | C15: Fy | D15: Fz | E15: Horizontal | F15: Vertical
B16: =A5+0*F5 -> 1956.951249 | C16: =B5+E5 -> 628.830071 | D16: =1*D5+1*C5+0.2*F5 -> 1828.810727 | E16: =SQRT(B16^2+D16^2) -> 2678.470993 | F16: =C16 -> 628.830071 | G16: Group I | H16: (DL)
B17: =A6+0*F6 -> 3039.244647 | C17: =B6+E6 -> 628.830071 | D17: =1*D6+1*C6+0.2*F6 -> 6812.129026 | E17: =SQRT(B17^2+D17^2) -> 7459.363906 | F17: =C17 -> 628.830071 | G17: Group II | H17: (DL + WL)
B18: =A7+0*F7 -> 2024.142201 | C18: =B7+E7 -> 1058.464032 | D18: =1*D7+1*C7+0.2*F7 -> 4113.839491 | E18: =SQRT(B18^2+D18^2) -> 4584.847545 | F18: =C18 -> 1058.464032 | G18: Group III | H18: (DL + IL + 0.5 · WL)
A20: Case 2 Wind at 90˚ to SW3
A21: FX = 1.0 · FX SW2 + 1.0 · FZ SW3 + 0.2 · FZ SW2
A22: FY = 1.0 · FY SW2 + 1.0 · FY SW3
A23: Fz = 1.0 · FX SW3 + 0.0 · FZ SW2
B25: Pole Reactions | E25: Resultants | G25: Group Load
B26: Fx | C26: Fy | D26: Fz | E26: Horizontal | F26: Vertical
B27: =A5+1*F5+0.2*C5 -> 1956.951249 | C27: =B5+E5 -> 628.830071 | D27: =D5+0*C5 -> 1828.810727 | E27: =SQRT(B27^2+D27^2) -> 2678.470993 | F27: =C27 -> 628.830071 | G27: Group I | H27: (DL)
B28: =A6+1*F6+0.2*C6 -> 4309.251431 | C28: =B6+E6 -> 628.830071 | D28: =D6+0*C6 -> 4937.139327 | E28: =SQRT(B28^2+D28^2) -> 6553.242909 | F28: =C28 -> 628.830071 | G28: Group II | H28: (DL + WL)
B29: =A7+1*F7+0.2*C7 -> 2659.145594 | C29: =B7+E7 -> 1058.464032 | D29: =D7+0*C7 -> 3176.344642 | E29: =SQRT(B29^2+D29^2) -> 4142.489659 | F29: =C29 -> 1058.464032 | G29: Group III | H29: (DL + IL + 0.5 · WL)
A31: Case 3 Wind at 45˚
A32: FX = 1.0 · FX SW2 + 0.707 · FZ SW3 + 0.2 · 0.707 · FZ SW2
A33: FY = 1.0 · FY SW2 + 1.0 · FY SW3
A34: Fz = 1.0 · FX SW3 +0.707 · FZ SW2 + 0.2 · 0.707 · FZ SW3
B36: Pole Reactions | E36: Resultants | G36: Group Load
B37: Fx | C37: Fy | D37: Fz | E37: Horizontal | F37: Vertical
B38: =A5+0.707*F5+0.2*0.707*C5 -> 1956.951249 | C38: =B5+E5 -> 628.830071 | D38: =D5+0.707*C5+0.2*0.707*F5 -> 1828.810727 | E38: =SQRT(B38^2+D38^2) -> 2678.470993 | F38: =C38 -> 628.830071 | G38: Group I | H38: (DL)
B39: =A6+0.707*F6+0.2*0.707*C6 -> 3937.139443 | C39: =B6+E6 -> 628.830071 | D39: =D6+0.707*C6+0.2*0.707*F6 -> 6262.757044 | E39: =SQRT(B39^2+D39^2) -> 7397.512608 | F39: =C39 -> 628.830071 | G39: Group II | H39: (DL + WL)
B40: =A7+0.707*F7+0.2*0.707*C7 -> 2473.0896 | C40: =B7+E7 -> 1058.464032 | D40: =D7+0.707*C7+0.2*0.707*F7 -> 3839.1535 | E40: =SQRT(B40^2+D40^2) -> 4566.757249 | F40: =C40 -> 1058.464032 | G40: Group III | H40: (DL + IL + 0.5 · WL)
A44: Maximum Reactions:
A46: All Load Groups:
B47: Horizontal: | C47: =MAX(E16:E18,E27:E29,E38:E40) -> 7459.363906 | D47: lbs
B48: Vertical: | C48: =VLOOKUP(C47,E16:I40,2,0) -> 628.830071 | D48: lbs
B49: Load Case: | C49: =VLOOKUP(C47,E16:I40,3,0) -> Group II
A50: Dead Load Only: | E50: Pole Coordinate Axis
B51: Horizontal: | C51: =MAX(E16,E27,E38) -> 2678.470993
B52: Vertical: | C52: =VLOOKUP(C51,E16:I40,2,0) -> 628.830071
B53: Load Case: | C53: =VLOOKUP(C51,E16:I40,3,0) -> Group I | E53: Note: SW2 and SW3 Reactions above use sign convention from SW2 and SW3 tabs

Sheet P4
A1: P4 Reactions (Loads Due to SW3 & SW4)
A3: SW3 - Support 2 (Right) | D3: SW4 - Support 1 (Left) | G3: Group Load
A4: Fx | B4: Fy | C4: Fz | D4: Fx | E4: Fy | F4: Fz
A5: ='SW3'!D401 -> 1828.810727 | B5: ='SW3'!E401 -> 330.1794118 | C5: ='SW3'!F401 -> 0 | D5: ='SW4'!A401 -> 1900.175781 | E5: ='SW4'!B401 -> 313.859375 | F5: ='SW4'!C401 -> 0 | G5: Group I | H5: (DL)
A6: ='SW3'!D402 -> 4937.139327 | B6: ='SW3'!E402 -> 330.1794118 | C6: ='SW3'!F402 -> 1394.632528 | D6: ='SW4'!A402 -> 1693.40066 | E6: ='SW4'!B402 -> 313.859375 | F6: ='SW4'!C402 -> 1288.72786 | G6: Group II | H6: (DL + WL)
A7: ='SW3'!D403 -> 3176.344642 | B7: ='SW3'!E403 -> 548.5595882 | C7: ='SW3'!F403 -> 697.3162638 | D7: ='SW4'!A403 -> 1208.870214 | E7: ='SW4'!B403 -> 531.9740625 | F7: ='SW4'!C403 -> 644.36393 | G7: Group III | H7: (DL + IL + 0.5 · WL)
A9: Case 1 Wind at 90˚ to SW3
A10: FX = 1.0 · FX SW3 + 0.0 · FZ SW4
A11: FY = 1.0 · FY SW3 + 1.0 · FY SW4
A12: Fz = 1.0 · FX SW4 + 1.0 · FZ SW3 + 0.2 FZ SW4
B14: Pole Reactions | E14: Resultants | G14: Group Load
B15: Fx | C15: Fy | D15: Fz | E15: Horizontal | F15: Vertical
B16: =A5+0*F5 -> 1828.810727 | C16: =B5+E5 -> 644.0387868 | D16: =1*D5+1*C5+0.2*F5 -> 1900.175781 | E16: =SQRT(B16^2+D16^2) -> 2637.274478 | F16: =C16 -> 644.0387868 | G16: Group I | H16: (DL)
B17: =A6+0*F6 -> 4937.139327 | C17: =B6+E6 -> 644.0387868 | D17: =1*D6+1*C6+0.2*F6 -> 3345.778759 | E17: =SQRT(B17^2+D17^2) -> 5964.023829 | F17: =C17 -> 644.0387868 | G17: Group II | H17: (DL + WL)
B18: =A7+0*F7 -> 3176.344642 | C18: =B7+E7 -> 1080.533651 | D18: =1*D7+1*C7+0.2*F7 -> 2035.059264 | E18: =SQRT(B18^2+D18^2) -> 3772.350924 | F18: =C18 -> 1080.533651 | G18: Group III | H18: (DL + IL + 0.5 · WL)
A20: Case 2 Wind at 90˚ to SW4
A21: FX = 1.0 · FX SW3 + 1.0 · FZ SW4 + 0.2 · FZ SW3
A22: FY = 1.0 · FY SW3 + 1.0 · FY SW4
A23: Fz = 1.0 · FX SW4 + 0.0 · FZ SW3
B25: Pole Reactions | E25: Resultants | G25: Group Load
B26: Fx | C26: Fy | D26: Fz | E26: Horizontal | F26: Vertical
B27: =A5+1*F5+0.2*C5 -> 1828.810727 | C27: =B5+E5 -> 644.0387868 | D27: =D5+0*C5 -> 1900.175781 | E27: =SQRT(B27^2+D27^2) -> 2637.274478 | F27: =C27 -> 644.0387868 | G27: Group I | H27: (DL)
B28: =A6+1*F6+0.2*C6 -> 6504.793692 | C28: =B6+E6 -> 644.0387868 | D28: =D6+0*C6 -> 1693.40066 | E28: =SQRT(B28^2+D28^2) -> 6721.602991 | F28: =C28 -> 644.0387868 | G28: Group II | H28: (DL + WL)
B29: =A7+1*F7+0.2*C7 -> 3960.171825 | C29: =B7+E7 -> 1080.533651 | D29: =D7+0*C7 -> 1208.870214 | E29: =SQRT(B29^2+D29^2) -> 4140.570984 | F29: =C29 -> 1080.533651 | G29: Group III | H29: (DL + IL + 0.5 · WL)
A31: Case 3 Wind at 45˚
A32: FX = 1.0 · FX SW3 + 0.707 · FZ SW4 + 0.2 · 0.707 · FZ SW3
A33: FY = 1.0 · FY SW3 + 1.0 · FY SW4
A34: Fz = 1.0 · FX SW4 +0.707 · FZ SW3 + 0.2 · 0.707 · FZ SW4
B36: Pole Reactions | E36: Resultants | G36: Group Load
B37: Fx | C37: Fy | D37: Fz | E37: Horizontal | F37: Vertical
B38: =A5+0.707*F5+0.2*0.707*C5 -> 1828.810727 | C38: =B5+E5 -> 644.0387868 | D38: =D5+0.707*C5+0.2*0.707*F5 -> 1900.175781 | E38: =SQRT(B38^2+D38^2) -> 2637.274478 | F38: =C38 -> 644.0387868 | G38: Group I | H38: (DL)
B39: =A6+0.707*F6+0.2*0.707*C6 -> 6045.470963 | C39: =B6+E6 -> 644.0387868 | D39: =D6+0.707*C6+0.2*0.707*F6 -> 2861.631976 | E39: =SQRT(B39^2+D39^2) -> 6688.546683 | F39: =C39 -> 644.0387868 | G39: Group II | H39: (DL + WL)
B40: =A7+0.707*F7+0.2*0.707*C7 -> 3730.51046 | C40: =B7+E7 -> 1080.533651 | D40: =D7+0.707*C7+0.2*0.707*F7 -> 1792.985873 | E40: =SQRT(B40^2+D40^2) -> 4139.022425 | F40: =C40 -> 1080.533651 | G40: Group III | H40: (DL + IL + 0.5 · WL)
A44: Maximum Reactions:
A46: All Load Groups:
B47: Horizontal: | C47: =MAX(E16:E18,E27:E29,E38:E40) -> 6721.602991 | D47: lbs
B48: Vertical: | C48: =VLOOKUP(C47,E16:I40,2,0) -> 644.0387868 | D48: lbs
B49: Load Case: | C49: =VLOOKUP(C47,E16:I40,3,0) -> Group II
A50: Dead Load Only: | E50: Pole Coordinate Axis
B51: Horizontal: | C51: =MAX(E16,E27,E38) -> 2637.274478
B52: Vertical: | C52: =VLOOKUP(C51,E16:I40,2,0) -> 644.0387868
B53: Load Case: | C53: =VLOOKUP(C51,E16:I40,3,0) -> Group I | E53: Note: SW3 and SW4 Reactions above use sign convention from SW3 and SW4 tabs

Sheet SUMMARY
A1: Summary of Results
A4: Span Wire Tension:
A6: Span Wire | B6: Controlling Tension (lbs) | C6: Controlling Load Group | D6: Allowable Overstress (%) | E6: Wire Diameter | F6: Wire Material | G6: Allowable Tension w/o Overstress (lbs) | H6: Allowable Tension w/ Overstress (lbs) | I6: Check
A7: SW1 | B7: =IF(Input!I49="YES",MAX('SW1'!A407:B409),"N/A") -> 4087.768154 | C7: =IF(Input!I49="YES",IF(OR(B7='SW1'!$A$407,B7='SW1'!$A$408,B7='SW1'!$A$409),VLOOKUP(B7,'SW1'!$A$407:$E$409,3,0),VLOOKUP(B7,'SW1'!$B$407:$E$409,2,0)),"N/A") -> Group II | D7: =IF(Input!I49="YES",VLOOKUP(C7,'Pick Lists & Data'!$A$51:$B$53,2,0),"N/A") -> 1.33 | E7: =IF(Input!I49="YES",SW1_Wire_Dia,"N/A") -> 0.5" | F7: =IF(Input!I49="YES",SW1_Wire_Material,"N/A") -> ASTM A 475 | G7: =IF(Input!I49="YES",IF(F7='Pick Lists & Data'!$A$46,VLOOKUP(E7,'Pick Lists & Data'!$A$29:$F$33,5,0),VLOOKUP(E7,'Pick Lists & Data'!$A$29:$F$33,6,0)),"N/A") -> 5707 | H7: =IF(Input!I49="YES",G7*D7,"N/A") -> 7590.31 | I7: =IF(Input!I49="YES",IF(B7<=H7,"OK","NO GOOD"),"N/A") -> OK
A8: SW2 | B8: =IF(Input!I50="YES",MAX('SW2'!A407:B409),"N/A") -> 3496.340979 | C8: =IF(Input!I50="YES",IF(OR(B8='SW2'!$A$407,B8='SW2'!$A$408,B8='SW2'!$A$409),VLOOKUP(B8,'SW2'!$A$407:$E$409,3,0),VLOOKUP(B8,'SW2'!$B$407:$E$409,2,0)),"N/A") -> Group II | D8: =IF(Input!I50="YES",VLOOKUP(C8,'Pick Lists & Data'!$A$51:$B$53,2,0),"N/A") -> 1.33 | E8: =IF(Input!I50="YES",SW2_Wire_Dia,"N/A") -> 0.5" | F8: =IF(Input!I50="YES",SW2_Wire_Material,"N/A") -> ASTM A 475 | G8: =IF(Input!I50="YES",IF(F8='Pick Lists & Data'!$A$46,VLOOKUP(E8,'Pick Lists & Data'!$A$29:$F$33,5,0),VLOOKUP(E8,'Pick Lists & Data'!$A$29:$F$33,6,0)),"N/A") -> 5707 | H8: =IF(Input!I50="YES",G8*D8,"N/A") -> 7590.31 | I8: =IF(Input!I50="YES",IF(B8<=H8,"OK","NO GOOD"),"N/A") -> OK
A9: SW3 | B9: =IF(Input!I51="YES",MAX('SW3'!A407:B409),"N/A") -> 5140.949626 | C9: =IF(Input!I51="YES",IF(OR(B9='SW3'!$A$407,B9='SW3'!$A$408,B9='SW3'!$A$409),VLOOKUP(B9,'SW3'!$A$407:$E$409,3,0),VLOOKUP(B9,'SW3'!$B$407:$E$409,2,0)),"N/A") -> Group II | D9: =IF(Input!I51="YES",VLOOKUP(C9,'Pick Lists & Data'!$A$51:$B$53,2,0),"N/A") -> 1.33 | E9: =IF(Input!I51="YES",SW3_Wire_Dia,"N/A") -> 0.5" | F9: =IF(Input!I51="YES",SW3_Wire_Material,"N/A") -> ASTM A 475 | G9: =IF(Input!I51="YES",IF(F9='Pick Lists & Data'!$A$46,VLOOKUP(E9,'Pick Lists & Data'!$A$29:$F$33,5,0),VLOOKUP(E9,'Pick Lists & Data'!$A$29:$F$33,6,0)),"N/A") -> 5707 | H9: =IF(Input!I51="YES",G9*D9,"N/A") -> 7590.31 | I9: =IF(Input!I51="YES",IF(B9<=H9,"OK","NO GOOD"),"N/A") -> OK
A10: SW4 | B10: =IF(Input!I52="YES",MAX('SW4'!A407:B409),"N/A") -> 2250.244702 | C10: =IF(Input!I52="YES",IF(OR(B10='SW4'!$A$407,B10='SW4'!$A$408,B10='SW4'!$A$409),VLOOKUP(B10,'SW4'!$A$407:$E$409,3,0),VLOOKUP(B10,'SW4'!$B$407:$E$409,2,0)),"N/A") -> Group II | D10: =IF(Input!I52="YES",VLOOKUP(C10,'Pick Lists & Data'!$A$51:$B$53,2,0),"N/A") -> 1.33 | E10: =IF(Input!I52="YES",SW4_Wire_Dia,"N/A") -> 0.5" | F10: =IF(Input!I52="YES",SW4_Wire_Material,"N/A") -> ASTM A 475 | G10: =IF(Input!I52="YES",IF(F10='Pick Lists & Data'!$A$46,VLOOKUP(E10,'Pick Lists & Data'!$A$29:$F$33,5,0),VLOOKUP(E10,'Pick Lists & Data'!$A$29:$F$33,6,0)),"N/A") -> 5707 | H10: =IF(Input!I52="YES",G10*D10,"N/A") -> 7590.31 | I10: =IF(Input!I52="YES",IF(B10<=H10,"OK","NO GOOD"),"N/A") -> OK
A11: N/A indicates that spanwire is not present.
A13: Pole Reactions:
B17: Pole | C17: Connecting Span Wires | D17: Angle Between Wires | E17: Reactions
E18: Load Group | F18: Horizontal (lbs) | G18: Vertical (lbs)
B19: P1 | C19: =IF(Input!I52="YES","SW4","N/A") -> SW4 | D19: =IF(AND(Input!I49="YES",Input!I52="YES"),Input!F49,"N/A") -> 38 | E19: =IF(AND(Input!I49="NO",Input!I52="NO"),"N/A","Group I (DL Only)") -> Group I (DL Only) | F19: =IF(AND(Input!I49="NO",Input!I52="NO"),"N/A",'P1'!C51) -> 2589.917348 | G19: =IF(AND(Input!I49="NO",Input!I52="NO"),"N/A",'P1'!C52) -> 582.6276995
C20: =IF(Input!I49="YES","SW1","N/A") -> SW1 | E20: =IF(AND(Input!I49="NO",Input!I52="NO"),"N/A",'P1'!C49) -> Group II | F20: =IF(AND(Input!I49="NO",Input!I52="NO"),"N/A",'P1'!C47) -> 5682.382069 | G20: =IF(AND(Input!I49="NO",Input!I52="NO"),"N/A",'P1'!C48) -> 582.6276995
B21: P2 | C21: =IF(Input!I49="YES","SW1","N/A") -> SW1 | D21: =IF(AND(Input!I49="YES",Input!I50="YES"),Input!F50,"N/A") -> 146 | E21: =IF(AND(Input!I49="NO",Input!I50="NO"),"N/A","Group I (DL Only)") -> Group I (DL Only) | F21: =IF(AND(Input!I49="NO",Input!I50="NO"),"N/A",'P2'!C51) -> 2631.85525 | G21: =IF(AND(Input!I49="NO",Input!I50="NO"),"N/A",'P2'!C52) -> 606.2534427
C22: =IF(Input!I50="YES","SW2","N/A") -> SW2 | E22: =IF(AND(Input!I49="NO",Input!I50="NO"),"N/A",'P2'!C49) -> Group II | F22: =IF(AND(Input!I49="NO",Input!I50="NO"),"N/A",'P2'!C47) -> 6338.393211 | G22: =IF(AND(Input!I49="NO",Input!I50="NO"),"N/A",'P2'!C48) -> 606.2534427
B23: P3 | C23: =IF(Input!I50="YES","SW2","N/A") -> SW2 | D23: =IF(AND(Input!I50="YES",Input!I51="YES"),Input!F51,"N/A") -> 39 | E23: =IF(AND(Input!I50="NO",Input!I51="NO"),"N/A","Group I (DL Only)") -> Group I (DL Only) | F23: =IF(AND(Input!I50="NO",Input!I51="NO"),"N/A",'P3'!C51) -> 2678.470993 | G23: =IF(AND(Input!I50="NO",Input!I51="NO"),"N/A",'P3'!C52) -> 628.830071
C24: =IF(Input!I51="YES","SW3","N/A") -> SW3 | E24: =IF(AND(Input!I50="NO",Input!I51="NO"),"N/A",'P3'!C49) -> Group II | F24: =IF(AND(Input!I50="NO",Input!I51="NO"),"N/A",'P3'!C47) -> 7459.363906 | G24: =IF(AND(Input!I50="NO",Input!I51="NO"),"N/A",'P3'!C48) -> 628.830071
B25: P4 | C25: =IF(Input!I51="YES","SW3","N/A") -> SW3 | D25: =IF(AND(Input!I51="YES",Input!I52="YES"),Input!F52,"N/A") -> 137 | E25: =IF(AND(Input!I51="NO",Input!I52="NO"),"N/A","Group I (DL Only)") -> Group I (DL Only) | F25: =IF(AND(Input!I51="NO",Input!I52="NO"),"N/A",'P4'!C51) -> 2637.274478 | G25: =IF(AND(Input!I51="NO",Input!I52="NO"),"N/A",'P4'!C52) -> 644.0387868
C26: =IF(Input!I52="YES","SW4","N/A") -> SW4 | E26: =IF(AND(Input!I51="NO",Input!I52="NO"),"N/A",'P4'!C49) -> Group II | F26: =IF(AND(Input!I51="NO",Input!I52="NO"),"N/A",'P4'!C47) -> 6721.602991 | G26: =IF(AND(Input!I51="NO",Input!I52="NO"),"N/A",'P4'!C48) -> 644.0387868
B27: N/A indicates that the spanwire or pole is not present.
C203: 5200
H220: =SUM(H206:H219) -> 0
E221: =E151 -> 0

Sheet Member Local Coordinates
C3: Member Local Coordinates

Sheet Pick Lists & Data
A1: Wind Load Data:
B2: Wind Velocity, Vfm, = | C2: 80 | D2: mph | J2: (Pub. 149, 20.1, Section 15.2P)
B3: Coefficient of Height, Ch = | C3: 1 | J3: (A Tbl C-1, Assumes all components are between 14 and 29 feet above the ground)
B4: Wind Pressure, Pz = | C4: 0.00256 · (1.3 · Vfm)2 · Cd · Ch | J4: AASHTO Appendix C.3
B5: Wind Load, WL = | C5: Pz · Surface Area
A7: Ice Load Data:
B8: Ice Load = | C8: 3 | D8: lbs/ft2 | J8: AASHTO Article 3.7
I9: Notes:
A10: Signal Configuration - Signal Sections Each Direction | B10: Load With Back Plate (lbs) | C10: Wind Area w/ 5" Backplate Border (ft2) | D10: Wind Drag Coefficient, Cd (A Tbl C-2) | E10: Wind Pressure, Pz (psf) | F10: Wind Load, WL (lbs) | G10: Ice Area = 2 · Wind Area +2 ft2 | H10: Ice Load (lbs) | I10: -For Ice Area, ice covers all sides of signal so assmue 2 · Wind Area for front and rear face and 2 ft2 for other sides of signal.
A11: None | B11: 0 | C11: 0 | D11: 1.2 | E11: =0.00256*(1.3*Vfm)^2*Ch*D11 -> 33.226752 | F11: =E11*C11 -> 0 | G11: 0 | H11: =G11*Ice -> 0 | I11: -Dead Load and Wind Area taken in accordance with PennDOT Pub 149, Table 20-2
A12: A-3 | B12: 70 | C12: 8.76 | D12: 1.2 | E12: =0.00256*(1.3*Vfm)^2*Ch*D12 -> 33.226752 | F12: =E12*C12 -> 291.0663475 | G12: =2*C12+2 -> 19.52 | H12: 58.56
A13: A-4 | B13: 89 | C13: 11.04 | D13: 1.2 | E13: 33.226752 | F13: 366.8233421 | G13: =2*C13+2 -> 24.08 | H13: 72.24
A14: A-5 | B14: 97 | C14: 13.89 | D14: 1.2 | E14: 33.226752 | F14: 461.5195853 | G14: 29.78 | H14: 89.34
A15: B-3 | B15: 129 | C15: 8.76 | D15: 1.2 | E15: 33.226752 | F15: 291.0663475 | G15: 19.52 | H15: 58.56
A16: C-3 | B16: 131 | C16: 13.41 | D16: 1.2 | E16: 33.226752 | F16: 445.5707443 | G16: 28.82 | H16: 86.46
A17: B-4 | B17: 165 | C17: 11.04 | D17: 1.2 | E17: 33.226752 | F17: 366.8233421 | G17: 24.08 | H17: 72.24
A18: C-4 | B18: 167 | C18: 17.24 | D18: 1.2 | E18: 33.226752 | F18: 572.8292045 | G18: 36.48 | H18: 109.44
A19: B-5 | B19: 189 | C19: 13.89 | D19: 1.2 | E19: 33.226752 | F19: 461.5195853 | G19: 29.78 | H19: 89.34
A20: D-3 | B20: 190 | C20: 13.41 | D20: 1.2 | E20: 33.226752 | F20: 445.5707443 | G20: 28.82 | H20: 86.46
A21: E-3 | B21: 190 | C21: 18.06 | D21: 1.2 | E21: 33.226752 | F21: 600.0751411 | G21: 38.12 | H21: 114.36
A22: D-4 | B22: 242 | C22: 17.24 | D22: 1.2 | E22: 33.226752 | F22: 572.8292045 | G22: 36.48 | H22: 109.44
A23: E-4 | B23: 242 | C23: 23.44 | D23: 1.2 | E23: 33.226752 | F23: 778.8350669 | G23: 48.88 | H23: 146.64
A24: F-3 | B24: 249 | C24: 18.06 | D24: 1.2 | E24: 33.226752 | F24: 600.0751411 | G24: 38.12 | H24: 114.36
A25: F-4 | B25: 318 | C25: 23.44 | D25: 1.2 | E25: 33.226752 | F25: 778.8350669 | G25: 48.88 | H25: 146.64
C27: Minimum Breaking Strength* | E27: Allowable Force**
A28: Wire Diameter (in) | B28: Wire Weight (lb/ft) | C28: ASTM A 475, Class A, Siemens-Martin Grade | D28: ASTM B 416 | E28: ASTM A 475 | F28: ASTM B 416 | G28: Wire Diameter (in) | H28: Wind Drag Coefficient, Cd (A Tbl C-2) | I28: Wind Pressure, Pz (psf) | J28: Wind Load (lb/ft) | K28: Ice Area (ft2/ft) | L28: Ice Load (lb/ft)
A29: 0.25" | B29: 1 | C29: 3150 | D29: 6301 | E29: =ROUNDDOWN(C29/2.12,0) -> 1485 | F29: 2972 | G29: 0.25 | H29: 1.1 | I29: =0.00256*(1.3*Vfm)^2*Ch*H29 -> 30.457856 | J29: =I29*G29/12 -> 0.6345386667 | K29: =PI()*(G29/12) -> 0.06544984695 | L29: =ROUNDUP(Ice*K29,2) -> 0.2
A30: 0.3125" | B30: 1 | C30: 5350 | D30: 10020 | E30: 2523 | F30: 4726 | G30: 0.3125 | H30: 1.1 | I30: =0.00256*(1.3*Vfm)^2*Ch*H30 -> 30.457856 | J30: =I30*G30/12 -> 0.7931733333 | K30: =PI()*(G30/12) -> 0.08181230869 | L30: =ROUNDUP(Ice*K30,2) -> 0.25
A31: 0.375" | B31: 1 | C31: 6950 | D31: 15930 | E31: 3278 | F31: 7514 | G31: 0.375 | H31: 1.1 | I31: =0.00256*(1.3*Vfm)^2*Ch*H31 -> 30.457856 | J31: =I31*G31/12 -> 0.951808 | K31: =PI()*(G31/12) -> 0.09817477042 | L31: =ROUNDUP(Ice*K31,2) -> 0.3
A32: 0.4375" | B32: 1 | C32: 9350 | D32: 19060 | E32: 4410 | F32: 8990 | G32: 0.4375 | H32: 1.1 | I32: =0.00256*(1.3*Vfm)^2*Ch*H32 -> 30.457856 | J32: =I32*G32/12 -> 1.110442667 | K32: =PI()*(G32/12) -> 0.1145372322 | L32: =ROUNDUP(Ice*K32,2) -> 0.35
A33: 0.5" | B33: 1 | C33: 12100 | D33: 23000 | E33: 5707 | F33: 10849 | G33: 0.5 | H33: 1.1 | I33: =0.00256*(1.3*Vfm)^2*Ch*H33 -> 30.457856 | J33: =I33*G33/12 -> 1.269077333 | K33: =PI()*(G33/12) -> 0.1308996939 | L33: =ROUNDUP(Ice*K33,2) -> 0.4
A34: *TC-8801, Sheet 2 of 7
A35: **Minimum Breaking Strength ÷ 2.12 ( 2.12 is the typical FS from AASHTO Standard Specifications for ASD Design)
A37: Sign Sizes (LxW) | B37: Load (lbs) | C37: Surface Area (ft2) | D37: Wind Drag Coefficient, Cd (A Tbl C-2) | E37: Wind Pressure, Pz (psf) | F37: Wind Load, WL (lbs) | G37: Ice Load (lbs)
A39: None | B39: 0 | C39: 0 | D39: 0 | E39: =0.00256*(1.3*Vfm)^2*Ch*D39 -> 0 | F39: =E39*C39 -> 0 | G39: =C39*Ice -> 0
A40: 30" x 36" | B40: 39 | C40: 7.5 | D40: 1.19 | E40: =0.00256*(1.3*Vfm)^2*Ch*D40 -> 32.9498624 | F40: =E40*C40 -> 247.123968 | G40: =C40*Ice -> 22.5
A41: None | B41: 0 | C41: 0 | D41: 0 | E41: =0.00256*(1.3*Vfm)^2*Ch*D41 -> 0 | F41: =E41*C41 -> 0 | G41: =C41*Ice -> 0
A42: 72" x 21" | B42: 87 | C42: 10.5 | D42: 1.2 | E42: =0.00256*(1.3*Vfm)^2*Ch*D42 -> 33.226752 | F42: =E42*C42 -> 348.880896 | G42: =C42*Ice -> 31.5
A43: 96" x 32" | B43: 106 | C43: 21.33 | D43: 1.2 | E43: =0.00256*(1.3*Vfm)^2*Ch*D43 -> 33.226752 | F43: =E43*C43 -> 708.7266202 | G43: =C43*Ice -> 63.99
A45: Wire Material
A46: ASTM A 475
A47: ASTM B 416
A50: Allowable Overstress
A51: Group I | B51: 1
A52: Group II | B52: 1.33
A53: Group III | B53: 1.33
A54: (AASHTO Sign Spec, Tbl 3-1)
A56: Spanwire Present:
A57: YES
A58: NO
